Workbook

Sheet menù
A1: IN TUTTI I FOGLI DI CALCOLO, DIGITARE SOLO LE CELLE BIANCHE
A2: Il calcolo del contributo biennale - e del conseguente compenso spettante ai revisori - viene effettuato sulla base dei seguenti decreti:
A3: ­ decreto ministeriale del 3 marzo 2017 per il biennio 2017-2018.
A4: ­ decreto ministeriale del 20 gennaio 2015 per il biennio 2015-2016.
A5: Ragione sociale: | B5: Numero soci (*) | C5: Capitale sociale (*) | D5: Valore della produzione (*)
B7: =IF(AND(ragionesociale<>"",MID(CELL("nomefile",ragionesociale),FIND("[",CELL("nomefile",ragionesociale))-6,6)<>"Varie\",MID(CELL("nomefile",ragionesociale),1,34)="C:\Documenti\Cooperative associate"),"Progressivo " & MID(CELL("nomefile",ragionesociale),FIND("-",CELL("nomefile",ragionesociale))-3,3),"") -> 
A8: (*) valori riferiti al bilancio al 31/12 dell'esercizio precedente il biennio interessato
A9: FUNZIONI DA ESEGUIRE
B10: CALCOLO:
B11: ="- CONTRIBUTO DI REVISIONE BIENNALE PER IL BIENNIO " & LEFT(RIGHT($A$3,10),9) -> - CONTRIBUTO DI REVISIONE BIENNALE PER IL BIENNIO 2017-2018
B12: E RELATIVI INTERESSI E SANZIONE;
B13: - CONTRIBUTO AI FONDI MUTUALISTICI (3%) E RELATIVI INTERESSI.
B15: CALCOLO:
B16: ="- CONTRIBUTO DI REVISIONE BIENNALE PER IL BIENNIO " & LEFT(RIGHT($A$4,10),9) -> - CONTRIBUTO DI REVISIONE BIENNALE PER IL BIENNIO 2015-2016
B17: E RELATIVI INTERESSI E SANZIONE;
B18: - CONTRIBUTO AI FONDI MUTUALISTICI (3%) E RELATIVI INTERESSI.
B20: CALCOLO COMPENSO PER REVISIONE
B21: =" DOVUTO AI REVISORI PER IL BIENNIO " & LEFT(RIGHT($A$3,10),9) & "." -> DOVUTO AI REVISORI PER IL BIENNIO 2017-2018.
B23: CALCOLO COMPENSO PER REVISIONE
B24: =" DOVUTO AI REVISORI PER IL BIENNIO " & LEFT(RIGHT($A$4,10),9) & "." -> DOVUTO AI REVISORI PER IL BIENNIO 2015-2016.
B26: CALCOLO INTEGRAZIONE DEL CONTRIBUTO VERSATO PER IL
B27: ="BIENNIO " & LEFT(RIGHT($A$3,10),9) & "." -> BIENNIO 2017-2018.
B29: CALCOLO INTEGRAZIONE DEL CONTRIBUTO VERSATO PER IL
B30: ="BIENNIO " & LEFT(RIGHT($A$4,10),9) & "." -> BIENNIO 2015-2016.
B32: CALCOLI VARI E DATI SIGNIFICATIVI
B34: CALCOLO COSTO DEL LAVORO
B36: DOCUMENTAZIONE DA VERIFICARE
B38: STAMPA questa pagina
B40: AZZERA contributi cooperativa, compenso revisore, integrazione,
B41: calcoli, costo del lavoro, documentazione da verificare

Sheet contr.biennio (vedi prima riga)
A1: ="CONTRIBUTO DI REVISIONE BIENNALE PER IL BIENNIO " & LEFT(RIGHT(menù!$A$3,10),9) -> CONTRIBUTO DI REVISIONE BIENNALE PER IL BIENNIO 2017-2018
A2: DIGITARE solo i dati nelle celle bianche, esprimendo gli importi in €uro con 2 decimali | I2: Indice fascia | J2: fascia risultante
A3: =IF(AND(ragionesociale<>"",MID(CELL("nomefile",ragionesociale),FIND("[",CELL("nomefile",ragionesociale))-6,6)<>"Varie\",MID(CELL("nomefile",ragionesociale),1,34)="C:\Documenti\Cooperative associate"),"Progressivo " & MID(CELL("nomefile",ragionesociale),FIND("-",CELL("nomefile",ragionesociale))-3,3),"") ->  | D3: Ragione sociale: | E3: =ragionesociale -> 0 | H3: fascia per n° soci | I3: =IF($A$12<>"",MATCH($A$12,$B$6:$D$6,1),"") ->  | J3: =IF(AND($A$12="",$B$12="",$C$12=""),"",IF(AND($A$12<>"",$B$12<>"",$C$12<>""),INDEX($B$4:$F$4,MAX($I$3:$I$5)),"Mancano dati")) -> 
A4: Fasce: | B4: ="A" -> A | C4: ="B" -> B | D4: ="C" -> C | E4: ="D" -> D | F4: ="E" -> E | H4: fascia per capitale | I4: =IF($B$12<>"",MATCH($B$12,$B$7:$D$7,1),"") -> 
B5: a partire da | C5: a partire da | D5: a partire da | E5: a partire da | F5: a partire da | H5: fascia per fatturato | I5: =IF($C$12<>"",MATCH($C$12,$B$8:$F$8,1),"") -> 
A6: Numero soci: | B6: 0 | C6: 101 | D6: 501 | E6: 501 | F6: 501 | I6: contributo base | J6: =IF(AND($I$3<>"",$I$4<>"",$I$5<>""),ROUND(INDEX($B$9:$F$9,MAX($I$3:$I$5)),0),"") -> 
A7: Capitale sociale versato: | B7: 0 | C7: 5160.01 | D7: 40000.01 | E7: 40000.01 | F7: 40000.01
A8: Fatturato: | B8: 0 | C8: 75000.01 | D8: 300000.01 | E8: 1000000.01 | F8: 2000000.01
A9: Contributo: | B9: 280 | C9: 680 | D9: 1350 | E9: 1730 | F9: 2380
B10: P A R A M E T R I A L 31.12.2014:
A11: Numero soci | B11: Cap.soc.vers. | C11: Valore della produzione: | D11: Fascia
A12: =IF(numerosoci="","",numerosoci) ->  | B12: =IF(capitaleversato="","",capitaleversato) ->  | C12: =IF(valoredellaproduzione="","",valoredellaproduzione) ->  | D12: =$J$3 -> 
A13: CONTRIBUTO IN RELAZIONE ALLA FASCIA | D13: (a) | E13: =IF(AND($D$23<>"",$I$30-$D$23>=0),$B$9,$J$6) -> 
A14: MAGGIORAZIONE in relazione alla tipologia della cooperativa:
A15: DIGITARE uno dei seguenti numeri, a seconda del caso, se ricorre: 1 2 3 4 5 | G15: =IF(AND(F15<>1,F15<>2,F15<>3,F15<>4,F15<>5,F15<>""),"numero errato","") -> 
A16: 1 - Ispezionabili annualmente per valore della produzione,
A17: per possesso azioni di controllo su Srl o Spa,
A18: per dimensione, riserve o prestiti sociali - art.15 L. 59/92.
A19: 2 - Enti Cooperativi Edilizi non iscritti relativo albo (art. 13 L.59/92).
A20: 3 - Ispezionabili annualmente: Enti Cooperativi Edilizi iscritti albo (art. 13 L.59/92) con progr.già avviato o realizzato.
A21: 4 - Ispezionabili annualmente: Enti Cooperativi Edilizi iscritti albo (art. 13 L.59/92) con programma non ancora avviato.
A22: 5 - Ispezionabili annualmente: Enti Cooperativi Sociali.
A23: Enti Cooperativi in liquidazione dal
A24: =IF(OR($F$15=1,$F$15=3),"Aumento contr.base 50%",IF($F$15=5,"Aumento contr.base 30% (Coop.Sociali, ecc.)","")) ->  | D24: =IF(OR($F$15=1,$F$15=3),"(b=a+50%*a)",IF($F$15=5,"(b=a+30%*a)","(b)")) -> (b) | E24: =IF(OR($F$15=1,$F$15=3),ROUND($E$13*50%,2),IF($F$15=5,ROUND($E$13*30%,2),0)) -> 0
A25: TOTALE parziale (codice tributo: 3010) | E25: ="(c=a+b)" -> (c=a+b) | F25: =IF(SUM($E$13,$E$24)<>0,SUM($E$13,$E$24),0) -> 0
A26: Aumento 10% (coop. Edilizie; codice tributo 3011) | E26: =IF(OR($F$15=2,$F$15=3,$F$15=4),"(d=10%*c)","(d)") -> (d) | F26: =IF(OR($F$15=2,$F$15=3,$F$15=4),$F$25*10%,0) -> 0
A27: TOTALE contributo dovuto | F27: =IF($G$27<>"errore","(e=c+d)","") -> (e=c+d) | G27: =SUM($F$25,$F$26) -> 0
A28: INTERESSI e SANZIONE DOVUTI PER IL BIENNIO | G28: =RIGHT($A$1,4)-5 & "-" & RIGHT($A$1,4)-4 -> 2013-2014 | H28: =RIGHT($A$1,4)-3 & "-" & RIGHT($A$1,4)-2 -> 2015-2016 | I28: =RIGHT($A$1,9) -> 2017-2018
B29: data di pubblicazione D.M. 3 marzo 2017 | G29: 2013-04-16 | H29: 2015-03-30 | I29: 2017-04-11
A30: f1) | B30: termine ultimo per il versam. (90 giorni dopo la pubblicazione del D.M. 0.03.2017) | G30: =IF(G$29<>"",IF(WEEKDAY(G$29+90)=1,G$29+91,IF(WEEKDAY(G$29+90)=7,G$29+92,G$29+90)),"") -> 2013-07-15 | H30: =IF(H$29<>"",IF(WEEKDAY(H$29+90)=1,H$29+91,IF(WEEKDAY(H$29+90)=7,H$29+92,H$29+90)),"") -> 2015-06-29 | I30: =IF(I$29<>"",IF(WEEKDAY(I$29+90)=1,I$29+91,IF(WEEKDAY(I$29+90)=7,I$29+92,I$29+90)),"") -> 2017-07-10
A31: Se cooperativa di nuova costituzione:
B32: data di iscrizione nel Registro delle Imprese
A33: f11) | B33: termine ultimo per il versam. (90 giorni dopo la data di iscrizione nel Registro delle Imprese) | G33: =IF(G$32<>"",IF(WEEKDAY(G$32+90)=1,G$32+91,IF(WEEKDAY(G$32+90)=7,G$32+92,G$32+90)),0) -> 00:00:00 | H33: =IF(H$32<>"",IF(WEEKDAY(H$32+90)=1,H$32+91,IF(WEEKDAY(H$32+90)=7,H$32+92,H$32+90)),0) -> 00:00:00 | I33: =IF(I$32<>"",IF(WEEKDAY(I$32+90)=1,I$32+91,IF(WEEKDAY(I$32+90)=7,I$32+92,I$32+90)),0) -> 00:00:00
A34: g1) | B34: contributo biennale di revisione | I34: =G27 -> 0
A35: i1) | B35: data versamento
A36: l1) | B36: giorni per calcolo interessi (l1=i1-f1 oppure f11) | G36: =IF(AND(G$35<>"",G$35>MAX(G$30,G$33)),'inter.legale (vedi prima riga)'!E25,"") ->  | H36: =IF(AND(H$35<>"",H$35>MAX(H$30,H$33)),'inter.legale (vedi prima riga)'!I25,"") ->  | I36: =IF(AND(I$35<>"",I$35>MAX(I$30,I$33)),'inter.legale (vedi prima riga)'!M25,"") -> 
A37: m1) | B37: inter.su contr.e maggior.(escluso 10% coop.edil.)(m1) | G37: =IF(G36<>"",'inter.legale (vedi prima riga)'!$F$25,0) -> 0 | H37: =IF(H36<>"",'inter.legale (vedi prima riga)'!$J$25,0) -> 0 | I37: =IF(I36<>"",'inter.legale (vedi prima riga)'!$N$25,0) -> 0
A38: n1) | B38: Totale versamento contributo magg.e interessi codice tributo 3010 (n1=g1+l1+m1) | G38: =IF(G$34<>"",SUM(G$34,G$37),0) -> 0 | H38: =IF(H$34<>"",SUM(H$34,H$37),0) -> 0 | I38: =IF(I$34<>"",SUM(I$34,I$37),0) -> 0
B39: Interesse (dietim giornaliero) per ogni giorno successivo alla data di versamento indicata (cod. 3010) | G39: =IF(G$36<>"",'inter.legale (vedi prima riga)'!$F$26,0) -> 0 | H39: =IF(H$36<>"",'inter.legale (vedi prima riga)'!$J$26,0) -> 0 | I39: =IF(I$36<>"",'inter.legale (vedi prima riga)'!$N$26,0) -> 0
A40: o1) | B40: maggiorazione 10% dovute dalle cooperative edilizie | I40: =IF($F$26<>0,$F$26,0) -> 0
A41: p1) | B41: interessi sulla maggiorazione 10% (p1) | G41: =IF(G$34<>0,G$37/G$34*G$40,0) -> 0 | H41: =IF(H$34<>0,H$37/H$34*H$40,0) -> 0 | I41: =IF(I$34<>0,I$37/I$34*I$40,0) -> 0
A42: q1) | B42: Totale versam.maggior.10% coop.edil.e inter.codice tributo 3011 (q1=o1+p1) | G42: =IF(G$40<>0,SUM(G$40,G$41),0) -> 0 | H42: =IF(H$40<>0,SUM(H$40,H$41),0) -> 0 | I42: =IF(I$40<>0,SUM(I$40,I$41),0) -> 0
B43: Interesse dovuto (cod. 3011) per ogni giorno successivo alla data di versamento indicata | G43: =IF(G$40<>0,G$40*G$39/G$34,0) -> 0 | H43: =IF(H$40<>0,H$40*H$39/H$34,0) -> 0 | I43: =IF(I$40<>0,I$40*I$39/I$34,0) -> 0
A44: r1) | B44: sanzione rel.cod.trib. 3010 e 3011: 5% cod.trib. 3014 (pagamento entro 30 gg) | G44: =IF(AND(G$34<>0,G$35<>""),IF(AND(G$35-IF(G$32<>"",G$33,G$30)<=30,G$35-IF(G$32<>"",G$33,G$30)>0),5%*(G$34+G$40),0),0) -> 0 | H44: =IF(AND(H$34<>0,H$35<>""),IF(AND(H$35-IF(H$32<>"",H$33,H$30)<=30,H$35-IF(H$32<>"",H$33,H$30)>0),5%*(H$34+H$40),0),0) -> 0 | I44: =IF(AND(I$34<>0,I$35<>""),IF(AND(I$35-IF(I$32<>"",I$33,I$30)<=30,I$35-IF(I$32<>"",I$33,I$30)>0),5%*(I$34+I$40),0),0) -> 0
A45: s1) | B45: sanzione rel.cod.trib. 3010 e 3011: 15% cod.trib. 3014 (pagamento dopo 30 gg) | G45: =IF(AND(G$34<>0,G$35<>""),IF(AND(G$35-IF(G$32<>"",G$33,G$30)>30,G$35-IF(G$32<>"",G$33,G$30)>0),15%*(G$34+G$40),0),0) -> 0 | H45: =IF(AND(H$34<>0,H$35<>""),IF(AND(H$35-IF(H$32<>"",H$33,H$30)>30,H$35-IF(H$32<>"",H$33,H$30)>0),15%*(H$34+H$40),0),0) -> 0 | I45: =IF(AND(I$34<>0,I$35<>""),IF(AND(I$35-IF(I$32<>"",I$33,I$30)>30,I$35-IF(I$32<>"",I$33,I$30)>0),15%*(I$34+I$40),0),0) -> 0
A46: t1) | B46: Totale versamento (t1=n1+q1+r1+s1) | G46: =IF(G$27<>0,SUM(G$38,G$42:G$45),0) -> 0 | H46: =IF(G$27<>0,SUM(H$38,H$42:H$45),0) -> 0 | I46: =IF(G$27<>0,SUM(I$38,I$42:I$45),0) -> 0
A47: CONTRIBUTO 3% DOVUTO (L. 59/1992 art. 11) | F47: =G47-1 -> 2013 | G47: =H47-1 -> 2014 | H47: =I47-1 -> 2015 | I47: =J47-1 -> 2016 | J47: =RIGHT($A$1,4)-1 -> 2017
A48: a2) | B48: risultato dell'esercizio
A49: b2) | B49: eventuali preaccantonamenti a riserva indivisibile
A50: c2) | B50: eventuali preaccantonamenti art. 11 L. n° 59
A51: d2) | B51: eventuali perdite di esercizio
A52: e2) | B52: eventuali ristorni
A53: f2) | B53: Totale imponibile [f2=3%*(a2+b2+c2-d2-e2)] | F53: =IF(AND(OR(F48<>"",F49<>"",F50<>"",F51<>"",F52<>""),SUM(F48:F50)-F51-F52>0),SUM(F48:F50)-F51-F52,0) -> 0 | G53: 0 | H53: 0 | I53: =IF(AND(OR(I48<>"",I49<>"",I50<>"",I51<>"",I52<>""),SUM(I48:I50)-I51-I52>0),SUM(I48:I50)-I51-I52,0) -> 0 | J53: =IF(AND(OR(J48<>"",J49<>"",J50<>"",J51<>"",J52<>""),SUM(J48:J50)-J51-J52>0),SUM(J48:J50)-J51-J52,0) -> 0
A54: g2) | B54: Contributo dovuto ai fondi mutualistici (g2=3%*f2) | F54: =IF(F53<>0,3%*F53,0) -> 0 | G54: =IF(G53<>0,3%*G53,0) -> 0 | H54: =IF(H53<>0,3%*H53,0) -> 0 | I54: =IF(I53>0,3%*I53,0) -> 0 | J54: =IF(J53>0,3%*J53,0) -> 0
B55: data di approvazione del bilancio d'esercizio
A56: h2) | B56: data ultima per vers.(1=30/10 oppure 2=300 giorni, vedi nota) | F56: =IF(F55<>"",IF($E56=1,DATE(YEAR(F55),10,30),IF($E56=2,F55+300,"comunicato dato errato nella cella bianca a sinistra")),0) -> 00:00:00 | G56: =IF(G55<>"",IF($E56=1,DATE(YEAR(G55),10,30),IF($E56=2,G55+300,"comunicato dato errato nella cella bianca a sinistra")),0) -> 00:00:00 | H56: =IF(H55<>"",IF($E56=1,DATE(YEAR(H55),10,30),IF($E56=2,H55+300,"comunicato dato errato nella cella bianca a sinistra")),0) -> 00:00:00 | I56: =IF(I55<>"",IF($E56=1,DATE(YEAR(I55),10,30),IF($E56=2,I55+300,"comunicato dato errato nella cella bianca a sinistra")),0) -> 00:00:00 | J56: =IF(J55<>"",IF($E56=1,DATE(YEAR(J55),10,30),IF($E56=2,J55+300,"comunicato dato errato nella cella bianca a sinistra")),0) -> 00:00:00
A57: i2) | B57: data versamento
A58: l2) | B58: giorni per calcolo interessi (l2=i2-h2) | F58: =IF(F57-F56<=0,0,F57-F56) -> 0 | G58: =IF(G57-G56<=0,0,G57-G56) -> 0 | H58: =IF(H57-H56<=0,0,H57-H56) -> 0 | I58: =IF(I57-I56<=0,0,I57-I56) -> 0 | J58: =IF(J57-J56<=0,0,J57-J56) -> 0
A59: m2) | B59: interessi | F59: ='inter.legale (vedi prima riga)'!$R$25 -> 0 | G59: ='inter.legale (vedi prima riga)'!$V$25 -> 0 | H59: ='inter.legale (vedi prima riga)'!$Z$25 -> 0 | I59: ='inter.legale (vedi prima riga)'!$AD$25 -> 0 | J59: ='inter.legale (vedi prima riga)'!$AH$25 -> 0
A60: n2) | B60: Totale versam.contrib.e interessi cod.trib.3012 (n2=g2+m2) | F60: =IF(F$54<>0,SUM(F$54,F$59),0) -> 0 | G60: =IF(G$54<>0,SUM(G$54,G$59),0) -> 0 | H60: =IF(H$54<>0,SUM(H$54,H$59),0) -> 0 | I60: =IF(I$54<>0,SUM(I$54,I$59),0) -> 0 | J60: =IF(J$54<>0,SUM(J$54,J$59),0) -> 0
B61: Interesse (dietim giornaliero) per ogni giorno successivo alla data di versamento indicata (cod. 3010) | F61: ='inter.legale (vedi prima riga)'!$R$26 -> 0 | G61: ='inter.legale (vedi prima riga)'!$V$26 -> 0 | H61: ='inter.legale (vedi prima riga)'!$Z$26 -> 0 | I61: ='inter.legale (vedi prima riga)'!$AD$26 -> 0 | J61: ='inter.legale (vedi prima riga)'!$AH$26 -> 0

Sheet contr.biennio(vedi prima riga)
A1: ="CONTRIBUTO DI REVISIONE BIENNALE PER IL BIENNIO " & LEFT(RIGHT(menù!$A$4,10),9) -> CONTRIBUTO DI REVISIONE BIENNALE PER IL BIENNIO 2015-2016
A2: DIGITARE solo i dati nelle celle bianche, esprimendo gli importi in €uro con 2 decimali | I2: Indice fascia | J2: fascia risultante
A3: =IF(AND(ragionesociale<>"",MID(CELL("nomefile",ragionesociale),FIND("[",CELL("nomefile",ragionesociale))-6,6)<>"Varie\",MID(CELL("nomefile",ragionesociale),1,34)="C:\Documenti\Cooperative associate"),"Progressivo " & MID(CELL("nomefile",ragionesociale),FIND("-",CELL("nomefile",ragionesociale))-3,3),"") ->  | D3: Ragione sociale: | E3: =ragionesociale -> 0 | H3: fascia per n° soci | I3: =IF($A$12<>"",MATCH($A$12,$B$6:$D$6,1),"") -> 1 | J3: =IF(AND($A$12="",$B$12="",$C$12=""),"",IF(AND($A$12<>"",$B$12<>"",$C$12<>""),INDEX($B$4:$F$4,MAX($I$3:$I$5)),"Mancano dati")) -> A
A4: Fasce: | B4: ="A" -> A | C4: ="B" -> B | D4: ="C" -> C | E4: ="D" -> D | F4: ="E" -> E | H4: fascia per capitale | I4: =IF($B$12<>"",MATCH($B$12,$B$7:$D$7,1),"") -> 1
B5: a partire da | C5: a partire da | D5: a partire da | E5: a partire da | F5: a partire da | H5: fascia per fatturato | I5: =IF($C$12<>"",MATCH($C$12,$B$8:$F$8,1),"") -> 1
A6: Numero soci: | B6: 0 | C6: 101 | D6: 501 | E6: 501 | F6: 501 | I6: contributo base | J6: =IF(AND($I$3<>"",$I$4<>"",$I$5<>""),ROUND(INDEX($B$9:$F$9,MAX($I$3:$I$5)),0),"") -> 280
A7: Capitale sociale versato: | B7: 0 | C7: 5160.01 | D7: 40000.01 | E7: 40000.01 | F7: 40000.01
A8: Fatturato: | B8: 0 | C8: 75000.01 | D8: 300000.01 | E8: 1000000.01 | F8: 2000000.01
A9: Contributo: | B9: 280 | C9: 680 | D9: 1350 | E9: 1730 | F9: 2380
B10: P A R A M E T R I A L 31.12.2012:
A11: Numero soci | B11: Cap.soc.vers. | C11: Valore della produzione: | D11: Fascia
A12: 10 | B12: 1000 | C12: 10000 | D12: =$J$3 -> A
A13: CONTRIBUTO IN RELAZIONE ALLA FASCIA | D13: (a) | E13: =IF(AND($D$23<>"",$I$30-$D$23>=0),$B$9,$J$6) -> 280
A14: MAGGIORAZIONE in relazione alla tipologia della cooperativa:
A15: DIGITARE uno dei seguenti numeri, a seconda del caso, se ricorre: 1 2 3 4 5 | G15: =IF(AND(F15<>1,F15<>2,F15<>3,F15<>4,F15<>5,F15<>""),"numero errato","") -> 
A16: 1 - Ispezionabili annualmente per valore della produzione,
A17: per possesso azioni di controllo su Srl o Spa,
A18: per dimensione, riserve o prestiti sociali - art.15 L. 59/92.
A19: 2 - Enti Cooperativi Edilizi non iscritti relativo albo (art. 13 L.59/92).
A20: 3 - Ispezionabili annualmente: Enti Cooperativi Edilizi iscritti albo (art. 13 L.59/92) con progr.già avviato o realizzato.
A21: 4 - Ispezionabili annualmente: Enti Cooperativi Edilizi iscritti albo (art. 13 L.59/92) con programma non ancora avviato.
A22: 5 - Ispezionabili annualmente: Enti Cooperativi Sociali.
A23: Enti Cooperativi in liquidazione dal
A24: =IF(OR($F$15=1,$F$15=3),"Aumento contr.base 50%",IF($F$15=5,"Aumento contr.base 30% (Coop.Sociali, ecc.)","")) ->  | D24: =IF(OR($F$15=1,$F$15=3),"(b=a+50%*a)",IF($F$15=5,"(b=a+30%*a)","(b)")) -> (b) | E24: =IF(OR($F$15=1,$F$15=3),ROUND($E$13*50%,2),IF($F$15=5,ROUND($E$13*30%,2),0)) -> 0
A25: TOTALE parziale (codice tributo: 3010) | E25: ="(c=a+b)" -> (c=a+b) | F25: =IF(SUM($E$13,$E$24)<>0,SUM($E$13,$E$24),0) -> 280
A26: Aumento 10% (coop. Edilizie; codice tributo 3011) | E26: =IF(OR($F$15=2,$F$15=3,$F$15=4),"(d=10%*c)","(d)") -> (d) | F26: =IF(OR($F$15=2,$F$15=3,$F$15=4),$F$25*10%,0) -> 0
A27: TOTALE contributo dovuto | F27: =IF($G$27<>"errore","(e=c+d)","") -> (e=c+d) | G27: =SUM($F$25,$F$26) -> 280
A28: INTERESSI e SANZIONE DOVUTI PER IL BIENNIO | G28: =RIGHT($A$1,4)-5 & "-" & RIGHT($A$1,4)-4 -> 2011-2012 | H28: =RIGHT($A$1,4)-3 & "-" & RIGHT($A$1,4)-2 -> 2013-2014 | I28: =RIGHT($A$1,9) -> 2015-2016
B29: data di pubblicazione D.M. 20 gennaio 2015 | G29: 2011-04-11 | H29: 2013-04-16 | I29: 2015-03-30
A30: f1) | B30: termine ultimo per il versam. (90 giorni dopo la pubblicazione del D.M. 07.02.2013) | G30: =IF(WEEKDAY(G$29+90)=1,G$29+91,IF(WEEKDAY(G$29+90)=7,G$29+92,G$29+90)) -> 2011-07-11 | H30: =IF(WEEKDAY(H$29+90)=1,H$29+91,IF(WEEKDAY(H$29+90)=7,H$29+92,H$29+90)) -> 2013-07-15 | I30: =IF(I$29<>"",IF(WEEKDAY(I$29+90)=1,I$29+91,IF(WEEKDAY(I$29+90)=7,I$29+92,I$29+90)),"") -> 2015-06-29
A31: Se cooperativa di nuova costituzione:
B32: data di iscrizione nel Registro delle Imprese
A33: f11) | B33: termine ultimo per il versam. (90 giorni dopo la data di iscrizione nel Registro delle Imprese) | G33: =IF(G$32<>"",IF(WEEKDAY(G$32+90)=1,G$32+91,IF(WEEKDAY(G$32+90)=7,G$32+92,G$32+90)),0) -> 00:00:00 | H33: =IF(H$32<>"",IF(WEEKDAY(H$32+90)=1,H$32+91,IF(WEEKDAY(H$32+90)=7,H$32+92,H$32+90)),0) -> 00:00:00 | I33: =IF(I$32<>"",IF(WEEKDAY(I$32+90)=1,I$32+91,IF(WEEKDAY(I$32+90)=7,I$32+92,I$32+90)),0) -> 00:00:00
A34: g1) | B34: contributo biennale di revisione | I34: =G27 -> 280
A35: i1) | B35: data versamento
A36: l1) | B36: giorni per calcolo interessi (l1=i1-f1 oppure f11) | G36: =IF(AND(G$35<>"",G$35>MAX(G$30,G$33)),'inter.legale(vedi prima riga)'!E25,"") ->  | H36: =IF(AND(H$35<>"",H$35>MAX(H$30,H$33)),'inter.legale(vedi prima riga)'!I25,"") ->  | I36: =IF(AND(I$35<>"",I$35>MAX(I$30,I$33)),'inter.legale(vedi prima riga)'!M25,"") -> 
A37: m1) | B37: inter.su contr.e maggior.(escluso 10% coop.edil.)(m1) | G37: =IF(G36<>"",'inter.legale(vedi prima riga)'!$F$25,0) -> 0 | H37: =IF(H36<>"",'inter.legale(vedi prima riga)'!$J$25,0) -> 0 | I37: =IF(I36<>"",'inter.legale(vedi prima riga)'!$N$25,0) -> 0
A38: n1) | B38: Totale versamento contributo magg.e interessi codice tributo 3010 (n1=g1+l1+m1) | G38: =IF(G$34<>"",SUM(G$34,G$37),0) -> 0 | H38: =IF(H$34<>"",SUM(H$34,H$37),0) -> 0 | I38: =IF(I$34<>"",SUM(I$34,I$37),0) -> 280
B39: Interesse (dietim giornaliero) per ogni giorno successivo alla data di versamento indicata (cod. 3010) | G39: =IF(G$36<>"",'inter.legale(vedi prima riga)'!$F$26,0) -> 0 | H39: =IF(H$36<>"",'inter.legale(vedi prima riga)'!$J$26,0) -> 0 | I39: =IF(I$36<>"",'inter.legale(vedi prima riga)'!$N$26,0) -> 0
A40: o1) | B40: maggiorazione 10% dovute dalle cooperative edilizie | I40: =IF($F$26<>0,$F$26,0) -> 0
A41: p1) | B41: interessi sulla maggiorazione 10% (p1) | G41: =IF(G$34<>0,G$37/G$34*G$40,0) -> 0 | H41: =IF(H$34<>0,H$37/H$34*H$40,0) -> 0 | I41: =IF(I$34<>0,I$37/I$34*I$40,0) -> 0
A42: q1) | B42: Totale versam.maggior.10% coop.edil.e inter.codice tributo 3011 (q1=o1+p1) | G42: =IF(G$40<>0,SUM(G$40,G$41),0) -> 0 | H42: =IF(H$40<>0,SUM(H$40,H$41),0) -> 0 | I42: =IF(I$40<>0,SUM(I$40,I$41),0) -> 0
B43: Interesse dovuto (cod. 3011) per ogni giorno successivo alla data di versamento indicata | G43: =IF(G$40<>0,G$40*G$39/G$34,0) -> 0 | H43: =IF(H$40<>0,H$40*H$39/H$34,0) -> 0 | I43: =IF(I$40<>0,I$40*I$39/I$34,0) -> 0
A44: r1) | B44: sanzione rel.cod.trib. 3010 e 3011: 5% cod.trib. 3014 (pagamento entro 30 gg) | G44: =IF(AND(G$34<>0,G$35<>""),IF(AND(G$35-IF(G$32<>"",G$33,G$30)<=30,G$35-IF(G$32<>"",G$33,G$30)>0),5%*(G$34+G$40),0),0) -> 0 | H44: =IF(AND(H$34<>0,H$35<>""),IF(AND(H$35-IF(H$32<>"",H$33,H$30)<=30,H$35-IF(H$32<>"",H$33,H$30)>0),5%*(H$34+H$40),0),0) -> 0 | I44: =IF(AND(I$34<>0,I$35<>""),IF(AND(I$35-IF(I$32<>"",I$33,I$30)<=30,I$35-IF(I$32<>"",I$33,I$30)>0),5%*(I$34+I$40),0),0) -> 0
A45: s1) | B45: sanzione rel.cod.trib. 3010 e 3011: 15% cod.trib. 3014 (pagamento dopo 30 gg) | G45: =IF(AND(G$34<>0,G$35<>""),IF(AND(G$35-IF(G$32<>"",G$33,G$30)>30,G$35-IF(G$32<>"",G$33,G$30)>0),15%*(G$34+G$40),0),0) -> 0 | H45: =IF(AND(H$34<>0,H$35<>""),IF(AND(H$35-IF(H$32<>"",H$33,H$30)>30,H$35-IF(H$32<>"",H$33,H$30)>0),15%*(H$34+H$40),0),0) -> 0 | I45: =IF(AND(I$34<>0,I$35<>""),IF(AND(I$35-IF(I$32<>"",I$33,I$30)>30,I$35-IF(I$32<>"",I$33,I$30)>0),15%*(I$34+I$40),0),0) -> 0
A46: t1) | B46: Totale versamento (t1=n1+q1+r1+s1) | G46: =IF(G$27<>0,SUM(G$38,G$42:G$45),0) -> 0 | H46: =IF(G$27<>0,SUM(H$38,H$42:H$45),0) -> 0 | I46: =IF(G$27<>0,SUM(I$38,I$42:I$45),0) -> 280
A47: CONTRIBUTO 3% DOVUTO (L. 59/1992 art. 11) | F47: =G47-1 -> 2011 | G47: =H47-1 -> 2012 | H47: =I47-1 -> 2013 | I47: =J47-1 -> 2014 | J47: =RIGHT($A$1,4)-1 -> 2015
A48: a2) | B48: risultato dell'esercizio
A49: b2) | B49: eventuali preaccantonamenti a riserva indivisibile
A50: c2) | B50: eventuali preaccantonamenti art. 11 L. n° 59
A51: d2) | B51: eventuali perdite di esercizio
A52: e2) | B52: eventuali ristorni
A53: f2) | B53: Totale imponibile [f2=3%*(a2+b2+c2-d2-e2)] | F53: =IF(AND(OR(F48<>"",F49<>"",F50<>"",F51<>"",F52<>""),SUM(F48:F50)-F51-F52>0),SUM(F48:F50)-F51-F52,0) -> 0 | G53: 0 | H53: 0 | I53: =IF(AND(OR(I48<>"",I49<>"",I50<>"",I51<>"",I52<>""),SUM(I48:I50)-I51-I52>0),SUM(I48:I50)-I51-I52,0) -> 0 | J53: =IF(AND(OR(J48<>"",J49<>"",J50<>"",J51<>"",J52<>""),SUM(J48:J50)-J51-J52>0),SUM(J48:J50)-J51-J52,0) -> 0
A54: g2) | B54: Contributo dovuto ai fondi mutualistici (g2=3%*f2) | F54: =IF(F53<>0,3%*F53,0) -> 0 | G54: =IF(G53<>0,3%*G53,0) -> 0 | H54: =IF(H53<>0,3%*H53,0) -> 0 | I54: =IF(I53>0,3%*I53,0) -> 0 | J54: =IF(J53>0,3%*J53,0) -> 0
B55: data di approvazione del bilancio d'esercizio
A56: h2) | B56: data ultima per vers.(1=30/10 oppure 2=300 giorni, vedi nota) | F56: =IF(F55<>"",IF($E56=1,DATE(YEAR(F55),10,30),IF($E56=2,F55+300,"comunicato dato errato nella cella bianca a sinistra")),0) -> 00:00:00 | G56: =IF(G55<>"",IF($E56=1,DATE(YEAR(G55),10,30),IF($E56=2,G55+300,"comunicato dato errato nella cella bianca a sinistra")),0) -> 00:00:00 | H56: =IF(H55<>"",IF($E56=1,DATE(YEAR(H55),10,30),IF($E56=2,H55+300,"comunicato dato errato nella cella bianca a sinistra")),0) -> 00:00:00 | I56: =IF(I55<>"",IF($E56=1,DATE(YEAR(I55),10,30),IF($E56=2,I55+300,"comunicato dato errato nella cella bianca a sinistra")),0) -> 00:00:00 | J56: =IF(J55<>"",IF($E56=1,DATE(YEAR(J55),10,30),IF($E56=2,J55+300,"comunicato dato errato nella cella bianca a sinistra")),0) -> 00:00:00
A57: i2) | B57: data versamento
A58: l2) | B58: giorni per calcolo interessi (l2=i2-h2) | F58: =IF(F57-F56<=0,0,F57-F56) -> 0 | G58: =IF(G57-G56<=0,0,G57-G56) -> 0 | H58: =IF(H57-H56<=0,0,H57-H56) -> 0 | I58: =IF(I57-I56<=0,0,I57-I56) -> 0 | J58: =IF(J57-J56<=0,0,J57-J56) -> 0
A59: m2) | B59: interessi | F59: ='inter.legale(vedi prima riga)'!$R$25 -> 0 | G59: ='inter.legale(vedi prima riga)'!$V$25 -> 0 | H59: ='inter.legale(vedi prima riga)'!$Z$25 -> 0 | I59: ='inter.legale(vedi prima riga)'!$AD$25 -> 0 | J59: ='inter.legale(vedi prima riga)'!$AH$25 -> 0
A60: n2) | B60: Totale versam.contrib.e interessi cod.trib.3012 (n2=g2+m2) | F60: =IF(F$54<>0,SUM(F$54,F$59),0) -> 0 | G60: =IF(G$54<>0,SUM(G$54,G$59),0) -> 0 | H60: =IF(H$54<>0,SUM(H$54,H$59),0) -> 0 | I60: =IF(I$54<>0,SUM(I$54,I$59),0) -> 0 | J60: =IF(J$54<>0,SUM(J$54,J$59),0) -> 0
B61: Interesse (dietim giornaliero) per ogni giorno successivo alla data di versamento indicata (cod. 3010) | F61: ='inter.legale(vedi prima riga)'!$R$26 -> 0 | G61: ='inter.legale(vedi prima riga)'!$V$26 -> 0 | H61: ='inter.legale(vedi prima riga)'!$Z$26 -> 0 | I61: ='inter.legale(vedi prima riga)'!$AD$26 -> 0 | J61: ='inter.legale(vedi prima riga)'!$AH$26 -> 0

Sheet integrazione (vedi prima riga)
A1: =IF(AND(ragionesociale<>"",MID(CELL("nomefile",ragionesociale),FIND("[",CELL("nomefile",ragionesociale))-6,6)<>"Varie\",MID(CELL("nomefile",ragionesociale),1,34)="C:\Documenti\Cooperative associate"),"Progressivo " & MID(CELL("nomefile",ragionesociale),FIND("-",CELL("nomefile",ragionesociale))-3,3),"") ->  | E1: Ragione sociale: | G1: =ragionesociale -> 0
A2: ="INTEGRAZIONE CONTRIBUTO BIENNALE PER IL BIENNIO " & LEFT(RIGHT(menù!$A$3,10),9) -> INTEGRAZIONE CONTRIBUTO BIENNALE PER IL BIENNIO 2017-2018
A3: biennio | B3: tributo | D3: tributi pagati il | E3: tributi dovuti al | F3: differenze dovute al | G3: differenze da versare il | H3: da riportare sul modello F24 (per le coop. non aderenti) o sul bonifico (per le coop. aderenti
A4: =IF('contr.biennio (vedi prima riga)'!$I$34<>0,'contr.biennio (vedi prima riga)'!$I$28,"") ->  | B4: codice | D4: =IF('contr.biennio (vedi prima riga)'!$I$35<>"",'contr.biennio (vedi prima riga)'!$I$35,"") ->  | E4: =D4 ->  | F4: =D4 ->  | H4: importi | I4: cod.tributo | J4: anno
B5: 3010 | C5: contributo | E5: ='contr.biennio (vedi prima riga)'!$I$34 -> 0 | F5: =E5-D5 -> 0 | G5: =IF(AND($F5<>0,G4<>""),ROUND($F5*(1+INDEX('inter.legale (vedi prima riga)'!$B$9:$B$202,MATCH(G4,'inter.legale (vedi prima riga)'!$A$9:$A$202,1))/100/365*(G4-'contr.biennio (vedi prima riga)'!$I$35)),2),0) -> 0 | H5: =SUM($G5:$G6) -> 0 | I5: =IF($G5<>0,$B5,"") ->  | J5: =IF(OR($G5<>0,$G7<>0,$G9<>0),LEFT($A4,4),"") -> 
C6: interessi | E6: ='contr.biennio (vedi prima riga)'!$I$37 -> 0 | F6: =E6 -> 0 | G6: =F6 -> 0
B7: 3011 | C7: contributo | E7: ='contr.biennio (vedi prima riga)'!$I$40 -> 0 | F7: =E7-D7 -> 0 | G7: =IF(AND($F7<>0,G4<>""),ROUND($F7*(1+INDEX('inter.legale (vedi prima riga)'!$B$9:$B$202,MATCH(G4,'inter.legale (vedi prima riga)'!$A$9:$A$202,1))/100/365*(G4-'contr.biennio (vedi prima riga)'!$I$35)),2),0) -> 0 | H7: =SUM($G7:$G8) -> 0 | I7: =IF($G7<>0,$B7,"") -> 
C8: interessi | E8: ='contr.biennio (vedi prima riga)'!$I$41 -> 0 | F8: =E8 -> 0 | G8: =F8 -> 0
B9: 3014 | C9: sanzione | E9: =IF('contr.biennio (vedi prima riga)'!$I$44<>0,'contr.biennio (vedi prima riga)'!$I$44,'contr.biennio (vedi prima riga)'!$I$45) -> 0 | F9: =E9-D9 -> 0 | G9: =IF(AND($F9<>0,G4<>""),ROUND($F9,2),0) -> 0 | H9: =G9 -> 0 | I9: =IF($G9<>0,$B9,"") -> 
B10: Totali | D10: =SUM(D$5:D9) -> 0 | E10: =SUM(E$5:E9) -> 0 | F10: =SUM(F$5:F9) -> 0 | G10: =SUM(G$5:G9) -> 0 | H10: =SUM(H$5:H9) -> 0
A11: biennio | B11: tributo | D11: tributi pagati il | E11: tributi dovuti al | F11: differenze dovute al | G11: differenze da versare il | H11: da riportare sul modello F24 (per le coop. non aderenti) o sul bonifico (per le coop. aderenti
A12: =IF('contr.biennio (vedi prima riga)'!$H$34<>"",'contr.biennio (vedi prima riga)'!$H$28,"") ->  | B12: codice | D12: =IF('contr.biennio (vedi prima riga)'!$H$35<>"",'contr.biennio (vedi prima riga)'!$H$35,"") ->  | E12: =D12 ->  | F12: =D12 ->  | H12: importi | I12: cod.tributo | J12: anno
B13: 3010 | C13: contributo | E13: ='contr.biennio (vedi prima riga)'!$H$34 -> 0 | F13: =E13-D13 -> 0 | G13: =IF(AND($F13<>0,G12<>""),ROUND($F13*(1+INDEX('inter.legale (vedi prima riga)'!$B$9:$B$202,MATCH(G12,'inter.legale (vedi prima riga)'!$A$9:$A$202,1))/100/365*(G12-'contr.biennio (vedi prima riga)'!$H$35)),2),0) -> 0 | H13: =SUM($G13:$G14) -> 0 | I13: =IF($G13<>0,$B13,"") ->  | J13: =IF(OR($G13<>0,$G15<>0,$G17<>0),LEFT($A12,4),"") -> 
C14: interessi | E14: ='contr.biennio (vedi prima riga)'!$H$37 -> 0 | F14: =E14 -> 0 | G14: =F14 -> 0
B15: 3011 | C15: contributo | E15: ='contr.biennio (vedi prima riga)'!$H$40 -> 0 | F15: =E15-D15 -> 0 | G15: =IF(AND($F15<>0,G12<>""),ROUND($F15*(1+INDEX('inter.legale (vedi prima riga)'!$B$9:$B$202,MATCH(G12,'inter.legale (vedi prima riga)'!$A$9:$A$202,1))/100/365*(G12-'contr.biennio (vedi prima riga)'!$H$35)),2),0) -> 0 | H15: =SUM($G15:$G16) -> 0 | I15: =IF($G15<>0,$B15,"") -> 
C16: interessi | E16: ='contr.biennio (vedi prima riga)'!$H$41 -> 0 | F16: =E16 -> 0 | G16: =F16 -> 0
B17: 3014 | C17: sanzione | E17: =IF('contr.biennio (vedi prima riga)'!$H$44<>0,'contr.biennio (vedi prima riga)'!$H$44,'contr.biennio (vedi prima riga)'!$H$45) -> 0 | F17: =E17-D17 -> 0 | G17: =IF(AND($F17<>0,G12<>""),ROUND($F17,2),0) -> 0 | H17: =G17 -> 0 | I17: =IF($G17<>0,$B17,"") -> 
B18: Totali | D18: =SUM(D$13:D17) -> 0 | E18: =SUM(E$13:E17) -> 0 | F18: =SUM(F$13:F17) -> 0 | G18: =SUM(G$13:G17) -> 0 | H18: =SUM(H$13:H17) -> 0
A19: biennio | B19: tributo | D19: tributi pagati il | E19: tributi dovuti al | F19: differenze dovute al | G19: differenze da versare il | H19: da riportare sul modello F24 (per le coop. non aderenti) o sul bonifico (per le coop. aderenti
A20: =IF('contr.biennio (vedi prima riga)'!$G$34<>"",'contr.biennio (vedi prima riga)'!$G$28,"") ->  | B20: codice | D20: =IF('contr.biennio (vedi prima riga)'!$G$35<>"",'contr.biennio (vedi prima riga)'!$G$35,"") ->  | E20: =D20 ->  | F20: =D20 ->  | H20: importi | I20: cod.tributo | J20: anno
B21: 3010 | C21: contributo | E21: ='contr.biennio (vedi prima riga)'!$G$34 -> 0 | F21: =E21-D21 -> 0 | G21: =IF(AND($F21<>0,G20<>""),ROUND($F21*(1+INDEX('inter.legale (vedi prima riga)'!$B$9:$B$202,MATCH(G20,'inter.legale (vedi prima riga)'!$A$9:$A$202,1))/100/365*(G20-'contr.biennio (vedi prima riga)'!$G$35)),2),0) -> 0 | H21: =SUM($G21:$G22) -> 0 | I21: =IF($G21<>0,$B21,"") ->  | J21: =IF(OR($G21<>0,$G23<>0,$G25<>0),LEFT($A20,4),"") -> 
C22: interessi | E22: ='contr.biennio (vedi prima riga)'!$G$37 -> 0 | F22: =E22 -> 0 | G22: =F22 -> 0
B23: 3011 | C23: contributo | E23: ='contr.biennio (vedi prima riga)'!$G$40 -> 0 | F23: =E23-D23 -> 0 | G23: =IF(AND($F23<>0,G20<>""),ROUND($F23*(1+INDEX('inter.legale (vedi prima riga)'!$B$9:$B$202,MATCH(G20,'inter.legale (vedi prima riga)'!$A$9:$A$202,1))/100/365*(G20-'contr.biennio (vedi prima riga)'!$G$35)),2),0) -> 0 | H23: =SUM($G23:$G24) -> 0 | I23: =IF($G23<>0,$B23,"") -> 
C24: interessi | E24: ='contr.biennio (vedi prima riga)'!$G$41 -> 0 | F24: =E24 -> 0 | G24: =F24 -> 0
B25: 3014 | C25: sanzione | E25: =IF('contr.biennio (vedi prima riga)'!$G$44<>0,'contr.biennio (vedi prima riga)'!$G$44,'contr.biennio (vedi prima riga)'!$G$45) -> 0 | F25: =E25-D25 -> 0 | G25: =IF(AND($F25<>0,G20<>""),ROUND($F25,2),0) -> 0 | H25: =G25 -> 0 | I25: =IF($G25<>0,$B25,"") -> 
B26: Totali | D26: =SUM(D$21:D25) -> 0 | E26: =SUM(E$21:E25) -> 0 | F26: =SUM(F$21:F25) -> 0 | G26: =SUM(G$21:G25) -> 0 | H26: =SUM(H$21:H25) -> 0
A27: INTEGRAZIONE CONTRIBUTO 3%
A28: codice tributo | B28: esercizio | D28: tributi pagati il | E28: tributi dovuti al | F28: differenze dovute al | G28: differenze da versare il | H28: da riportare sul modello F24 (per le coop. non aderenti) o sul bonifico (per le coop. aderenti
A29: 3012 | B29: =IF('contr.biennio (vedi prima riga)'!$H$54<>0,'contr.biennio (vedi prima riga)'!$H$47,"") ->  | D29: ='contr.biennio (vedi prima riga)'!$H$57 -> 00:00:00 | E29: =D29 -> 00:00:00 | F29: =D29 -> 00:00:00 | H29: importi | I29: cod.tributo | J29: anno
C30: contributo | E30: =IF(E$29<>"",'contr.biennio (vedi prima riga)'!$H$54,0) -> 0 | F30: =E30-D30 -> 0 | G30: =IF($G$29<>"",ROUND($F$30*(1+INDEX('inter.legale (vedi prima riga)'!$B$9:$B$202,MATCH($G$29,'inter.legale (vedi prima riga)'!$A$9:$A$202,1))/100/365*($G$29-'contr.biennio (vedi prima riga)'!$H$57)),2),0) -> 0 | H30: =SUM(G30:G31) -> 0 | I30: =IF(OR($G$30<>0,$G$31<>0,$G$33<>0,$G$34<>0,$G$36<>0,$G$37<>0),$A$29,"") ->  | J30: =IF(OR($G$30<>0,$G$31<>0),$B$29,"") -> 
C31: interessi | E31: =IF(E$29<>"",'contr.biennio (vedi prima riga)'!$H$59,0) -> 0 | F31: =E31 -> 0 | G31: =F31 -> 0
B32: =IF('contr.biennio (vedi prima riga)'!$I$54<>0,'contr.biennio (vedi prima riga)'!$I$47,"") ->  | D32: ='contr.biennio (vedi prima riga)'!$I$57 -> 00:00:00 | E32: =D32 -> 00:00:00 | F32: =D32 -> 00:00:00
C33: contributo | E33: =IF(E$32<>"",'contr.biennio (vedi prima riga)'!$I$54,0) -> 0 | F33: =E33-D33 -> 0 | G33: =IF($G$29<>"",ROUND($F$33*(1+INDEX('inter.legale (vedi prima riga)'!$B$9:$B$202,MATCH($G$29,'inter.legale (vedi prima riga)'!$A$9:$A$202,1))/100/365*($G$29-'contr.biennio (vedi prima riga)'!$I$57)),2),0) -> 0 | H33: =SUM(G33:G34) -> 0 | J33: =IF(OR($G$33<>0,$G$34<>0),$B$32,"") -> 
C34: interessi | E34: =IF(E$32<>"",'contr.biennio (vedi prima riga)'!$I$59,0) -> 0 | F34: =E34 -> 0 | G34: =F34 -> 0
B35: =IF('contr.biennio (vedi prima riga)'!$J$54<>0,'contr.biennio (vedi prima riga)'!$J$47,"") ->  | D35: ='contr.biennio (vedi prima riga)'!$J$57 -> 00:00:00 | E35: =D35 -> 00:00:00 | F35: =D35 -> 00:00:00
C36: contributo | E36: =IF(E$35<>"",'contr.biennio (vedi prima riga)'!$J$54,0) -> 0 | F36: =E36-D36 -> 0 | G36: =IF($G$29<>"",ROUND($F$36*(1+INDEX('inter.legale (vedi prima riga)'!$B$9:$B$202,MATCH($G$29,'inter.legale (vedi prima riga)'!$A$9:$A$202,1))/100/365*($G$29-'contr.biennio (vedi prima riga)'!$J$57)),2),0) -> 0 | H36: =SUM(G36:G37) -> 0 | J36: =IF(OR($G$36<>0,$G$37<>0),$B$35,"") -> 
C37: interessi | E37: =IF(E$35<>"",'contr.biennio (vedi prima riga)'!$J$59,0) -> 0 | F37: =E37 -> 0 | G37: =F37 -> 0
A38: Totale | D38: =SUM(SUM(D$30:D$31),SUM(D$33:D$34),SUM(D$36:D$37)) -> 0 | E38: =SUM(SUM(E$30:E$31),SUM(E$33:E$34),SUM(E$36:E$37)) -> 0 | F38: =SUM(SUM(F$30:F$31),SUM(F$33:F$34),SUM(F$36:F$37)) -> 0 | G38: =SUM(SUM(G$30:G$31),SUM(G$33:G$34),SUM(G$36:G$37)) -> 0 | H38: =SUM(SUM(H$30:H$31),SUM(H$33:H$34),SUM(H$36:H$37)) -> 0
A39: Totale complessivo | D39: =SUM(D$10, D$18,D$26,D$38) -> 0 | E39: =SUM(E$10, E$18,E$26,E$38) -> 0 | F39: =SUM(F$10, F$18,F$26,F$38) -> 0 | G39: =SUM(G$10, G$18,G$26,G$38) -> 0 | H39: =SUM(H$10, H$18,H$26,H$38) -> 0

Sheet integrazione(vedi prima riga)
A1: =IF(AND(ragionesociale<>"",MID(CELL("nomefile",ragionesociale),FIND("[",CELL("nomefile",ragionesociale))-6,6)<>"Varie\",MID(CELL("nomefile",ragionesociale),1,34)="C:\Documenti\Cooperative associate"),"Progressivo " & MID(CELL("nomefile",ragionesociale),FIND("-",CELL("nomefile",ragionesociale))-3,3),"") ->  | E1: Ragione sociale: | G1: =ragionesociale -> 0
A2: ="INTEGRAZIONE CONTRIBUTO BIENNALE PER IL BIENNIO " & LEFT(RIGHT(menù!$A$4,10),9) -> INTEGRAZIONE CONTRIBUTO BIENNALE PER IL BIENNIO 2015-2016
A3: biennio | B3: tributo | D3: tributi pagati il | E3: tributi dovuti al | F3: differenze dovute al | G3: differenze da versare il | H3: da riportare sul modello F24 (per le coop. non aderenti) o sul bonifico (per le coop. aderenti
A4: =IF('contr.biennio(vedi prima riga)'!$I$34<>0,'contr.biennio(vedi prima riga)'!$I$28,"") -> 2015-2016 | B4: codice | D4: =IF('contr.biennio(vedi prima riga)'!$I$35<>"",'contr.biennio(vedi prima riga)'!$I$35,"") ->  | E4: =D4 ->  | F4: =D4 ->  | H4: importi | I4: cod.tributo | J4: anno
B5: 3010 | C5: contributo | E5: ='contr.biennio(vedi prima riga)'!$I$34 -> 280 | F5: =E5-D5 -> 280 | G5: =IF(AND($F5<>0,G4<>""),ROUND($F5*(1+INDEX('inter.legale (vedi prima riga)'!$B$9:$B$202,MATCH(G4,'inter.legale (vedi prima riga)'!$A$9:$A$202,1))/100/365*(G4-'contr.biennio(vedi prima riga)'!$I$35)),2),0) -> 0 | H5: =SUM($G5:$G6) -> 0 | I5: =IF($G5<>0,$B5,"") ->  | J5: =IF(OR($G5<>0,$G7<>0,$G9<>0),LEFT($A4,4),"") -> 
C6: interessi | E6: ='contr.biennio(vedi prima riga)'!$I$37 -> 0 | F6: =E6 -> 0 | G6: =F6 -> 0
B7: 3011 | C7: contributo | E7: ='contr.biennio(vedi prima riga)'!$I$40 -> 0 | F7: =E7-D7 -> 0 | G7: =IF(AND($F7<>0,G4<>""),ROUND($F7*(1+INDEX('inter.legale (vedi prima riga)'!$B$9:$B$202,MATCH(G4,'inter.legale (vedi prima riga)'!$A$9:$A$202,1))/100/365*(G4-'contr.biennio(vedi prima riga)'!$I$35)),2),0) -> 0 | H7: =SUM($G7:$G8) -> 0 | I7: =IF($G7<>0,$B7,"") -> 
C8: interessi | E8: ='contr.biennio(vedi prima riga)'!$I$41 -> 0 | F8: =E8 -> 0 | G8: =F8 -> 0
B9: 3014 | C9: sanzione | E9: =IF('contr.biennio(vedi prima riga)'!$I$44<>0,'contr.biennio(vedi prima riga)'!$I$44,'contr.biennio(vedi prima riga)'!$I$45) -> 0 | F9: =E9-D9 -> 0 | G9: =IF(AND($F9<>0,G4<>""),ROUND($F9,2),0) -> 0 | H9: =G9 -> 0 | I9: =IF($G9<>0,$B9,"") -> 
B10: Totali | D10: =SUM(D$5:D9) -> 0 | E10: =SUM(E$5:E9) -> 280 | F10: =SUM(F$5:F9) -> 280 | G10: =SUM(G$5:G9) -> 0 | H10: =SUM(H$5:H9) -> 0
A11: biennio | B11: tributo | D11: tributi pagati il | E11: tributi dovuti al | F11: differenze dovute al | G11: differenze da versare il | H11: da riportare sul modello F24 (per le coop. non aderenti) o sul bonifico (per le coop. aderenti
A12: =IF('contr.biennio(vedi prima riga)'!$H$34<>"",'contr.biennio(vedi prima riga)'!$H$28,"") ->  | B12: codice | D12: =IF('contr.biennio(vedi prima riga)'!$H$35<>"",'contr.biennio(vedi prima riga)'!$H$35,"") ->  | E12: =D12 ->  | F12: =D12 ->  | H12: importi | I12: cod.tributo | J12: anno
B13: 3010 | C13: contributo | E13: ='contr.biennio(vedi prima riga)'!$H$34 -> 0 | F13: =E13-D13 -> 0 | G13: =IF(AND($F13<>0,G12<>""),ROUND($F13*(1+INDEX('inter.legale (vedi prima riga)'!$B$9:$B$202,MATCH(G12,'inter.legale (vedi prima riga)'!$A$9:$A$202,1))/100/365*(G12-'contr.biennio(vedi prima riga)'!$H$35)),2),0) -> 0 | H13: =SUM($G13:$G14) -> 0 | I13: =IF($G13<>0,$B13,"") ->  | J13: =IF(OR($G13<>0,$G15<>0,$G17<>0),LEFT($A12,4),"") -> 
C14: interessi | E14: ='contr.biennio(vedi prima riga)'!$H$37 -> 0 | F14: =E14 -> 0 | G14: =F14 -> 0
B15: 3011 | C15: contributo | E15: ='contr.biennio(vedi prima riga)'!$H$40 -> 0 | F15: =E15-D15 -> 0 | G15: =IF(AND($F15<>0,G12<>""),ROUND($F15*(1+INDEX('inter.legale (vedi prima riga)'!$B$9:$B$202,MATCH(G12,'inter.legale (vedi prima riga)'!$A$9:$A$202,1))/100/365*(G12-'contr.biennio(vedi prima riga)'!$H$35)),2),0) -> 0 | H15: =SUM($G15:$G16) -> 0 | I15: =IF($G15<>0,$B15,"") -> 
C16: interessi | E16: ='contr.biennio(vedi prima riga)'!$H$41 -> 0 | F16: =E16 -> 0 | G16: =F16 -> 0
B17: 3014 | C17: sanzione | E17: =IF('contr.biennio(vedi prima riga)'!$H$44<>0,'contr.biennio(vedi prima riga)'!$H$44,'contr.biennio(vedi prima riga)'!$H$45) -> 0 | F17: =E17-D17 -> 0 | G17: =IF(AND($F17<>0,G12<>""),ROUND($F17,2),0) -> 0 | H17: =G17 -> 0 | I17: =IF($G17<>0,$B17,"") -> 
B18: Totali | D18: =SUM(D$13:D17) -> 0 | E18: =SUM(E$13:E17) -> 0 | F18: =SUM(F$13:F17) -> 0 | G18: =SUM(G$13:G17) -> 0 | H18: =SUM(H$13:H17) -> 0
A19: biennio | B19: tributo | D19: tributi pagati il | E19: tributi dovuti al | F19: differenze dovute al | G19: differenze da versare il | H19: da riportare sul modello F24 (per le coop. non aderenti) o sul bonifico (per le coop. aderenti
A20: =IF('contr.biennio(vedi prima riga)'!$G$34<>"",'contr.biennio(vedi prima riga)'!$G$28,"") ->  | B20: codice | D20: =IF('contr.biennio(vedi prima riga)'!$G$35<>"",'contr.biennio(vedi prima riga)'!$G$35,"") ->  | E20: =D20 ->  | F20: =D20 ->  | H20: importi | I20: cod.tributo | J20: anno
B21: 3010 | C21: contributo | E21: ='contr.biennio(vedi prima riga)'!$G$34 -> 0 | F21: =E21-D21 -> 0 | G21: =IF(AND($F21<>0,G20<>""),ROUND($F21*(1+INDEX('inter.legale (vedi prima riga)'!$B$9:$B$202,MATCH(G20,'inter.legale (vedi prima riga)'!$A$9:$A$202,1))/100/365*(G20-'contr.biennio(vedi prima riga)'!$G$35)),2),0) -> 0 | H21: =SUM($G21:$G22) -> 0 | I21: =IF($G21<>0,$B21,"") ->  | J21: =IF(OR($G21<>0,$G23<>0,$G25<>0),LEFT($A20,4),"") -> 
C22: interessi | E22: ='contr.biennio(vedi prima riga)'!$G$37 -> 0 | F22: =E22 -> 0 | G22: =F22 -> 0
B23: 3011 | C23: contributo | E23: ='contr.biennio(vedi prima riga)'!$G$40 -> 0 | F23: =E23-D23 -> 0 | G23: =IF(AND($F23<>0,G20<>""),ROUND($F23*(1+INDEX('inter.legale (vedi prima riga)'!$B$9:$B$202,MATCH(G20,'inter.legale (vedi prima riga)'!$A$9:$A$202,1))/100/365*(G20-'contr.biennio(vedi prima riga)'!$G$35)),2),0) -> 0 | H23: =SUM($G23:$G24) -> 0 | I23: =IF($G23<>0,$B23,"") -> 
C24: interessi | E24: ='contr.biennio(vedi prima riga)'!$G$41 -> 0 | F24: =E24 -> 0 | G24: =F24 -> 0
B25: 3014 | C25: sanzione | E25: =IF('contr.biennio(vedi prima riga)'!$G$44<>0,'contr.biennio(vedi prima riga)'!$G$44,'contr.biennio(vedi prima riga)'!$G$45) -> 0 | F25: =E25-D25 -> 0 | G25: =IF(AND($F25<>0,G20<>""),ROUND($F25,2),0) -> 0 | H25: =G25 -> 0 | I25: =IF($G25<>0,$B25,"") -> 
B26: Totali | D26: =SUM(D$21:D25) -> 0 | E26: =SUM(E$21:E25) -> 0 | F26: =SUM(F$21:F25) -> 0 | G26: =SUM(G$21:G25) -> 0 | H26: =SUM(H$21:H25) -> 0
A45: INTEGRAZIONE CONTRIBUTO 3%
A46: codice tributo | B46: esercizio | D46: tributi pagati il | E46: tributi dovuti al | F46: differenze dovute al | G46: differenze da versare il | H46: da riportare sul modello F24 (per le coop. non aderenti) o sul bonifico (per le coop. aderenti
A47: 3012 | B47: =IF('contr.biennio(vedi prima riga)'!$H$54<>0,'contr.biennio(vedi prima riga)'!$H$47,"") ->  | D47: ='contr.biennio(vedi prima riga)'!$H$57 -> 00:00:00 | E47: =D47 -> 00:00:00 | F47: =D47 -> 00:00:00 | H47: importi | I47: cod.tributo | J47: anno
C48: contributo | E48: =IF(E$47<>"",'contr.biennio(vedi prima riga)'!$H$54,0) -> 0 | F48: =E48-D48 -> 0 | G48: =IF($G$47<>"",ROUND($F$48*(1+INDEX('inter.legale(vedi prima riga)'!$B$9:$B$202,MATCH($G$47,'inter.legale(vedi prima riga)'!$A$9:$A$202,1))/100/365*($G$47-'contr.biennio(vedi prima riga)'!$H$57)),2),0) -> 0 | H48: =SUM(G48:G49) -> 0 | I48: =IF(OR($G$48<>0,$G$49<>0,$G$51<>0,$G$52<>0,$G$54<>0,$G$55<>0),$A$47,"") ->  | J48: =IF(OR($G$48<>0,$G$49<>0),$B$47,"") -> 
C49: interessi | E49: =IF(E$47<>"",'contr.biennio(vedi prima riga)'!$H$59,0) -> 0 | F49: =E49 -> 0 | G49: =F49 -> 0
B50: =IF('contr.biennio(vedi prima riga)'!$I$54<>0,'contr.biennio(vedi prima riga)'!$I$47,"") ->  | D50: ='contr.biennio(vedi prima riga)'!$I$57 -> 00:00:00 | E50: =D50 -> 00:00:00 | F50: =D50 -> 00:00:00
C51: contributo | E51: =IF(E$50<>"",'contr.biennio(vedi prima riga)'!$I$54,0) -> 0 | F51: =E51-D51 -> 0 | G51: =IF($G$47<>"",ROUND($F$51*(1+INDEX('inter.legale(vedi prima riga)'!$B$9:$B$202,MATCH($G$47,'inter.legale(vedi prima riga)'!$A$9:$A$202,1))/100/365*($G$47-'contr.biennio(vedi prima riga)'!$I$57)),2),0) -> 0 | H51: =SUM(G51:G52) -> 0 | J51: =IF(OR($G$51<>0,$G$52<>0),$B$50,"") -> 
C52: interessi | E52: =IF(E$50<>"",'contr.biennio(vedi prima riga)'!$I$59,0) -> 0 | F52: =E52 -> 0 | G52: =F52 -> 0
B53: =IF('contr.biennio(vedi prima riga)'!$J$54<>0,'contr.biennio(vedi prima riga)'!$J$47,"") ->  | D53: ='contr.biennio(vedi prima riga)'!$J$57 -> 00:00:00 | E53: =D53 -> 00:00:00 | F53: =D53 -> 00:00:00
C54: contributo | E54: =IF(E$53<>"",'contr.biennio(vedi prima riga)'!$J$54,0) -> 0 | F54: =E54-D54 -> 0 | G54: =IF($G$47<>"",ROUND($F$54*(1+INDEX('inter.legale(vedi prima riga)'!$B$9:$B$202,MATCH($G$47,'inter.legale(vedi prima riga)'!$A$9:$A$202,1))/100/365*($G$47-'contr.biennio(vedi prima riga)'!$J$57)),2),0) -> 0 | H54: =SUM(G54:G55) -> 0 | J54: =IF(OR($G$54<>0,$G$55<>0),$B$53,"") -> 
C55: interessi | E55: =IF(E$53<>"",'contr.biennio(vedi prima riga)'!$J$59,0) -> 0 | F55: =E55 -> 0 | G55: =F55 -> 0
A56: Totale | D56: =SUM(SUM(D$48:D$49),SUM(D$51:D$52),SUM(D$54:D$55)) -> 0 | E56: =SUM(SUM(E$48:E$49),SUM(E$51:E$52),SUM(E$54:E$55)) -> 0 | F56: =SUM(SUM(F$48:F$49),SUM(F$51:F$52),SUM(F$54:F$55)) -> 0 | G56: =SUM(SUM(G$48:G$49),SUM(G$51:G$52),SUM(G$54:G$55)) -> 0 | H56: =SUM(SUM(H$48:H$49),SUM(H$51:H$52),SUM(H$54:H$55)) -> 0
A57: Totale complessivo | D57: =SUM(D$10, D$56) -> 0 | E57: =SUM(E$10, E$56) -> 280 | F57: =SUM(F$10, F$56) -> 280 | G57: =SUM(G$10, G$56) -> 0 | H57: =SUM(H$10, H$56) -> 0

Sheet inter.legale (vedi prima riga)
A1: ="INTERESSE LEGALE PER IL BIENNIO " & LEFT(RIGHT(menù!$A$3,10),9) -> INTERESSE LEGALE PER IL BIENNIO 2017-2018
A2: Cooperativa:
A3: =ragionesociale -> 0 | E3: =IF(AND(ragionesociale<>"",MID(CELL("nomefile",ragionesociale),FIND("[",CELL("nomefile",ragionesociale))-6,6)<>"Varie\",MID(CELL("nomefile",ragionesociale),1,34)="C:\Documenti\Cooperative associate"),"Progressivo " & MID(CELL("nomefile",ragionesociale),FIND("-",CELL("nomefile",ragionesociale))-3,3),"") -> 
A4: L'elaborazione considera l'anno civile (365 giorni), senza calcolare l'anatocismo. | C4: ="CALCOLO INTERESSI SUL CONTRIBUTO DI REVISIONE PER IL BIENNIO " & RIGHT('contr.biennio (vedi prima riga)'!$G$28,9) -> CALCOLO INTERESSI SUL CONTRIBUTO DI REVISIONE PER IL BIENNIO 2013-2014 | G4: ="CALCOLO INTERESSI SUL CONTRIBUTO DI REVISIONE PER IL BIENNIO " & RIGHT('contr.biennio (vedi prima riga)'!$H$28,9) -> CALCOLO INTERESSI SUL CONTRIBUTO DI REVISIONE PER IL BIENNIO 2015-2016 | K4: ="CALCOLO INTERESSI SUL CONTRIBUTO DI REVISIONE PER IL BIENNIO " & RIGHT('contr.biennio (vedi prima riga)'!$I$28,9) -> CALCOLO INTERESSI SUL CONTRIBUTO DI REVISIONE PER IL BIENNIO 2017-2018 | O4: ="CALCOLO INTERESSI SUL CONTRIBUTO 3% PER L'ESERCIZIO " & RIGHT('contr.biennio (vedi prima riga)'!$F$47,9) -> CALCOLO INTERESSI SUL CONTRIBUTO 3% PER L'ESERCIZIO 2013 | S4: ="CALCOLO INTERESSI SUL CONTRIBUTO 3% PER L'ESERCIZIO " & RIGHT('contr.biennio (vedi prima riga)'!$G$47,9) -> CALCOLO INTERESSI SUL CONTRIBUTO 3% PER L'ESERCIZIO 2014 | W4: ="CALCOLO INTERESSI SUL CONTRIBUTO 3% PER L'ESERCIZIO " & RIGHT('contr.biennio (vedi prima riga)'!$H$47,9) -> CALCOLO INTERESSI SUL CONTRIBUTO 3% PER L'ESERCIZIO 2015 | AA4: ="CALCOLO INTERESSI SUL CONTRIBUTO 3% PER L'ESERCIZIO " & RIGHT('contr.biennio (vedi prima riga)'!$I$47,9) -> CALCOLO INTERESSI SUL CONTRIBUTO 3% PER L'ESERCIZIO 2016 | AE4: ="CALCOLO INTERESSI SUL CONTRIBUTO 3% PER L'ESERCIZIO " & RIGHT('contr.biennio (vedi prima riga)'!$J$47,9) -> CALCOLO INTERESSI SUL CONTRIBUTO 3% PER L'ESERCIZIO 2017
C5: Decorrenza interessi (gg.mm.aa) | D5: Termine calcolo interessi (gg.mm.aa) | E5: contributo biennale di revisione | G5: Decorrenza interessi (gg.mm.aa) | H5: Termine calcolo interessi (gg.mm.aa) | I5: contributo biennale di revisione | K5: Decorrenza interessi (gg.mm.aa) | L5: Termine calcolo interessi (gg.mm.aa) | M5: contributo biennale di revisione | O5: Decorrenza interessi (gg.mm.aa) | P5: Termine calcolo interessi (gg.mm.aa) | Q5: Imponibile | S5: Decorrenza interessi (gg.mm.aa) | T5: Termine calcolo interessi (gg.mm.aa) | U5: Imponibile | W5: Decorrenza interessi (gg.mm.aa) | X5: Termine calcolo interessi (gg.mm.aa) | Y5: Imponibile | AA5: Decorrenza interessi (gg.mm.aa) | AB5: Termine calcolo interessi (gg.mm.aa) | AC5: Imponibile | AE5: Decorrenza interessi (gg.mm.aa) | AF5: Termine calcolo interessi (gg.mm.aa) | AG5: Imponibile
C6: =IF('contr.biennio (vedi prima riga)'!$G$35<>"",IF('contr.biennio (vedi prima riga)'!$G$32<>"",'contr.biennio (vedi prima riga)'!$G$33,'contr.biennio (vedi prima riga)'!$G$30),"") ->  | D6: =IF('contr.biennio (vedi prima riga)'!$G$35<>"",'contr.biennio (vedi prima riga)'!$G$35,"") ->  | E6: =IF('contr.biennio (vedi prima riga)'!$G$35<>"",'contr.biennio (vedi prima riga)'!$G$34,"") ->  | G6: =IF('contr.biennio (vedi prima riga)'!$H$35<>"",IF('contr.biennio (vedi prima riga)'!$H$32<>"",'contr.biennio (vedi prima riga)'!$H$33,'contr.biennio (vedi prima riga)'!$H$30),"") ->  | H6: =IF('contr.biennio (vedi prima riga)'!$H$35<>"",'contr.biennio (vedi prima riga)'!$H$35,"") ->  | I6: =IF('contr.biennio (vedi prima riga)'!$H$35<>"",'contr.biennio (vedi prima riga)'!$H$34,"") ->  | K6: =IF('contr.biennio (vedi prima riga)'!$I$35<>"",IF('contr.biennio (vedi prima riga)'!$I$32<>"",'contr.biennio (vedi prima riga)'!$I$33,'contr.biennio (vedi prima riga)'!$I$30),"") ->  | L6: =IF('contr.biennio (vedi prima riga)'!$I$35<>"",'contr.biennio (vedi prima riga)'!$I$35,"") ->  | M6: =IF('contr.biennio (vedi prima riga)'!$I$35<>"",'contr.biennio (vedi prima riga)'!$I$34,"") ->  | O6: =IF('contr.biennio (vedi prima riga)'!$F$57<>"",'contr.biennio (vedi prima riga)'!$F$56,"") ->  | P6: =IF('contr.biennio (vedi prima riga)'!$F$57<>"",'contr.biennio (vedi prima riga)'!$F$57,"") ->  | Q6: ='contr.biennio (vedi prima riga)'!$F$54 -> 0 | S6: =IF('contr.biennio (vedi prima riga)'!$G$57<>"",'contr.biennio (vedi prima riga)'!$G$56,"") ->  | T6: =IF('contr.biennio (vedi prima riga)'!$G$57<>"",'contr.biennio (vedi prima riga)'!$G$57,"") ->  | U6: ='contr.biennio (vedi prima riga)'!$G$54 -> 0 | W6: =IF('contr.biennio (vedi prima riga)'!$H$57<>"",'contr.biennio (vedi prima riga)'!$H$56,"") ->  | X6: =IF('contr.biennio (vedi prima riga)'!$H$57<>"",'contr.biennio (vedi prima riga)'!$H$57,"") ->  | Y6: ='contr.biennio (vedi prima riga)'!$H$54 -> 0 | AA6: =IF('contr.biennio (vedi prima riga)'!$I$57<>"",'contr.biennio (vedi prima riga)'!$I$56,"") ->  | AB6: =IF('contr.biennio (vedi prima riga)'!$I$57<>"",'contr.biennio (vedi prima riga)'!$I$57,"") ->  | AC6: ='contr.biennio (vedi prima riga)'!$I$54 -> 0 | AE6: =IF('contr.biennio (vedi prima riga)'!$J$57<>"",'contr.biennio (vedi prima riga)'!$J$56,"") ->  | AF6: =IF('contr.biennio (vedi prima riga)'!$J$57<>"",'contr.biennio (vedi prima riga)'!$J$57,"") ->  | AG6: ='contr.biennio (vedi prima riga)'!$J$54 -> 0
C7: =IF(AND(C6="",D6="",E6=""),"",IF(AND(C6<>"",D6<>"",E6<>""),IF(C6<C$9,"data decorrenza minore data decorrenza minima conosciuta prima colonna",""),"data decorrenza o data termine o importo su cui calcolare gli interessi non comunicato")) ->  | G7: =IF(AND(G6="",H6="",I6=""),"",IF(AND(G6<>"",H6<>"",I6<>""),IF(G6<G$9,"data decorrenza minore data decorrenza minima conosciuta prima colonna",""),"data decorrenza o data termine o importo su cui calcolare gli interessi non comunicato")) ->  | K7: =IF(AND(K6="",L6="",M6=""),"",IF(AND(K6<>"",L6<>"",M6<>""),IF(K6<K$9,"data decorrenza minore data decorrenza minima conosciuta prima colonna",""),"data decorrenza o data termine o importo su cui calcolare gli interessi non comunicato")) ->  | O7: =IF(AND(O$6<>0,O$6<$A$9),"decorrenza antecedente o termine successivo alle date limiti","") ->  | S7: =IF(AND(S$6<>0,S$6<$A$9),"decorrenza antecedente o termine successivo alle date limiti","") ->  | W7: =IF(AND(W$6<>0,W$6<$A$9),"decorrenza antecedente o termine successivo alle date limiti","") ->  | AA7: =IF(AND(AA$6<>0,AA$6<$A$9),"decorrenza antecedente o termine successivo alle date limiti","") ->  | AE7: =IF(AND(AE$6<>0,AE$6<$A$9),"decorrenza antecedente o termine successivo alle date limiti","") -> 
A8: Decorrenza (gg.mm.aa) | B8: Tasso % | C8: Decorrenza interessi (gg.mm.aa) | D8: Termine calcolo interessi (gg.mm.aa) | E8: Giorni | F8: Interesse sul contributo biennale di revisione | G8: Decorrenza interessi (gg.mm.aa) | H8: Termine calcolo interessi (gg.mm.aa) | I8: Giorni | J8: Interesse sul contributo biennale di revisione | K8: Decorrenza interessi (gg.mm.aa) | L8: Termine calcolo interessi (gg.mm.aa) | M8: Giorni | N8: Interesse sul contributo biennale di revisione | O8: Decorrenza interessi (gg.mm.aa) | P8: Termine calcolo interessi (gg.mm.aa) | Q8: Giorni | R8: Interesse | S8: Decorrenza interessi (gg.mm.aa) | T8: Termine calcolo interessi (gg.mm.aa) | U8: Giorni | V8: Interesse | W8: Decorrenza interessi (gg.mm.aa) | X8: Termine calcolo interessi (gg.mm.aa) | Y8: Giorni | Z8: Interesse | AA8: Decorrenza interessi (gg.mm.aa) | AB8: Termine calcolo interessi (gg.mm.aa) | AC8: Giorni | AD8: Interesse | AE8: Decorrenza interessi (gg.mm.aa) | AF8: Termine calcolo interessi (gg.mm.aa) | AG8: Giorni | AH8: Interesse
A9: 1990-01-01 | B9: 5 | C9: =IF(OR(MID(C8,1,10)="Decorrenza",C8=0),IF(AND(C$6<$A10,C$6>=$A9),C$6,0),IF(D$6<$A9,0,$A9)) -> 00:00:00 | D9: =IF(C9<>0,IF($A10<>"",IF(D$6<$A10,D$6,$A10-1),E$6),0) -> 00:00:00 | E9: =IF(OR(C9<>0,D9<>0),IF(YEAR(C9)=YEAR(D9),D9-C9+1,DATE(YEAR(C9),12,31)-C9+1+D9-DATE(YEAR(D9),1,1)+1+365*(YEAR(D9)-YEAR(C9)-1)),0) -> 0 | F9: =IF(E9<>0,E$6*$B9/100/365*E9,0) -> 0 | G9: =IF(OR(MID(G8,1,10)="Decorrenza",G8=0),IF(AND(G$6<$A10,G$6>=$A9),G$6,0),IF(H$6<$A9,0,$A9)) -> 00:00:00 | H9: =IF(G9<>0,IF($A10<>"",IF(H$6<$A10,H$6,$A10-1),I$6),0) -> 00:00:00 | I9: =IF(OR(G9<>0,H9<>0),IF(YEAR(G9)=YEAR(H9),H9-G9+1,DATE(YEAR(G9),12,31)-G9+1+H9-DATE(YEAR(H9),1,1)+1+365*(YEAR(H9)-YEAR(G9)-1)),0) -> 0 | J9: =IF(I9<>0,I$6*$B9/100/365*I9,0) -> 0 | K9: =IF(OR(MID(K8,1,10)="Decorrenza",K8=0),IF(AND(K$6<$A10,K$6>=$A9),K$6,0),IF(L$6<$A9,0,$A9)) -> 00:00:00 | L9: =IF(K9<>0,IF($A10<>"",IF(L$6<$A10,L$6,$A10-1),M$6),0) -> 00:00:00 | M9: =IF(OR(K9<>0,L9<>0),IF(YEAR(K9)=YEAR(L9),L9-K9+1,DATE(YEAR(K9),12,31)-K9+1+L9-DATE(YEAR(L9),1,1)+1+365*(YEAR(L9)-YEAR(K9)-1)),0) -> 0 | N9: =IF(M9<>0,M$6*$B9/100/365*M9,0) -> 0 | O9: =IF(OR(MID(O8,1,10)="Decorrenza",O8=0),IF(AND(O$6<$A10,O$6>=$A9),O$6,0),IF(P$6<$A9,0,$A9)) -> 00:00:00 | P9: =IF(O9<>0,IF($A10<>"",IF(P$6<$A10,P$6,$A10-1),Q$6),0) -> 00:00:00 | Q9: =IF(OR(O9<>0,P9<>0),IF(YEAR(O9)=YEAR(P9),P9-O9+1,DATE(YEAR(O9),12,31)-O9+1+P9-DATE(YEAR(P9),1,1)+1+365*(YEAR(P9)-YEAR(O9)-1)),0) -> 0 | R9: =IF(Q9<>0,Q$6*$B9/100/365*Q9,0) -> 0 | S9: =IF(OR(MID(S8,1,10)="Decorrenza",S8=0),IF(AND(S$6<$A10,S$6>=$A9),S$6,0),IF(T$6<$A9,0,$A9)) -> 00:00:00 | T9: =IF(S9<>0,IF($A10<>"",IF(T$6<$A10,T$6,$A10-1),U$6),0) -> 00:00:00 | U9: =IF(OR(S9<>0,T9<>0),IF(YEAR(S9)=YEAR(T9),T9-S9+1,DATE(YEAR(S9),12,31)-S9+1+T9-DATE(YEAR(T9),1,1)+1+365*(YEAR(T9)-YEAR(S9)-1)),0) -> 0 | V9: =IF(U9<>0,U$6*$B9/100/365*U9,0) -> 0 | W9: =IF(OR(MID(W8,1,10)="Decorrenza",W8=0),IF(AND(W$6<$A10,W$6>=$A9),W$6,0),IF(X$6<$A9,0,$A9)) -> 00:00:00 | X9: =IF(W9<>0,IF($A10<>"",IF(X$6<$A10,X$6,$A10-1),Y$6),0) -> 00:00:00 | Y9: =IF(OR(W9<>0,X9<>0),IF(YEAR(W9)=YEAR(X9),X9-W9+1,DATE(YEAR(W9),12,31)-W9+1+X9-DATE(YEAR(X9),1,1)+1+365*(YEAR(X9)-YEAR(W9)-1)),0) -> 0 | Z9: =IF(Y9<>0,Y$6*$B9/100/365*Y9,0) -> 0 | AA9: =IF(OR(MID(AA8,1,10)="Decorrenza",AA8=0),IF(AND(AA$6<$A10,AA$6>=$A9),AA$6,0),IF(AB$6<$A9,0,$A9)) -> 00:00:00 | AB9: =IF(AA9<>0,IF($A10<>"",IF(AB$6<$A10,AB$6,$A10-1),AC$6),0) -> 00:00:00 | AC9: =IF(OR(AA9<>0,AB9<>0),IF(YEAR(AA9)=YEAR(AB9),AB9-AA9+1,DATE(YEAR(AA9),12,31)-AA9+1+AB9-DATE(YEAR(AB9),1,1)+1+365*(YEAR(AB9)-YEAR(AA9)-1)),0) -> 0 | AD9: =IF(AC9<>0,AC$6*$B9/100/365*AC9,0) -> 0 | AE9: =IF(OR(MID(AE8,1,10)="Decorrenza",AE8=0),IF(AND(AE$6<$A10,AE$6>=$A9),AE$6,0),IF(AF$6<$A9,0,$A9)) -> 00:00:00 | AF9: =IF(AE9<>0,IF($A10<>"",IF(AF$6<$A10,AF$6,$A10-1),AG$6),0) -> 00:00:00 | AG9: =IF(OR(AE9<>0,AF9<>0),IF(YEAR(AE9)=YEAR(AF9),AF9-AE9+1,DATE(YEAR(AE9),12,31)-AE9+1+AF9-DATE(YEAR(AF9),1,1)+1+365*(YEAR(AF9)-YEAR(AE9)-1)),0) -> 0 | AH9: =IF(AG9<>0,AG$6*$B9/100/365*AG9,0) -> 0
A10: 1990-12-16 | B10: 10 | C10: =IF(OR(MID(C9,1,10)="Decorrenza",C9=0),IF(AND(C$6<$A11,C$6>=$A10),C$6,0),IF(D$6<$A10,0,$A10)) -> 00:00:00 | D10: 00:00:00 | E10: =IF(OR(C10<>0,D10<>0),IF(YEAR(C10)=YEAR(D10),D10-C10+1,DATE(YEAR(C10),12,31)-C10+1+D10-DATE(YEAR(D10),1,1)+1+365*(YEAR(D10)-YEAR(C10)-1)),0) -> 0 | F10: =IF(E10<>0,E$6*$B10/100/365*E10,0) -> 0 | G10: =IF(OR(MID(G9,1,10)="Decorrenza",G9=0),IF(AND(G$6<$A11,G$6>=$A10),G$6,0),IF(H$6<$A10,0,$A10)) -> 00:00:00 | H10: 00:00:00 | I10: =IF(OR(G10<>0,H10<>0),IF(YEAR(G10)=YEAR(H10),H10-G10+1,DATE(YEAR(G10),12,31)-G10+1+H10-DATE(YEAR(H10),1,1)+1+365*(YEAR(H10)-YEAR(G10)-1)),0) -> 0 | J10: =IF(I10<>0,I$6*$B10/100/365*I10,0) -> 0 | K10: =IF(OR(MID(K9,1,10)="Decorrenza",K9=0),IF(AND(K$6<$A11,K$6>=$A10),K$6,0),IF(L$6<$A10,0,$A10)) -> 00:00:00 | L10: 00:00:00 | M10: =IF(OR(K10<>0,L10<>0),IF(YEAR(K10)=YEAR(L10),L10-K10+1,DATE(YEAR(K10),12,31)-K10+1+L10-DATE(YEAR(L10),1,1)+1+365*(YEAR(L10)-YEAR(K10)-1)),0) -> 0 | N10: =IF(M10<>0,M$6*$B10/100/365*M10,0) -> 0 | O10: =IF(OR(MID(O9,1,10)="Decorrenza",O9=0),IF(AND(O$6<$A11,O$6>=$A10),O$6,0),IF(P$6<$A10,0,$A10)) -> 00:00:00 | P10: 00:00:00 | Q10: =IF(OR(O10<>0,P10<>0),IF(YEAR(O10)=YEAR(P10),P10-O10+1,DATE(YEAR(O10),12,31)-O10+1+P10-DATE(YEAR(P10),1,1)+1+365*(YEAR(P10)-YEAR(O10)-1)),0) -> 0 | R10: =IF(Q10<>0,Q$6*$B10/100/365*Q10,0) -> 0 | S10: =IF(OR(MID(S9,1,10)="Decorrenza",S9=0),IF(AND(S$6<$A11,S$6>=$A10),S$6,0),IF(T$6<$A10,0,$A10)) -> 00:00:00 | T10: 00:00:00 | U10: =IF(OR(S10<>0,T10<>0),IF(YEAR(S10)=YEAR(T10),T10-S10+1,DATE(YEAR(S10),12,31)-S10+1+T10-DATE(YEAR(T10),1,1)+1+365*(YEAR(T10)-YEAR(S10)-1)),0) -> 0 | V10: =IF(U10<>0,U$6*$B10/100/365*U10,0) -> 0 | W10: =IF(OR(MID(W9,1,10)="Decorrenza",W9=0),IF(AND(W$6<$A11,W$6>=$A10),W$6,0),IF(X$6<$A10,0,$A10)) -> 00:00:00 | X10: 00:00:00 | Y10: =IF(OR(W10<>0,X10<>0),IF(YEAR(W10)=YEAR(X10),X10-W10+1,DATE(YEAR(W10),12,31)-W10+1+X10-DATE(YEAR(X10),1,1)+1+365*(YEAR(X10)-YEAR(W10)-1)),0) -> 0 | Z10: =IF(Y10<>0,Y$6*$B10/100/365*Y10,0) -> 0 | AA10: =IF(OR(MID(AA9,1,10)="Decorrenza",AA9=0),IF(AND(AA$6<$A11,AA$6>=$A10),AA$6,0),IF(AB$6<$A10,0,$A10)) -> 00:00:00 | AB10: 00:00:00 | AC10: =IF(OR(AA10<>0,AB10<>0),IF(YEAR(AA10)=YEAR(AB10),AB10-AA10+1,DATE(YEAR(AA10),12,31)-AA10+1+AB10-DATE(YEAR(AB10),1,1)+1+365*(YEAR(AB10)-YEAR(AA10)-1)),0) -> 0 | AD10: =IF(AC10<>0,AC$6*$B10/100/365*AC10,0) -> 0 | AE10: =IF(OR(MID(AE9,1,10)="Decorrenza",AE9=0),IF(AND(AE$6<$A11,AE$6>=$A10),AE$6,0),IF(AF$6<$A10,0,$A10)) -> 00:00:00 | AF10: 00:00:00 | AG10: =IF(OR(AE10<>0,AF10<>0),IF(YEAR(AE10)=YEAR(AF10),AF10-AE10+1,DATE(YEAR(AE10),12,31)-AE10+1+AF10-DATE(YEAR(AF10),1,1)+1+365*(YEAR(AF10)-YEAR(AE10)-1)),0) -> 0 | AH10: =IF(AG10<>0,AG$6*$B10/100/365*AG10,0) -> 0
A11: 1997-01-01 | B11: 5 | C11: 00:00:00 | D11: 00:00:00 | E11: 0 | F11: 0 | G11: 00:00:00 | H11: 00:00:00 | I11: 0 | J11: 0 | K11: 00:00:00 | L11: 00:00:00 | M11: 0 | N11: 0 | O11: 00:00:00 | P11: 00:00:00 | Q11: 0 | R11: 0 | S11: 00:00:00 | T11: 00:00:00 | U11: 0 | V11: 0 | W11: 00:00:00 | X11: 00:00:00 | Y11: 0 | Z11: 0 | AA11: 00:00:00 | AB11: 00:00:00 | AC11: 0 | AD11: 0 | AE11: 00:00:00 | AF11: 00:00:00 | AG11: 0 | AH11: 0
A12: 1999-01-01 | B12: 2.5 | C12: 00:00:00 | D12: 00:00:00 | E12: 0 | F12: 0 | G12: 00:00:00 | H12: 00:00:00 | I12: 0 | J12: 0 | K12: 00:00:00 | L12: 00:00:00 | M12: 0 | N12: 0 | O12: 00:00:00 | P12: 00:00:00 | Q12: 0 | R12: 0 | S12: 00:00:00 | T12: 00:00:00 | U12: 0 | V12: 0 | W12: 00:00:00 | X12: 00:00:00 | Y12: 0 | Z12: 0 | AA12: 00:00:00 | AB12: 00:00:00 | AC12: 0 | AD12: 0 | AE12: 00:00:00 | AF12: 00:00:00 | AG12: 0 | AH12: 0
A13: 2001-01-01 | B13: 3.5 | C13: 00:00:00 | D13: 00:00:00 | E13: 0 | F13: 0 | G13: 00:00:00 | H13: 00:00:00 | I13: 0 | J13: 0 | K13: 00:00:00 | L13: 00:00:00 | M13: 0 | N13: 0 | O13: 00:00:00 | P13: 00:00:00 | Q13: 0 | R13: 0 | S13: 00:00:00 | T13: 00:00:00 | U13: 0 | V13: 0 | W13: 00:00:00 | X13: 00:00:00 | Y13: 0 | Z13: 0 | AA13: 00:00:00 | AB13: 00:00:00 | AC13: 0 | AD13: 0 | AE13: 00:00:00 | AF13: 00:00:00 | AG13: 0 | AH13: 0
A14: 2002-01-01 | B14: 3 | C14: 00:00:00 | D14: 00:00:00 | E14: 0 | F14: 0 | G14: 00:00:00 | H14: 00:00:00 | I14: 0 | J14: 0 | K14: 00:00:00 | L14: 00:00:00 | M14: 0 | N14: 0 | O14: 00:00:00 | P14: 00:00:00 | Q14: 0 | R14: 0 | S14: 00:00:00 | T14: 00:00:00 | U14: 0 | V14: 0 | W14: 00:00:00 | X14: 00:00:00 | Y14: 0 | Z14: 0 | AA14: 00:00:00 | AB14: 00:00:00 | AC14: 0 | AD14: 0 | AE14: 00:00:00 | AF14: 00:00:00 | AG14: 0 | AH14: 0
A15: 2004-01-01 | B15: 2.5 | C15: 00:00:00 | D15: 00:00:00 | E15: 0 | F15: 0 | G15: 00:00:00 | H15: 00:00:00 | I15: 0 | J15: 0 | K15: 00:00:00 | L15: 00:00:00 | M15: 0 | N15: 0 | O15: 00:00:00 | P15: 00:00:00 | Q15: 0 | R15: 0 | S15: 00:00:00 | T15: 00:00:00 | U15: 0 | V15: 0 | W15: 00:00:00 | X15: 00:00:00 | Y15: 0 | Z15: 0 | AA15: 00:00:00 | AB15: 00:00:00 | AC15: 0 | AD15: 0 | AE15: 00:00:00 | AF15: 00:00:00 | AG15: 0 | AH15: 0
A16: 2008-01-01 | B16: 3 | C16: 00:00:00 | D16: 00:00:00 | E16: 0 | F16: 0 | G16: 00:00:00 | H16: 00:00:00 | I16: 0 | J16: 0 | K16: 00:00:00 | L16: 00:00:00 | M16: 0 | N16: 0 | O16: 00:00:00 | P16: 00:00:00 | Q16: 0 | R16: 0 | S16: 00:00:00 | T16: 00:00:00 | U16: 0 | V16: 0 | W16: 00:00:00 | X16: 00:00:00 | Y16: 0 | Z16: 0 | AA16: 00:00:00 | AB16: 00:00:00 | AC16: 0 | AD16: 0 | AE16: 00:00:00 | AF16: 00:00:00 | AG16: 0 | AH16: 0
A17: 2010-01-01 | B17: 1 | C17: 00:00:00 | D17: 00:00:00 | E17: 0 | F17: 0 | G17: 00:00:00 | H17: 00:00:00 | I17: 0 | J17: 0 | K17: 00:00:00 | L17: 00:00:00 | M17: 0 | N17: 0 | O17: 00:00:00 | P17: 00:00:00 | Q17: 0 | R17: 0 | S17: 00:00:00 | T17: 00:00:00 | U17: 0 | V17: 0 | W17: 00:00:00 | X17: 00:00:00 | Y17: 0 | Z17: 0 | AA17: 00:00:00 | AB17: 00:00:00 | AC17: 0 | AD17: 0 | AE17: 00:00:00 | AF17: 00:00:00 | AG17: 0 | AH17: 0
A18: 2011-01-01 | B18: 1.5 | C18: 00:00:00 | D18: 00:00:00 | E18: 0 | F18: 0 | G18: 00:00:00 | H18: 00:00:00 | I18: 0 | J18: 0 | K18: 00:00:00 | L18: 00:00:00 | M18: 0 | N18: 0 | O18: 00:00:00 | P18: 00:00:00 | Q18: 0 | R18: 0 | S18: 00:00:00 | T18: 00:00:00 | U18: 0 | V18: 0 | W18: 00:00:00 | X18: 00:00:00 | Y18: 0 | Z18: 0 | AA18: 00:00:00 | AB18: 00:00:00 | AC18: 0 | AD18: 0 | AE18: 00:00:00 | AF18: 00:00:00 | AG18: 0 | AH18: 0
A19: 2012-01-01 | B19: 2.5 | C19: =IF(OR(MID(C18,1,10)="Decorrenza",C18=0),IF(AND(C$6<$A20,C$6>=$A19),C$6,0),IF(D$6<$A19,0,$A19)) -> 00:00:00 | D19: =IF(C19<>0,IF($A20<>"",IF(D$6<$A20,D$6,$A20-1),E$6),0) -> 00:00:00 | E19: =IF(OR(C19<>0,D19<>0),IF(YEAR(C19)=YEAR(D19),D19-C19+1,DATE(YEAR(C19),12,31)-C19+1+D19-DATE(YEAR(D19),1,1)+1+365*(YEAR(D19)-YEAR(C19)-1)),0) -> 0 | F19: =IF(E19<>0,E$6*$B19/100/365*E19,0) -> 0 | G19: =IF(OR(MID(G18,1,10)="Decorrenza",G18=0),IF(AND(G$6<$A20,G$6>=$A19),G$6,0),IF(H$6<$A19,0,$A19)) -> 00:00:00 | H19: =IF(G19<>0,IF($A20<>"",IF(H$6<$A20,H$6,$A20-1),I$6),0) -> 00:00:00 | I19: =IF(OR(G19<>0,H19<>0),IF(YEAR(G19)=YEAR(H19),H19-G19+1,DATE(YEAR(G19),12,31)-G19+1+H19-DATE(YEAR(H19),1,1)+1+365*(YEAR(H19)-YEAR(G19)-1)),0) -> 0 | J19: =IF(I19<>0,I$6*$B19/100/365*I19,0) -> 0 | K19: =IF(OR(MID(K18,1,10)="Decorrenza",K18=0),IF(AND(K$6<$A20,K$6>=$A19),K$6,0),IF(L$6<$A19,0,$A19)) -> 00:00:00 | L19: =IF(K19<>0,IF($A20<>"",IF(L$6<$A20,L$6,$A20-1),M$6),0) -> 00:00:00 | M19: =IF(OR(K19<>0,L19<>0),IF(YEAR(K19)=YEAR(L19),L19-K19+1,DATE(YEAR(K19),12,31)-K19+1+L19-DATE(YEAR(L19),1,1)+1+365*(YEAR(L19)-YEAR(K19)-1)),0) -> 0 | N19: =IF(M19<>0,M$6*$B19/100/365*M19,0) -> 0 | O19: =IF(OR(MID(O18,1,10)="Decorrenza",O18=0),IF(AND(O$6<$A20,O$6>=$A19),O$6,0),IF(P$6<$A19,0,$A19)) -> 00:00:00 | P19: =IF(O19<>0,IF($A20<>"",IF(P$6<$A20,P$6,$A20-1),Q$6),0) -> 00:00:00 | Q19: =IF(OR(O19<>0,P19<>0),IF(YEAR(O19)=YEAR(P19),P19-O19+1,DATE(YEAR(O19),12,31)-O19+1+P19-DATE(YEAR(P19),1,1)+1+365*(YEAR(P19)-YEAR(O19)-1)),0) -> 0 | R19: =IF(Q19<>0,Q$6*$B19/100/365*Q19,0) -> 0 | S19: =IF(OR(MID(S18,1,10)="Decorrenza",S18=0),IF(AND(S$6<$A20,S$6>=$A19),S$6,0),IF(T$6<$A19,0,$A19)) -> 00:00:00 | T19: =IF(S19<>0,IF($A20<>"",IF(T$6<$A20,T$6,$A20-1),U$6),0) -> 00:00:00 | U19: =IF(OR(S19<>0,T19<>0),IF(YEAR(S19)=YEAR(T19),T19-S19+1,DATE(YEAR(S19),12,31)-S19+1+T19-DATE(YEAR(T19),1,1)+1+365*(YEAR(T19)-YEAR(S19)-1)),0) -> 0 | V19: =IF(U19<>0,U$6*$B19/100/365*U19,0) -> 0 | W19: =IF(OR(MID(W18,1,10)="Decorrenza",W18=0),IF(AND(W$6<$A20,W$6>=$A19),W$6,0),IF(X$6<$A19,0,$A19)) -> 00:00:00 | X19: =IF(W19<>0,IF($A20<>"",IF(X$6<$A20,X$6,$A20-1),Y$6),0) -> 00:00:00 | Y19: =IF(OR(W19<>0,X19<>0),IF(YEAR(W19)=YEAR(X19),X19-W19+1,DATE(YEAR(W19),12,31)-W19+1+X19-DATE(YEAR(X19),1,1)+1+365*(YEAR(X19)-YEAR(W19)-1)),0) -> 0 | Z19: =IF(Y19<>0,Y$6*$B19/100/365*Y19,0) -> 0 | AA19: =IF(OR(MID(AA18,1,10)="Decorrenza",AA18=0),IF(AND(AA$6<$A20,AA$6>=$A19),AA$6,0),IF(AB$6<$A19,0,$A19)) -> 00:00:00 | AB19: =IF(AA19<>0,IF($A20<>"",IF(AB$6<$A20,AB$6,$A20-1),AC$6),0) -> 00:00:00 | AC19: =IF(OR(AA19<>0,AB19<>0),IF(YEAR(AA19)=YEAR(AB19),AB19-AA19+1,DATE(YEAR(AA19),12,31)-AA19+1+AB19-DATE(YEAR(AB19),1,1)+1+365*(YEAR(AB19)-YEAR(AA19)-1)),0) -> 0 | AD19: =IF(AC19<>0,AC$6*$B19/100/365*AC19,0) -> 0 | AE19: =IF(OR(MID(AE18,1,10)="Decorrenza",AE18=0),IF(AND(AE$6<$A20,AE$6>=$A19),AE$6,0),IF(AF$6<$A19,0,$A19)) -> 00:00:00 | AF19: =IF(AE19<>0,IF($A20<>"",IF(AF$6<$A20,AF$6,$A20-1),AG$6),0) -> 00:00:00 | AG19: =IF(OR(AE19<>0,AF19<>0),IF(YEAR(AE19)=YEAR(AF19),AF19-AE19+1,DATE(YEAR(AE19),12,31)-AE19+1+AF19-DATE(YEAR(AF19),1,1)+1+365*(YEAR(AF19)-YEAR(AE19)-1)),0) -> 0 | AH19: =IF(AG19<>0,AG$6*$B19/100/365*AG19,0) -> 0
A20: 2013-01-01 | B20: 2.5 | C20: 00:00:00 | D20: 00:00:00 | E20: 0 | F20: 0 | G20: 00:00:00 | H20: 00:00:00 | I20: 0 | J20: 0 | K20: 00:00:00 | L20: 00:00:00 | M20: 0 | N20: 0 | O20: 00:00:00 | P20: 00:00:00 | Q20: 0 | R20: 0 | S20: 00:00:00 | T20: 00:00:00 | U20: 0 | V20: 0 | W20: 00:00:00 | X20: 00:00:00 | Y20: 0 | Z20: 0 | AA20: 00:00:00 | AB20: 00:00:00 | AC20: 0 | AD20: 0 | AE20: 00:00:00 | AF20: 00:00:00 | AG20: 0 | AH20: 0
A21: 2014-01-01 | B21: 1 | C21: 00:00:00 | D21: 00:00:00 | E21: 0 | F21: 0 | G21: 00:00:00 | H21: 00:00:00 | I21: 0 | J21: 0 | K21: 00:00:00 | L21: 00:00:00 | M21: 0 | N21: 0 | O21: 00:00:00 | P21: 00:00:00 | Q21: 0 | R21: 0 | S21: 00:00:00 | T21: 00:00:00 | U21: 0 | V21: 0 | W21: 00:00:00 | X21: 00:00:00 | Y21: 0 | Z21: 0 | AA21: 00:00:00 | AB21: 00:00:00 | AC21: 0 | AD21: 0 | AE21: 00:00:00 | AF21: 00:00:00 | AG21: 0 | AH21: 0
A22: 2015-01-01 | B22: 0.5 | C22: =IF(OR(MID(C21,1,10)="Decorrenza",C21=0),IF(AND(C$6<$A23,C$6>=$A22),C$6,0),IF(D$6<$A22,0,$A22)) -> 00:00:00 | D22: =IF(C22<>0,IF($A23<>"",IF(D$6<$A23,D$6,$A23-1),E$6),0) -> 00:00:00 | E22: =IF(OR(C22<>0,D22<>0),IF(YEAR(C22)=YEAR(D22),D22-C22+1,DATE(YEAR(C22),12,31)-C22+1+D22-DATE(YEAR(D22),1,1)+1+365*(YEAR(D22)-YEAR(C22)-1)),0) -> 0 | F22: =IF(E22<>0,E$6*$B22/100/365*E22,0) -> 0 | G22: =IF(OR(MID(G21,1,10)="Decorrenza",G21=0),IF(AND(G$6<$A23,G$6>=$A22),G$6,0),IF(H$6<$A22,0,$A22)) -> 00:00:00 | H22: =IF(G22<>0,IF($A23<>"",IF(H$6<$A23,H$6,$A23-1),I$6),0) -> 00:00:00 | I22: =IF(OR(G22<>0,H22<>0),IF(YEAR(G22)=YEAR(H22),H22-G22+1,DATE(YEAR(G22),12,31)-G22+1+H22-DATE(YEAR(H22),1,1)+1+365*(YEAR(H22)-YEAR(G22)-1)),0) -> 0 | J22: =IF(I22<>0,I$6*$B22/100/365*I22,0) -> 0 | K22: =IF(OR(MID(K21,1,10)="Decorrenza",K21=0),IF(AND(K$6<$A23,K$6>=$A22),K$6,0),IF(L$6<$A22,0,$A22)) -> 00:00:00 | L22: =IF(K22<>0,IF($A23<>"",IF(L$6<$A23,L$6,$A23-1),M$6),0) -> 00:00:00 | M22: =IF(OR(K22<>0,L22<>0),IF(YEAR(K22)=YEAR(L22),L22-K22+1,DATE(YEAR(K22),12,31)-K22+1+L22-DATE(YEAR(L22),1,1)+1+365*(YEAR(L22)-YEAR(K22)-1)),0) -> 0 | N22: =IF(M22<>0,M$6*$B22/100/365*M22,0) -> 0 | O22: =IF(OR(MID(O21,1,10)="Decorrenza",O21=0),IF(AND(O$6<$A23,O$6>=$A22),O$6,0),IF(P$6<$A22,0,$A22)) -> 00:00:00 | P22: =IF(O22<>0,IF($A23<>"",IF(P$6<$A23,P$6,$A23-1),Q$6),0) -> 00:00:00 | Q22: =IF(OR(O22<>0,P22<>0),IF(YEAR(O22)=YEAR(P22),P22-O22+1,DATE(YEAR(O22),12,31)-O22+1+P22-DATE(YEAR(P22),1,1)+1+365*(YEAR(P22)-YEAR(O22)-1)),0) -> 0 | R22: =IF(Q22<>0,Q$6*$B22/100/365*Q22,0) -> 0 | S22: =IF(OR(MID(S21,1,10)="Decorrenza",S21=0),IF(AND(S$6<$A23,S$6>=$A22),S$6,0),IF(T$6<$A22,0,$A22)) -> 00:00:00 | T22: =IF(S22<>0,IF($A23<>"",IF(T$6<$A23,T$6,$A23-1),U$6),0) -> 00:00:00 | U22: =IF(OR(S22<>0,T22<>0),IF(YEAR(S22)=YEAR(T22),T22-S22+1,DATE(YEAR(S22),12,31)-S22+1+T22-DATE(YEAR(T22),1,1)+1+365*(YEAR(T22)-YEAR(S22)-1)),0) -> 0 | V22: =IF(U22<>0,U$6*$B22/100/365*U22,0) -> 0 | W22: =IF(OR(MID(W21,1,10)="Decorrenza",W21=0),IF(AND(W$6<$A23,W$6>=$A22),W$6,0),IF(X$6<$A22,0,$A22)) -> 00:00:00 | X22: =IF(W22<>0,IF($A23<>"",IF(X$6<$A23,X$6,$A23-1),Y$6),0) -> 00:00:00 | Y22: =IF(OR(W22<>0,X22<>0),IF(YEAR(W22)=YEAR(X22),X22-W22+1,DATE(YEAR(W22),12,31)-W22+1+X22-DATE(YEAR(X22),1,1)+1+365*(YEAR(X22)-YEAR(W22)-1)),0) -> 0 | Z22: =IF(Y22<>0,Y$6*$B22/100/365*Y22,0) -> 0 | AA22: =IF(OR(MID(AA21,1,10)="Decorrenza",AA21=0),IF(AND(AA$6<$A23,AA$6>=$A22),AA$6,0),IF(AB$6<$A22,0,$A22)) -> 00:00:00 | AB22: =IF(AA22<>0,IF($A23<>"",IF(AB$6<$A23,AB$6,$A23-1),AC$6),0) -> 00:00:00 | AC22: =IF(OR(AA22<>0,AB22<>0),IF(YEAR(AA22)=YEAR(AB22),AB22-AA22+1,DATE(YEAR(AA22),12,31)-AA22+1+AB22-DATE(YEAR(AB22),1,1)+1+365*(YEAR(AB22)-YEAR(AA22)-1)),0) -> 0 | AD22: =IF(AC22<>0,AC$6*$B22/100/365*AC22,0) -> 0 | AE22: =IF(OR(MID(AE21,1,10)="Decorrenza",AE21=0),IF(AND(AE$6<$A23,AE$6>=$A22),AE$6,0),IF(AF$6<$A22,0,$A22)) -> 00:00:00 | AF22: =IF(AE22<>0,IF($A23<>"",IF(AF$6<$A23,AF$6,$A23-1),AG$6),0) -> 00:00:00 | AG22: =IF(OR(AE22<>0,AF22<>0),IF(YEAR(AE22)=YEAR(AF22),AF22-AE22+1,DATE(YEAR(AE22),12,31)-AE22+1+AF22-DATE(YEAR(AF22),1,1)+1+365*(YEAR(AF22)-YEAR(AE22)-1)),0) -> 0 | AH22: =IF(AG22<>0,AG$6*$B22/100/365*AG22,0) -> 0
A23: 2016-01-01 | B23: 0.2 | C23: 00:00:00 | D23: 00:00:00 | E23: 0 | F23: 0 | G23: 00:00:00 | H23: 00:00:00 | I23: 0 | J23: 0 | K23: 00:00:00 | L23: 00:00:00 | M23: 0 | N23: 0 | O23: 00:00:00 | P23: 00:00:00 | Q23: 0 | R23: 0 | S23: 00:00:00 | T23: 00:00:00 | U23: 0 | V23: 0 | W23: 00:00:00 | X23: 00:00:00 | Y23: 0 | Z23: 0 | AA23: 00:00:00 | AB23: 00:00:00 | AC23: 0 | AD23: 0 | AE23: 00:00:00 | AF23: 00:00:00 | AG23: 0 | AH23: 0
A24: 2017-01-01 | B24: 0.1 | C24: 00:00:00 | D24: 00:00:00 | E24: 0 | F24: 0 | G24: 00:00:00 | H24: 00:00:00 | I24: 0 | J24: 0 | K24: 00:00:00 | L24: 00:00:00 | M24: 0 | N24: 0 | O24: 00:00:00 | P24: 00:00:00 | Q24: 0 | R24: 0 | S24: 00:00:00 | T24: 00:00:00 | U24: 0 | V24: 0 | W24: 00:00:00 | X24: 00:00:00 | Y24: 0 | Z24: 0 | AA24: 00:00:00 | AB24: 00:00:00 | AC24: 0 | AD24: 0 | AE24: 00:00:00 | AF24: 00:00:00 | AG24: 0 | AH24: 0
A25: 73050 | C25: TOTALI | E25: =SUM(E$9:E24) -> 0 | F25: =ROUND(SUM(F$9:F24),2) -> 0 | G25: TOTALI | I25: =SUM(I$9:I24) -> 0 | J25: =ROUND(SUM(J$9:J24),2) -> 0 | K25: TOTALI | M25: =SUM(M$9:M24) -> 0 | N25: =ROUND(SUM(N$9:N24),2) -> 0 | O25: TOTALI | Q25: =SUM(Q$9:Q24) -> 0 | R25: =ROUND(SUM(R$9:R24),2) -> 0 | S25: TOTALI | U25: =SUM(U$9:U24) -> 0 | V25: =ROUND(SUM(V$9:V24),2) -> 0 | W25: TOTALI | Y25: =SUM(Y$9:Y24) -> 0 | Z25: =ROUND(SUM(Z$9:Z24),2) -> 0 | AA25: TOTALI | AC25: =SUM(AC$9:AC24) -> 0 | AD25: =ROUND(SUM(AD$9:AD24),2) -> 0 | AE25: TOTALI | AG25: =SUM(AG$9:AG24) -> 0 | AH25: =ROUND(SUM(AH$9:AH24),2) -> 0
C26: L'interesse dovuto per ogni giorno successivo alla data di "Termine calcolo interessi" è pari a: | F26: =IF(F25<>0,E$6*INDEX($B$9:$B$102,MATCH(D$6,$A$9:$A$102,1))/100/365,0) -> 0 | G26: L'interesse dovuto per ogni giorno successivo alla data di "Termine calcolo interessi" è pari a: | J26: =IF(J25<>0,I$6*INDEX($B$9:$B$102,MATCH(H$6,$A$9:$A$102,1))/100/365,0) -> 0 | K26: L'interesse dovuto per ogni giorno successivo alla data di "Termine calcolo interessi" è pari a: | N26: =IF(N25<>0,M$6*INDEX($B$9:$B$102,MATCH(L$6,$A$9:$A$102,1))/100/365,0) -> 0 | O26: L'interesse dovuto per ogni giorno successivo alla data di "Termine calcolo interessi" è pari a: | R26: =IF(R25<>0,Q$6*INDEX($B$9:$B$102,MATCH(P$6,$A$9:$A$102,1))/100/365,0) -> 0 | S26: L'interesse dovuto per ogni giorno successivo alla data di "Termine calcolo interessi" è pari a: | V26: =IF(V25<>0,U$6*INDEX($B$9:$B$102,MATCH(T$6,$A$9:$A$102,1))/100/365,0) -> 0 | W26: L'interesse dovuto per ogni giorno successivo alla data di "Termine calcolo interessi" è pari a: | Z26: =IF(Z25<>0,Y$6*INDEX($B$9:$B$102,MATCH(X$6,$A$9:$A$102,1))/100/365,0) -> 0 | AA26: L'interesse dovuto per ogni giorno successivo alla data di "Termine calcolo interessi" è pari a: | AD26: =IF(AD25<>0,AC$6*INDEX($B$9:$B$102,MATCH(AB$6,$A$9:$A$102,1))/100/365,0) -> 0 | AE26: L'interesse dovuto per ogni giorno successivo alla data di "Termine calcolo interessi" è pari a: | AH26: =IF(AH25<>0,AG$6*INDEX($B$9:$B$102,MATCH(AF$6,$A$9:$A$102,1))/100/365,0) -> 0

Sheet inter.legale(vedi prima riga)
A1: ="INTERESSE LEGALE PER IL BIENNIO " & LEFT(RIGHT(menù!$A$3,10),9) -> INTERESSE LEGALE PER IL BIENNIO 2017-2018
A2: Cooperativa:
A3: =ragionesociale -> 0 | E3: =IF(AND(ragionesociale<>"",MID(CELL("nomefile",ragionesociale),FIND("[",CELL("nomefile",ragionesociale))-6,6)<>"Varie\",MID(CELL("nomefile",ragionesociale),1,34)="C:\Documenti\Cooperative associate"),"Progressivo " & MID(CELL("nomefile",ragionesociale),FIND("-",CELL("nomefile",ragionesociale))-3,3),"") -> 
A4: L'elaborazione considera l'anno civile (365 giorni), senza calcolare l'anatocismo. | C4: ="CALCOLO INTERESSI SUL CONTRIBUTO DI REVISIONE PER IL BIENNIO " & RIGHT('contr.biennio(vedi prima riga)'!$G$28,9) -> CALCOLO INTERESSI SUL CONTRIBUTO DI REVISIONE PER IL BIENNIO 2011-2012 | G4: ="CALCOLO INTERESSI SUL CONTRIBUTO DI REVISIONE PER IL BIENNIO " & RIGHT('contr.biennio(vedi prima riga)'!$H$28,9) -> CALCOLO INTERESSI SUL CONTRIBUTO DI REVISIONE PER IL BIENNIO 2013-2014 | K4: ="CALCOLO INTERESSI SUL CONTRIBUTO DI REVISIONE PER IL BIENNIO " & RIGHT('contr.biennio(vedi prima riga)'!$I$28,9) -> CALCOLO INTERESSI SUL CONTRIBUTO DI REVISIONE PER IL BIENNIO 2015-2016 | O4: ="CALCOLO INTERESSI SUL CONTRIBUTO 3% PER L'ESERCIZIO " & RIGHT('contr.biennio(vedi prima riga)'!$F$47,9) -> CALCOLO INTERESSI SUL CONTRIBUTO 3% PER L'ESERCIZIO 2011 | S4: ="CALCOLO INTERESSI SUL CONTRIBUTO 3% PER L'ESERCIZIO " & RIGHT('contr.biennio(vedi prima riga)'!$G$47,9) -> CALCOLO INTERESSI SUL CONTRIBUTO 3% PER L'ESERCIZIO 2012 | W4: ="CALCOLO INTERESSI SUL CONTRIBUTO 3% PER L'ESERCIZIO " & RIGHT('contr.biennio(vedi prima riga)'!$H$47,9) -> CALCOLO INTERESSI SUL CONTRIBUTO 3% PER L'ESERCIZIO 2013 | AA4: ="CALCOLO INTERESSI SUL CONTRIBUTO 3% PER L'ESERCIZIO " & RIGHT('contr.biennio(vedi prima riga)'!$I$47,9) -> CALCOLO INTERESSI SUL CONTRIBUTO 3% PER L'ESERCIZIO 2014 | AE4: ="CALCOLO INTERESSI SUL CONTRIBUTO 3% PER L'ESERCIZIO " & RIGHT('contr.biennio(vedi prima riga)'!$J$47,9) -> CALCOLO INTERESSI SUL CONTRIBUTO 3% PER L'ESERCIZIO 2015
C5: Decorrenza interessi (gg.mm.aa) | D5: Termine calcolo interessi (gg.mm.aa) | E5: contributo biennale di revisione | G5: Decorrenza interessi (gg.mm.aa) | H5: Termine calcolo interessi (gg.mm.aa) | I5: contributo biennale di revisione | K5: Decorrenza interessi (gg.mm.aa) | L5: Termine calcolo interessi (gg.mm.aa) | M5: contributo biennale di revisione | O5: Decorrenza interessi (gg.mm.aa) | P5: Termine calcolo interessi (gg.mm.aa) | Q5: Imponibile | S5: Decorrenza interessi (gg.mm.aa) | T5: Termine calcolo interessi (gg.mm.aa) | U5: Imponibile | W5: Decorrenza interessi (gg.mm.aa) | X5: Termine calcolo interessi (gg.mm.aa) | Y5: Imponibile | AA5: Decorrenza interessi (gg.mm.aa) | AB5: Termine calcolo interessi (gg.mm.aa) | AC5: Imponibile | AE5: Decorrenza interessi (gg.mm.aa) | AF5: Termine calcolo interessi (gg.mm.aa) | AG5: Imponibile
C6: =IF('contr.biennio(vedi prima riga)'!$G$35<>"",IF('contr.biennio(vedi prima riga)'!$G$32<>"",'contr.biennio(vedi prima riga)'!$G$33,'contr.biennio(vedi prima riga)'!$G$30),"") ->  | D6: =IF('contr.biennio(vedi prima riga)'!$G$35<>"",'contr.biennio(vedi prima riga)'!$G$35,"") ->  | E6: =IF('contr.biennio(vedi prima riga)'!$G$35<>"",'contr.biennio(vedi prima riga)'!$G$34,"") ->  | G6: =IF('contr.biennio(vedi prima riga)'!$H$35<>"",IF('contr.biennio(vedi prima riga)'!$H$32<>"",'contr.biennio(vedi prima riga)'!$H$33,'contr.biennio(vedi prima riga)'!$H$30),"") ->  | H6: =IF('contr.biennio(vedi prima riga)'!$H$35<>"",'contr.biennio(vedi prima riga)'!$H$35,"") ->  | I6: =IF('contr.biennio(vedi prima riga)'!$H$35<>"",'contr.biennio(vedi prima riga)'!$H$34,"") ->  | K6: =IF('contr.biennio(vedi prima riga)'!$I$35<>"",IF('contr.biennio(vedi prima riga)'!$I$32<>"",'contr.biennio(vedi prima riga)'!$I$33,'contr.biennio(vedi prima riga)'!$I$30),"") ->  | L6: =IF('contr.biennio(vedi prima riga)'!$I$35<>"",'contr.biennio(vedi prima riga)'!$I$35,"") ->  | M6: =IF('contr.biennio(vedi prima riga)'!$I$35<>"",'contr.biennio(vedi prima riga)'!$I$34,"") ->  | O6: =IF('contr.biennio(vedi prima riga)'!$F$57<>"",'contr.biennio(vedi prima riga)'!$F$56,"") ->  | P6: =IF('contr.biennio(vedi prima riga)'!$F$57<>"",'contr.biennio(vedi prima riga)'!$F$57,"") ->  | Q6: ='contr.biennio(vedi prima riga)'!$F$54 -> 0 | S6: =IF('contr.biennio(vedi prima riga)'!$G$57<>"",'contr.biennio(vedi prima riga)'!$G$56,"") ->  | T6: =IF('contr.biennio(vedi prima riga)'!$G$57<>"",'contr.biennio(vedi prima riga)'!$G$57,"") ->  | U6: ='contr.biennio(vedi prima riga)'!$G$54 -> 0 | W6: =IF('contr.biennio(vedi prima riga)'!$H$57<>"",'contr.biennio(vedi prima riga)'!$H$56,"") ->  | X6: =IF('contr.biennio(vedi prima riga)'!$H$57<>"",'contr.biennio(vedi prima riga)'!$H$57,"") ->  | Y6: ='contr.biennio(vedi prima riga)'!$H$54 -> 0 | AA6: =IF('contr.biennio(vedi prima riga)'!$I$57<>"",'contr.biennio(vedi prima riga)'!$I$56,"") ->  | AB6: =IF('contr.biennio(vedi prima riga)'!$I$57<>"",'contr.biennio(vedi prima riga)'!$I$57,"") ->  | AC6: ='contr.biennio(vedi prima riga)'!$I$54 -> 0 | AE6: =IF('contr.biennio(vedi prima riga)'!$J$57<>"",'contr.biennio(vedi prima riga)'!$J$56,"") ->  | AF6: =IF('contr.biennio(vedi prima riga)'!$J$57<>"",'contr.biennio(vedi prima riga)'!$J$57,"") ->  | AG6: ='contr.biennio(vedi prima riga)'!$J$54 -> 0
C7: =IF(AND(C6="",D6="",E6=""),"",IF(AND(C6<>"",D6<>"",E6<>""),IF(C6<C$9,"data decorrenza minore data decorrenza minima conosciuta prima colonna",""),"data decorrenza o data termine o importo su cui calcolare gli interessi non comunicato")) ->  | G7: =IF(AND(G6="",H6="",I6=""),"",IF(AND(G6<>"",H6<>"",I6<>""),IF(G6<G$9,"data decorrenza minore data decorrenza minima conosciuta prima colonna",""),"data decorrenza o data termine o importo su cui calcolare gli interessi non comunicato")) ->  | K7: =IF(AND(K6="",L6="",M6=""),"",IF(AND(K6<>"",L6<>"",M6<>""),IF(K6<K$9,"data decorrenza minore data decorrenza minima conosciuta prima colonna",""),"data decorrenza o data termine o importo su cui calcolare gli interessi non comunicato")) ->  | O7: =IF(AND(O$6<>0,O$6<$A$9),"decorrenza antecedente o termine successivo alle date limiti","") ->  | S7: =IF(AND(S$6<>0,S$6<$A$9),"decorrenza antecedente o termine successivo alle date limiti","") ->  | W7: =IF(AND(W$6<>0,W$6<$A$9),"decorrenza antecedente o termine successivo alle date limiti","") ->  | AA7: =IF(AND(AA$6<>0,AA$6<$A$9),"decorrenza antecedente o termine successivo alle date limiti","") ->  | AE7: =IF(AND(AE$6<>0,AE$6<$A$9),"decorrenza antecedente o termine successivo alle date limiti","") -> 
A8: Decorrenza (gg.mm.aa) | B8: Tasso % | C8: Decorrenza interessi (gg.mm.aa) | D8: Termine calcolo interessi (gg.mm.aa) | E8: Giorni | F8: Interesse sul contributo biennale di revisione | G8: Decorrenza interessi (gg.mm.aa) | H8: Termine calcolo interessi (gg.mm.aa) | I8: Giorni | J8: Interesse sul contributo biennale di revisione | K8: Decorrenza interessi (gg.mm.aa) | L8: Termine calcolo interessi (gg.mm.aa) | M8: Giorni | N8: Interesse sul contributo biennale di revisione | O8: Decorrenza interessi (gg.mm.aa) | P8: Termine calcolo interessi (gg.mm.aa) | Q8: Giorni | R8: Interesse | S8: Decorrenza interessi (gg.mm.aa) | T8: Termine calcolo interessi (gg.mm.aa) | U8: Giorni | V8: Interesse | W8: Decorrenza interessi (gg.mm.aa) | X8: Termine calcolo interessi (gg.mm.aa) | Y8: Giorni | Z8: Interesse | AA8: Decorrenza interessi (gg.mm.aa) | AB8: Termine calcolo interessi (gg.mm.aa) | AC8: Giorni | AD8: Interesse | AE8: Decorrenza interessi (gg.mm.aa) | AF8: Termine calcolo interessi (gg.mm.aa) | AG8: Giorni | AH8: Interesse
A9: 1990-01-01 | B9: 5 | C9: =IF(OR(MID(C8,1,10)="Decorrenza",C8=0),IF(AND(C$6<$A10,C$6>=$A9),C$6,0),IF(D$6<$A9,0,$A9)) -> 00:00:00 | D9: =IF(C9<>0,IF($A10<>"",IF(D$6<$A10,D$6,$A10-1),E$6),0) -> 00:00:00 | E9: =IF(OR(C9<>0,D9<>0),IF(YEAR(C9)=YEAR(D9),D9-C9+1,DATE(YEAR(C9),12,31)-C9+1+D9-DATE(YEAR(D9),1,1)+1+365*(YEAR(D9)-YEAR(C9)-1)),0) -> 0 | F9: =IF(E9<>0,E$6*$B9/100/365*E9,0) -> 0 | G9: =IF(OR(MID(G8,1,10)="Decorrenza",G8=0),IF(AND(G$6<$A10,G$6>=$A9),G$6,0),IF(H$6<$A9,0,$A9)) -> 00:00:00 | H9: =IF(G9<>0,IF($A10<>"",IF(H$6<$A10,H$6,$A10-1),I$6),0) -> 00:00:00 | I9: =IF(OR(G9<>0,H9<>0),IF(YEAR(G9)=YEAR(H9),H9-G9+1,DATE(YEAR(G9),12,31)-G9+1+H9-DATE(YEAR(H9),1,1)+1+365*(YEAR(H9)-YEAR(G9)-1)),0) -> 0 | J9: =IF(I9<>0,I$6*$B9/100/365*I9,0) -> 0 | K9: =IF(OR(MID(K8,1,10)="Decorrenza",K8=0),IF(AND(K$6<$A10,K$6>=$A9),K$6,0),IF(L$6<$A9,0,$A9)) -> 00:00:00 | L9: =IF(K9<>0,IF($A10<>"",IF(L$6<$A10,L$6,$A10-1),M$6),0) -> 00:00:00 | M9: =IF(OR(K9<>0,L9<>0),IF(YEAR(K9)=YEAR(L9),L9-K9+1,DATE(YEAR(K9),12,31)-K9+1+L9-DATE(YEAR(L9),1,1)+1+365*(YEAR(L9)-YEAR(K9)-1)),0) -> 0 | N9: =IF(M9<>0,M$6*$B9/100/365*M9,0) -> 0 | O9: =IF(OR(MID(O8,1,10)="Decorrenza",O8=0),IF(AND(O$6<$A10,O$6>=$A9),O$6,0),IF(P$6<$A9,0,$A9)) -> 00:00:00 | P9: =IF(O9<>0,IF($A10<>"",IF(P$6<$A10,P$6,$A10-1),Q$6),0) -> 00:00:00 | Q9: =IF(OR(O9<>0,P9<>0),IF(YEAR(O9)=YEAR(P9),P9-O9+1,DATE(YEAR(O9),12,31)-O9+1+P9-DATE(YEAR(P9),1,1)+1+365*(YEAR(P9)-YEAR(O9)-1)),0) -> 0 | R9: =IF(Q9<>0,Q$6*$B9/100/365*Q9,0) -> 0 | S9: =IF(OR(MID(S8,1,10)="Decorrenza",S8=0),IF(AND(S$6<$A10,S$6>=$A9),S$6,0),IF(T$6<$A9,0,$A9)) -> 00:00:00 | T9: =IF(S9<>0,IF($A10<>"",IF(T$6<$A10,T$6,$A10-1),U$6),0) -> 00:00:00 | U9: =IF(OR(S9<>0,T9<>0),IF(YEAR(S9)=YEAR(T9),T9-S9+1,DATE(YEAR(S9),12,31)-S9+1+T9-DATE(YEAR(T9),1,1)+1+365*(YEAR(T9)-YEAR(S9)-1)),0) -> 0 | V9: =IF(U9<>0,U$6*$B9/100/365*U9,0) -> 0 | W9: =IF(OR(MID(W8,1,10)="Decorrenza",W8=0),IF(AND(W$6<$A10,W$6>=$A9),W$6,0),IF(X$6<$A9,0,$A9)) -> 00:00:00 | X9: =IF(W9<>0,IF($A10<>"",IF(X$6<$A10,X$6,$A10-1),Y$6),0) -> 00:00:00 | Y9: =IF(OR(W9<>0,X9<>0),IF(YEAR(W9)=YEAR(X9),X9-W9+1,DATE(YEAR(W9),12,31)-W9+1+X9-DATE(YEAR(X9),1,1)+1+365*(YEAR(X9)-YEAR(W9)-1)),0) -> 0 | Z9: =IF(Y9<>0,Y$6*$B9/100/365*Y9,0) -> 0 | AA9: =IF(OR(MID(AA8,1,10)="Decorrenza",AA8=0),IF(AND(AA$6<$A10,AA$6>=$A9),AA$6,0),IF(AB$6<$A9,0,$A9)) -> 00:00:00 | AB9: =IF(AA9<>0,IF($A10<>"",IF(AB$6<$A10,AB$6,$A10-1),AC$6),0) -> 00:00:00 | AC9: =IF(OR(AA9<>0,AB9<>0),IF(YEAR(AA9)=YEAR(AB9),AB9-AA9+1,DATE(YEAR(AA9),12,31)-AA9+1+AB9-DATE(YEAR(AB9),1,1)+1+365*(YEAR(AB9)-YEAR(AA9)-1)),0) -> 0 | AD9: =IF(AC9<>0,AC$6*$B9/100/365*AC9,0) -> 0 | AE9: =IF(OR(MID(AE8,1,10)="Decorrenza",AE8=0),IF(AND(AE$6<$A10,AE$6>=$A9),AE$6,0),IF(AF$6<$A9,0,$A9)) -> 00:00:00 | AF9: =IF(AE9<>0,IF($A10<>"",IF(AF$6<$A10,AF$6,$A10-1),AG$6),0) -> 00:00:00 | AG9: =IF(OR(AE9<>0,AF9<>0),IF(YEAR(AE9)=YEAR(AF9),AF9-AE9+1,DATE(YEAR(AE9),12,31)-AE9+1+AF9-DATE(YEAR(AF9),1,1)+1+365*(YEAR(AF9)-YEAR(AE9)-1)),0) -> 0 | AH9: =IF(AG9<>0,AG$6*$B9/100/365*AG9,0) -> 0
A10: 1990-12-16 | B10: 10 | C10: =IF(OR(MID(C9,1,10)="Decorrenza",C9=0),IF(AND(C$6<$A11,C$6>=$A10),C$6,0),IF(D$6<$A10,0,$A10)) -> 00:00:00 | D10: 00:00:00 | E10: =IF(OR(C10<>0,D10<>0),IF(YEAR(C10)=YEAR(D10),D10-C10+1,DATE(YEAR(C10),12,31)-C10+1+D10-DATE(YEAR(D10),1,1)+1+365*(YEAR(D10)-YEAR(C10)-1)),0) -> 0 | F10: =IF(E10<>0,E$6*$B10/100/365*E10,0) -> 0 | G10: =IF(OR(MID(G9,1,10)="Decorrenza",G9=0),IF(AND(G$6<$A11,G$6>=$A10),G$6,0),IF(H$6<$A10,0,$A10)) -> 00:00:00 | H10: 00:00:00 | I10: =IF(OR(G10<>0,H10<>0),IF(YEAR(G10)=YEAR(H10),H10-G10+1,DATE(YEAR(G10),12,31)-G10+1+H10-DATE(YEAR(H10),1,1)+1+365*(YEAR(H10)-YEAR(G10)-1)),0) -> 0 | J10: =IF(I10<>0,I$6*$B10/100/365*I10,0) -> 0 | K10: =IF(OR(MID(K9,1,10)="Decorrenza",K9=0),IF(AND(K$6<$A11,K$6>=$A10),K$6,0),IF(L$6<$A10,0,$A10)) -> 00:00:00 | L10: 00:00:00 | M10: =IF(OR(K10<>0,L10<>0),IF(YEAR(K10)=YEAR(L10),L10-K10+1,DATE(YEAR(K10),12,31)-K10+1+L10-DATE(YEAR(L10),1,1)+1+365*(YEAR(L10)-YEAR(K10)-1)),0) -> 0 | N10: =IF(M10<>0,M$6*$B10/100/365*M10,0) -> 0 | O10: =IF(OR(MID(O9,1,10)="Decorrenza",O9=0),IF(AND(O$6<$A11,O$6>=$A10),O$6,0),IF(P$6<$A10,0,$A10)) -> 00:00:00 | P10: 00:00:00 | Q10: =IF(OR(O10<>0,P10<>0),IF(YEAR(O10)=YEAR(P10),P10-O10+1,DATE(YEAR(O10),12,31)-O10+1+P10-DATE(YEAR(P10),1,1)+1+365*(YEAR(P10)-YEAR(O10)-1)),0) -> 0 | R10: =IF(Q10<>0,Q$6*$B10/100/365*Q10,0) -> 0 | S10: =IF(OR(MID(S9,1,10)="Decorrenza",S9=0),IF(AND(S$6<$A11,S$6>=$A10),S$6,0),IF(T$6<$A10,0,$A10)) -> 00:00:00 | T10: 00:00:00 | U10: =IF(OR(S10<>0,T10<>0),IF(YEAR(S10)=YEAR(T10),T10-S10+1,DATE(YEAR(S10),12,31)-S10+1+T10-DATE(YEAR(T10),1,1)+1+365*(YEAR(T10)-YEAR(S10)-1)),0) -> 0 | V10: =IF(U10<>0,U$6*$B10/100/365*U10,0) -> 0 | W10: =IF(OR(MID(W9,1,10)="Decorrenza",W9=0),IF(AND(W$6<$A11,W$6>=$A10),W$6,0),IF(X$6<$A10,0,$A10)) -> 00:00:00 | X10: 00:00:00 | Y10: =IF(OR(W10<>0,X10<>0),IF(YEAR(W10)=YEAR(X10),X10-W10+1,DATE(YEAR(W10),12,31)-W10+1+X10-DATE(YEAR(X10),1,1)+1+365*(YEAR(X10)-YEAR(W10)-1)),0) -> 0 | Z10: =IF(Y10<>0,Y$6*$B10/100/365*Y10,0) -> 0 | AA10: =IF(OR(MID(AA9,1,10)="Decorrenza",AA9=0),IF(AND(AA$6<$A11,AA$6>=$A10),AA$6,0),IF(AB$6<$A10,0,$A10)) -> 00:00:00 | AB10: 00:00:00 | AC10: =IF(OR(AA10<>0,AB10<>0),IF(YEAR(AA10)=YEAR(AB10),AB10-AA10+1,DATE(YEAR(AA10),12,31)-AA10+1+AB10-DATE(YEAR(AB10),1,1)+1+365*(YEAR(AB10)-YEAR(AA10)-1)),0) -> 0 | AD10: =IF(AC10<>0,AC$6*$B10/100/365*AC10,0) -> 0 | AE10: =IF(OR(MID(AE9,1,10)="Decorrenza",AE9=0),IF(AND(AE$6<$A11,AE$6>=$A10),AE$6,0),IF(AF$6<$A10,0,$A10)) -> 00:00:00 | AF10: 00:00:00 | AG10: =IF(OR(AE10<>0,AF10<>0),IF(YEAR(AE10)=YEAR(AF10),AF10-AE10+1,DATE(YEAR(AE10),12,31)-AE10+1+AF10-DATE(YEAR(AF10),1,1)+1+365*(YEAR(AF10)-YEAR(AE10)-1)),0) -> 0 | AH10: =IF(AG10<>0,AG$6*$B10/100/365*AG10,0) -> 0
A11: 1997-01-01 | B11: 5 | C11: 00:00:00 | D11: 00:00:00 | E11: 0 | F11: 0 | G11: 00:00:00 | H11: 00:00:00 | I11: 0 | J11: 0 | K11: 00:00:00 | L11: 00:00:00 | M11: 0 | N11: 0 | O11: 00:00:00 | P11: 00:00:00 | Q11: 0 | R11: 0 | S11: 00:00:00 | T11: 00:00:00 | U11: 0 | V11: 0 | W11: 00:00:00 | X11: 00:00:00 | Y11: 0 | Z11: 0 | AA11: 00:00:00 | AB11: 00:00:00 | AC11: 0 | AD11: 0 | AE11: 00:00:00 | AF11: 00:00:00 | AG11: 0 | AH11: 0
A12: 1999-01-01 | B12: 2.5 | C12: 00:00:00 | D12: 00:00:00 | E12: 0 | F12: 0 | G12: 00:00:00 | H12: 00:00:00 | I12: 0 | J12: 0 | K12: 00:00:00 | L12: 00:00:00 | M12: 0 | N12: 0 | O12: 00:00:00 | P12: 00:00:00 | Q12: 0 | R12: 0 | S12: 00:00:00 | T12: 00:00:00 | U12: 0 | V12: 0 | W12: 00:00:00 | X12: 00:00:00 | Y12: 0 | Z12: 0 | AA12: 00:00:00 | AB12: 00:00:00 | AC12: 0 | AD12: 0 | AE12: 00:00:00 | AF12: 00:00:00 | AG12: 0 | AH12: 0
A13: 2001-01-01 | B13: 3.5 | C13: 00:00:00 | D13: 00:00:00 | E13: 0 | F13: 0 | G13: 00:00:00 | H13: 00:00:00 | I13: 0 | J13: 0 | K13: 00:00:00 | L13: 00:00:00 | M13: 0 | N13: 0 | O13: 00:00:00 | P13: 00:00:00 | Q13: 0 | R13: 0 | S13: 00:00:00 | T13: 00:00:00 | U13: 0 | V13: 0 | W13: 00:00:00 | X13: 00:00:00 | Y13: 0 | Z13: 0 | AA13: 00:00:00 | AB13: 00:00:00 | AC13: 0 | AD13: 0 | AE13: 00:00:00 | AF13: 00:00:00 | AG13: 0 | AH13: 0
A14: 2002-01-01 | B14: 3 | C14: 00:00:00 | D14: 00:00:00 | E14: 0 | F14: 0 | G14: 00:00:00 | H14: 00:00:00 | I14: 0 | J14: 0 | K14: 00:00:00 | L14: 00:00:00 | M14: 0 | N14: 0 | O14: 00:00:00 | P14: 00:00:00 | Q14: 0 | R14: 0 | S14: 00:00:00 | T14: 00:00:00 | U14: 0 | V14: 0 | W14: 00:00:00 | X14: 00:00:00 | Y14: 0 | Z14: 0 | AA14: 00:00:00 | AB14: 00:00:00 | AC14: 0 | AD14: 0 | AE14: 00:00:00 | AF14: 00:00:00 | AG14: 0 | AH14: 0
A15: 2004-01-01 | B15: 2.5 | C15: 00:00:00 | D15: 00:00:00 | E15: 0 | F15: 0 | G15: 00:00:00 | H15: 00:00:00 | I15: 0 | J15: 0 | K15: 00:00:00 | L15: 00:00:00 | M15: 0 | N15: 0 | O15: 00:00:00 | P15: 00:00:00 | Q15: 0 | R15: 0 | S15: 00:00:00 | T15: 00:00:00 | U15: 0 | V15: 0 | W15: 00:00:00 | X15: 00:00:00 | Y15: 0 | Z15: 0 | AA15: 00:00:00 | AB15: 00:00:00 | AC15: 0 | AD15: 0 | AE15: 00:00:00 | AF15: 00:00:00 | AG15: 0 | AH15: 0
A16: 2008-01-01 | B16: 3 | C16: 00:00:00 | D16: 00:00:00 | E16: 0 | F16: 0 | G16: 00:00:00 | H16: 00:00:00 | I16: 0 | J16: 0 | K16: 00:00:00 | L16: 00:00:00 | M16: 0 | N16: 0 | O16: 00:00:00 | P16: 00:00:00 | Q16: 0 | R16: 0 | S16: 00:00:00 | T16: 00:00:00 | U16: 0 | V16: 0 | W16: 00:00:00 | X16: 00:00:00 | Y16: 0 | Z16: 0 | AA16: 00:00:00 | AB16: 00:00:00 | AC16: 0 | AD16: 0 | AE16: 00:00:00 | AF16: 00:00:00 | AG16: 0 | AH16: 0
A17: 2010-01-01 | B17: 1 | C17: 00:00:00 | D17: 00:00:00 | E17: 0 | F17: 0 | G17: 00:00:00 | H17: 00:00:00 | I17: 0 | J17: 0 | K17: 00:00:00 | L17: 00:00:00 | M17: 0 | N17: 0 | O17: 00:00:00 | P17: 00:00:00 | Q17: 0 | R17: 0 | S17: 00:00:00 | T17: 00:00:00 | U17: 0 | V17: 0 | W17: 00:00:00 | X17: 00:00:00 | Y17: 0 | Z17: 0 | AA17: 00:00:00 | AB17: 00:00:00 | AC17: 0 | AD17: 0 | AE17: 00:00:00 | AF17: 00:00:00 | AG17: 0 | AH17: 0
A18: 2011-01-01 | B18: 1.5 | C18: =IF(OR(MID(C17,1,10)="Decorrenza",C17=0),IF(AND(C$6<$A19,C$6>=$A18),C$6,0),IF(D$6<$A18,0,$A18)) -> 00:00:00 | D18: =IF(C18<>0,IF($A19<>"",IF(D$6<$A19,D$6,$A19-1),E$6),0) -> 00:00:00 | E18: =IF(OR(C18<>0,D18<>0),IF(YEAR(C18)=YEAR(D18),D18-C18+1,DATE(YEAR(C18),12,31)-C18+1+D18-DATE(YEAR(D18),1,1)+1+365*(YEAR(D18)-YEAR(C18)-1)),0) -> 0 | F18: =IF(E18<>0,E$6*$B18/100/365*E18,0) -> 0 | G18: =IF(OR(MID(G17,1,10)="Decorrenza",G17=0),IF(AND(G$6<$A19,G$6>=$A18),G$6,0),IF(H$6<$A18,0,$A18)) -> 00:00:00 | H18: =IF(G18<>0,IF($A19<>"",IF(H$6<$A19,H$6,$A19-1),I$6),0) -> 00:00:00 | I18: =IF(OR(G18<>0,H18<>0),IF(YEAR(G18)=YEAR(H18),H18-G18+1,DATE(YEAR(G18),12,31)-G18+1+H18-DATE(YEAR(H18),1,1)+1+365*(YEAR(H18)-YEAR(G18)-1)),0) -> 0 | J18: =IF(I18<>0,I$6*$B18/100/365*I18,0) -> 0 | K18: =IF(OR(MID(K17,1,10)="Decorrenza",K17=0),IF(AND(K$6<$A19,K$6>=$A18),K$6,0),IF(L$6<$A18,0,$A18)) -> 00:00:00 | L18: =IF(K18<>0,IF($A19<>"",IF(L$6<$A19,L$6,$A19-1),M$6),0) -> 00:00:00 | M18: =IF(OR(K18<>0,L18<>0),IF(YEAR(K18)=YEAR(L18),L18-K18+1,DATE(YEAR(K18),12,31)-K18+1+L18-DATE(YEAR(L18),1,1)+1+365*(YEAR(L18)-YEAR(K18)-1)),0) -> 0 | N18: =IF(M18<>0,M$6*$B18/100/365*M18,0) -> 0 | O18: =IF(OR(MID(O17,1,10)="Decorrenza",O17=0),IF(AND(O$6<$A19,O$6>=$A18),O$6,0),IF(P$6<$A18,0,$A18)) -> 00:00:00 | P18: =IF(O18<>0,IF($A19<>"",IF(P$6<$A19,P$6,$A19-1),Q$6),0) -> 00:00:00 | Q18: =IF(OR(O18<>0,P18<>0),IF(YEAR(O18)=YEAR(P18),P18-O18+1,DATE(YEAR(O18),12,31)-O18+1+P18-DATE(YEAR(P18),1,1)+1+365*(YEAR(P18)-YEAR(O18)-1)),0) -> 0 | R18: =IF(Q18<>0,Q$6*$B18/100/365*Q18,0) -> 0 | S18: =IF(OR(MID(S17,1,10)="Decorrenza",S17=0),IF(AND(S$6<$A19,S$6>=$A18),S$6,0),IF(T$6<$A18,0,$A18)) -> 00:00:00 | T18: =IF(S18<>0,IF($A19<>"",IF(T$6<$A19,T$6,$A19-1),U$6),0) -> 00:00:00 | U18: =IF(OR(S18<>0,T18<>0),IF(YEAR(S18)=YEAR(T18),T18-S18+1,DATE(YEAR(S18),12,31)-S18+1+T18-DATE(YEAR(T18),1,1)+1+365*(YEAR(T18)-YEAR(S18)-1)),0) -> 0 | V18: =IF(U18<>0,U$6*$B18/100/365*U18,0) -> 0 | W18: =IF(OR(MID(W17,1,10)="Decorrenza",W17=0),IF(AND(W$6<$A19,W$6>=$A18),W$6,0),IF(X$6<$A18,0,$A18)) -> 00:00:00 | X18: =IF(W18<>0,IF($A19<>"",IF(X$6<$A19,X$6,$A19-1),Y$6),0) -> 00:00:00 | Y18: =IF(OR(W18<>0,X18<>0),IF(YEAR(W18)=YEAR(X18),X18-W18+1,DATE(YEAR(W18),12,31)-W18+1+X18-DATE(YEAR(X18),1,1)+1+365*(YEAR(X18)-YEAR(W18)-1)),0) -> 0 | Z18: =IF(Y18<>0,Y$6*$B18/100/365*Y18,0) -> 0 | AA18: =IF(OR(MID(AA17,1,10)="Decorrenza",AA17=0),IF(AND(AA$6<$A19,AA$6>=$A18),AA$6,0),IF(AB$6<$A18,0,$A18)) -> 00:00:00 | AB18: =IF(AA18<>0,IF($A19<>"",IF(AB$6<$A19,AB$6,$A19-1),AC$6),0) -> 00:00:00 | AC18: =IF(OR(AA18<>0,AB18<>0),IF(YEAR(AA18)=YEAR(AB18),AB18-AA18+1,DATE(YEAR(AA18),12,31)-AA18+1+AB18-DATE(YEAR(AB18),1,1)+1+365*(YEAR(AB18)-YEAR(AA18)-1)),0) -> 0 | AD18: =IF(AC18<>0,AC$6*$B18/100/365*AC18,0) -> 0 | AE18: =IF(OR(MID(AE17,1,10)="Decorrenza",AE17=0),IF(AND(AE$6<$A19,AE$6>=$A18),AE$6,0),IF(AF$6<$A18,0,$A18)) -> 00:00:00 | AF18: =IF(AE18<>0,IF($A19<>"",IF(AF$6<$A19,AF$6,$A19-1),AG$6),0) -> 00:00:00 | AG18: =IF(OR(AE18<>0,AF18<>0),IF(YEAR(AE18)=YEAR(AF18),AF18-AE18+1,DATE(YEAR(AE18),12,31)-AE18+1+AF18-DATE(YEAR(AF18),1,1)+1+365*(YEAR(AF18)-YEAR(AE18)-1)),0) -> 0 | AH18: =IF(AG18<>0,AG$6*$B18/100/365*AG18,0) -> 0
A19: 2012-01-01 | B19: 2.5 | C19: 00:00:00 | D19: 00:00:00 | E19: 0 | F19: 0 | G19: 00:00:00 | H19: 00:00:00 | I19: 0 | J19: 0 | K19: 00:00:00 | L19: 00:00:00 | M19: 0 | N19: 0 | O19: 00:00:00 | P19: 00:00:00 | Q19: 0 | R19: 0 | S19: 00:00:00 | T19: 00:00:00 | U19: 0 | V19: 0 | W19: 00:00:00 | X19: 00:00:00 | Y19: 0 | Z19: 0 | AA19: 00:00:00 | AB19: 00:00:00 | AC19: 0 | AD19: 0 | AE19: 00:00:00 | AF19: 00:00:00 | AG19: 0 | AH19: 0
A20: 2013-01-01 | B20: 2.5 | C20: 00:00:00 | D20: 00:00:00 | E20: 0 | F20: 0 | G20: 00:00:00 | H20: 00:00:00 | I20: 0 | J20: 0 | K20: 00:00:00 | L20: 00:00:00 | M20: 0 | N20: 0 | O20: 00:00:00 | P20: 00:00:00 | Q20: 0 | R20: 0 | S20: 00:00:00 | T20: 00:00:00 | U20: 0 | V20: 0 | W20: 00:00:00 | X20: 00:00:00 | Y20: 0 | Z20: 0 | AA20: 00:00:00 | AB20: 00:00:00 | AC20: 0 | AD20: 0 | AE20: 00:00:00 | AF20: 00:00:00 | AG20: 0 | AH20: 0
A21: 2014-01-01 | B21: 1 | C21: 00:00:00 | D21: 00:00:00 | E21: 0 | F21: 0 | G21: 00:00:00 | H21: 00:00:00 | I21: 0 | J21: 0 | K21: 00:00:00 | L21: 00:00:00 | M21: 0 | N21: 0 | O21: 00:00:00 | P21: 00:00:00 | Q21: 0 | R21: 0 | S21: 00:00:00 | T21: 00:00:00 | U21: 0 | V21: 0 | W21: 00:00:00 | X21: 00:00:00 | Y21: 0 | Z21: 0 | AA21: 00:00:00 | AB21: 00:00:00 | AC21: 0 | AD21: 0 | AE21: 00:00:00 | AF21: 00:00:00 | AG21: 0 | AH21: 0
A22: 2015-01-01 | B22: 0.5 | C22: =IF(OR(MID(C21,1,10)="Decorrenza",C21=0),IF(AND(C$6<$A23,C$6>=$A22),C$6,0),IF(D$6<$A22,0,$A22)) -> 00:00:00 | D22: =IF(C22<>0,IF($A23<>"",IF(D$6<$A23,D$6,$A23-1),E$6),0) -> 00:00:00 | E22: =IF(OR(C22<>0,D22<>0),IF(YEAR(C22)=YEAR(D22),D22-C22+1,DATE(YEAR(C22),12,31)-C22+1+D22-DATE(YEAR(D22),1,1)+1+365*(YEAR(D22)-YEAR(C22)-1)),0) -> 0 | F22: =IF(E22<>0,E$6*$B22/100/365*E22,0) -> 0 | G22: =IF(OR(MID(G21,1,10)="Decorrenza",G21=0),IF(AND(G$6<$A23,G$6>=$A22),G$6,0),IF(H$6<$A22,0,$A22)) -> 00:00:00 | H22: =IF(G22<>0,IF($A23<>"",IF(H$6<$A23,H$6,$A23-1),I$6),0) -> 00:00:00 | I22: =IF(OR(G22<>0,H22<>0),IF(YEAR(G22)=YEAR(H22),H22-G22+1,DATE(YEAR(G22),12,31)-G22+1+H22-DATE(YEAR(H22),1,1)+1+365*(YEAR(H22)-YEAR(G22)-1)),0) -> 0 | J22: =IF(I22<>0,I$6*$B22/100/365*I22,0) -> 0 | K22: =IF(OR(MID(K21,1,10)="Decorrenza",K21=0),IF(AND(K$6<$A23,K$6>=$A22),K$6,0),IF(L$6<$A22,0,$A22)) -> 00:00:00 | L22: =IF(K22<>0,IF($A23<>"",IF(L$6<$A23,L$6,$A23-1),M$6),0) -> 00:00:00 | M22: =IF(OR(K22<>0,L22<>0),IF(YEAR(K22)=YEAR(L22),L22-K22+1,DATE(YEAR(K22),12,31)-K22+1+L22-DATE(YEAR(L22),1,1)+1+365*(YEAR(L22)-YEAR(K22)-1)),0) -> 0 | N22: =IF(M22<>0,M$6*$B22/100/365*M22,0) -> 0 | O22: =IF(OR(MID(O21,1,10)="Decorrenza",O21=0),IF(AND(O$6<$A23,O$6>=$A22),O$6,0),IF(P$6<$A22,0,$A22)) -> 00:00:00 | P22: =IF(O22<>0,IF($A23<>"",IF(P$6<$A23,P$6,$A23-1),Q$6),0) -> 00:00:00 | Q22: =IF(OR(O22<>0,P22<>0),IF(YEAR(O22)=YEAR(P22),P22-O22+1,DATE(YEAR(O22),12,31)-O22+1+P22-DATE(YEAR(P22),1,1)+1+365*(YEAR(P22)-YEAR(O22)-1)),0) -> 0 | R22: =IF(Q22<>0,Q$6*$B22/100/365*Q22,0) -> 0 | S22: =IF(OR(MID(S21,1,10)="Decorrenza",S21=0),IF(AND(S$6<$A23,S$6>=$A22),S$6,0),IF(T$6<$A22,0,$A22)) -> 00:00:00 | T22: =IF(S22<>0,IF($A23<>"",IF(T$6<$A23,T$6,$A23-1),U$6),0) -> 00:00:00 | U22: =IF(OR(S22<>0,T22<>0),IF(YEAR(S22)=YEAR(T22),T22-S22+1,DATE(YEAR(S22),12,31)-S22+1+T22-DATE(YEAR(T22),1,1)+1+365*(YEAR(T22)-YEAR(S22)-1)),0) -> 0 | V22: =IF(U22<>0,U$6*$B22/100/365*U22,0) -> 0 | W22: =IF(OR(MID(W21,1,10)="Decorrenza",W21=0),IF(AND(W$6<$A23,W$6>=$A22),W$6,0),IF(X$6<$A22,0,$A22)) -> 00:00:00 | X22: =IF(W22<>0,IF($A23<>"",IF(X$6<$A23,X$6,$A23-1),Y$6),0) -> 00:00:00 | Y22: =IF(OR(W22<>0,X22<>0),IF(YEAR(W22)=YEAR(X22),X22-W22+1,DATE(YEAR(W22),12,31)-W22+1+X22-DATE(YEAR(X22),1,1)+1+365*(YEAR(X22)-YEAR(W22)-1)),0) -> 0 | Z22: =IF(Y22<>0,Y$6*$B22/100/365*Y22,0) -> 0 | AA22: =IF(OR(MID(AA21,1,10)="Decorrenza",AA21=0),IF(AND(AA$6<$A23,AA$6>=$A22),AA$6,0),IF(AB$6<$A22,0,$A22)) -> 00:00:00 | AB22: =IF(AA22<>0,IF($A23<>"",IF(AB$6<$A23,AB$6,$A23-1),AC$6),0) -> 00:00:00 | AC22: =IF(OR(AA22<>0,AB22<>0),IF(YEAR(AA22)=YEAR(AB22),AB22-AA22+1,DATE(YEAR(AA22),12,31)-AA22+1+AB22-DATE(YEAR(AB22),1,1)+1+365*(YEAR(AB22)-YEAR(AA22)-1)),0) -> 0 | AD22: =IF(AC22<>0,AC$6*$B22/100/365*AC22,0) -> 0 | AE22: =IF(OR(MID(AE21,1,10)="Decorrenza",AE21=0),IF(AND(AE$6<$A23,AE$6>=$A22),AE$6,0),IF(AF$6<$A22,0,$A22)) -> 00:00:00 | AF22: =IF(AE22<>0,IF($A23<>"",IF(AF$6<$A23,AF$6,$A23-1),AG$6),0) -> 00:00:00 | AG22: =IF(OR(AE22<>0,AF22<>0),IF(YEAR(AE22)=YEAR(AF22),AF22-AE22+1,DATE(YEAR(AE22),12,31)-AE22+1+AF22-DATE(YEAR(AF22),1,1)+1+365*(YEAR(AF22)-YEAR(AE22)-1)),0) -> 0 | AH22: =IF(AG22<>0,AG$6*$B22/100/365*AG22,0) -> 0
A23: 2016-01-01 | B23: 0.2 | C23: 00:00:00 | D23: 00:00:00 | E23: 0 | F23: 0 | G23: 00:00:00 | H23: 00:00:00 | I23: 0 | J23: 0 | K23: 00:00:00 | L23: 00:00:00 | M23: 0 | N23: 0 | O23: 00:00:00 | P23: 00:00:00 | Q23: 0 | R23: 0 | S23: 00:00:00 | T23: 00:00:00 | U23: 0 | V23: 0 | W23: 00:00:00 | X23: 00:00:00 | Y23: 0 | Z23: 0 | AA23: 00:00:00 | AB23: 00:00:00 | AC23: 0 | AD23: 0 | AE23: 00:00:00 | AF23: 00:00:00 | AG23: 0 | AH23: 0
A24: 2017-01-01 | B24: 0.1 | C24: 00:00:00 | D24: 00:00:00 | E24: 0 | F24: 0 | G24: 00:00:00 | H24: 00:00:00 | I24: 0 | J24: 0 | K24: 00:00:00 | L24: 00:00:00 | M24: 0 | N24: 0 | O24: 00:00:00 | P24: 00:00:00 | Q24: 0 | R24: 0 | S24: 00:00:00 | T24: 00:00:00 | U24: 0 | V24: 0 | W24: 00:00:00 | X24: 00:00:00 | Y24: 0 | Z24: 0 | AA24: 00:00:00 | AB24: 00:00:00 | AC24: 0 | AD24: 0 | AE24: 00:00:00 | AF24: 00:00:00 | AG24: 0 | AH24: 0
A25: 73050 | C25: TOTALI | E25: =SUM(E$9:E24) -> 0 | F25: =ROUND(SUM(F$9:F24),2) -> 0 | G25: TOTALI | I25: =SUM(I$9:I24) -> 0 | J25: =ROUND(SUM(J$9:J24),2) -> 0 | K25: TOTALI | M25: =SUM(M$9:M24) -> 0 | N25: =ROUND(SUM(N$9:N24),2) -> 0 | O25: TOTALI | Q25: =SUM(Q$9:Q24) -> 0 | R25: =ROUND(SUM(R$9:R24),2) -> 0 | S25: TOTALI | U25: =SUM(U$9:U24) -> 0 | V25: =ROUND(SUM(V$9:V24),2) -> 0 | W25: TOTALI | Y25: =SUM(Y$9:Y24) -> 0 | Z25: =ROUND(SUM(Z$9:Z24),2) -> 0 | AA25: TOTALI | AC25: =SUM(AC$9:AC24) -> 0 | AD25: =ROUND(SUM(AD$9:AD24),2) -> 0 | AE25: TOTALI | AG25: =SUM(AG$9:AG24) -> 0 | AH25: =ROUND(SUM(AH$9:AH24),2) -> 0
C26: L'interesse dovuto per ogni giorno successivo alla data di "Termine calcolo interessi" è pari a: | F26: =IF(F25<>0,E$6*INDEX($B$9:$B$102,MATCH(D$6,$A$9:$A$102,1))/100/365,0) -> 0 | G26: L'interesse dovuto per ogni giorno successivo alla data di "Termine calcolo interessi" è pari a: | J26: =IF(J25<>0,I$6*INDEX($B$9:$B$102,MATCH(H$6,$A$9:$A$102,1))/100/365,0) -> 0 | K26: L'interesse dovuto per ogni giorno successivo alla data di "Termine calcolo interessi" è pari a: | N26: =IF(N25<>0,M$6*INDEX($B$9:$B$102,MATCH(L$6,$A$9:$A$102,1))/100/365,0) -> 0 | O26: L'interesse dovuto per ogni giorno successivo alla data di "Termine calcolo interessi" è pari a: | R26: =IF(R25<>0,Q$6*INDEX($B$9:$B$102,MATCH(P$6,$A$9:$A$102,1))/100/365,0) -> 0 | S26: L'interesse dovuto per ogni giorno successivo alla data di "Termine calcolo interessi" è pari a: | V26: =IF(V25<>0,U$6*INDEX($B$9:$B$102,MATCH(T$6,$A$9:$A$102,1))/100/365,0) -> 0 | W26: L'interesse dovuto per ogni giorno successivo alla data di "Termine calcolo interessi" è pari a: | Z26: =IF(Z25<>0,Y$6*INDEX($B$9:$B$102,MATCH(X$6,$A$9:$A$102,1))/100/365,0) -> 0 | AA26: L'interesse dovuto per ogni giorno successivo alla data di "Termine calcolo interessi" è pari a: | AD26: =IF(AD25<>0,AC$6*INDEX($B$9:$B$102,MATCH(AB$6,$A$9:$A$102,1))/100/365,0) -> 0 | AE26: L'interesse dovuto per ogni giorno successivo alla data di "Termine calcolo interessi" è pari a: | AH26: =IF(AH25<>0,AG$6*INDEX($B$9:$B$102,MATCH(AF$6,$A$9:$A$102,1))/100/365,0) -> 0

Sheet comp.revisore (vedi prima riga)
A1: ="COMPENSO AL REVISORE PER IL BIENNIO " & LEFT(RIGHT(menù!$A$3,10),9) -> COMPENSO AL REVISORE PER IL BIENNIO 2017-2018
A2: DIGITARE solo i dati nelle celle bianche, esprimendo gli importi in €uro con 2 decimali | I2: Indice fascia | J2: fascia risultante
A3: =IF(AND(ragionesociale<>"",MID(CELL("nomefile",ragionesociale),FIND("[",CELL("nomefile",ragionesociale))-6,6)<>"Varie\",MID(CELL("nomefile",ragionesociale),1,34)="C:\Documenti\Cooperative associate"),"Progressivo " & MID(CELL("nomefile",ragionesociale),FIND("-",CELL("nomefile",ragionesociale))-3,3),"") ->  | D3: Ragione sociale: | E3: =ragionesociale -> 0 | H3: fascia per n° soci | I3: =IF($A$14<>0,MATCH($A$14,$B$6:$D$6,1),0) -> 0 | J3: =IF($A$14<>0,INDEX($B$4:$F$4,MAX($I$3:$I$5)),"Mancano dati") -> Mancano dati
A4: Fasce: | B4: ="A" -> A | C4: ="B" -> B | D4: ="C" -> C | E4: ="D" -> D | F4: ="E" -> E | H4: fascia per capitale | I4: =MATCH($B$14,$B$7:$D$7,1) -> 1
A5: Numero soci: | B5: a partire da | C5: a partire da | D5: a partire da | E5: a partire da | F5: a partire da | H5: fascia per fatturato | I5: =MATCH($C$14,$B$8:$F$8,1) -> 1
B6: 0 | C6: 101 | D6: 501 | E6: 501 | F6: 501 | I6: compenso base | J6: =IF(AND($I$3<>0,$I$4<>0,$I$5<>0),ROUND(INDEX($B$11:$F$11,MAX($I$3:$I$5)),0),0) -> 0
A7: Capitale sociale versato: | B7: 0 | C7: 5160.01 | D7: 40000.01 | E7: 40000.01 | F7: 40000.01
A8: Fatturato: | B8: 0 | C8: 75000.01 | D8: 300000.01 | E8: 1000000.01 | F8: 2000000.01
A9: Contributo: | B9: 280 | C9: 680 | D9: 1350 | E9: 1730 | F9: 2380
A10: % Compenso base: | B10: 0.6 | C10: 0.3 | D10: 0.3 | E10: 0.25 | F10: 0.25
A11: Compenso: | B11: =ROUND(B9*B10,0) -> 168 | C11: =ROUND(C9*C10,0) -> 204 | D11: =ROUND(D9*D10,0) -> 405 | E11: =ROUND(E9*E10,0) -> 433 | F11: =ROUND(F9*F10,0) -> 595
B12: P A R A M E T R I A L 31.12.2008:
A13: Numero soci | B13: Cap.soc.vers. | C13: Valore della produzione: | D13: Fascia
A14: =numerosoci -> 0 | B14: =capitaleversato -> 0 | C14: =valoredellaproduzione -> 0 | D14: =$J$3 -> Mancano dati
A15: DIGITARE uno dei seguenti numeri, a seconda del caso che ricorre: | F15: =IF(AND($E$15<>"",$E$15<>1,$E$15<>2),"digitato numero errato",0) -> 0
A16: 1 - Revisione effettuata
A17: 2 - Revisione non effettuata
A18: Compenso spettante in relazione alla fascia | D18: (a) | E18: =IF($E$15=1,$J$6,0) -> 0
A19: MAGGIORAZIONE in relazione alla tipologia della cooperativa:
A20: DIGITARE uno dei seguenti numeri, a seconda del caso, se ricorre: | F20: =IF(OR(AND($D$14="Mancano dati",E20<>""),AND($D$14<>"Mancano dati",E20<>1,E20<>2,E20<>3,E20<>4,E20<>"")),"digitato numero errato","") -> 
A21: 1 - Enti Cooperativi Sociali.
A22: 2 - Enti Cooperativi Edilizi iscritti relativo albo (art. 13 L.59/92) con programma già avviato o realizzato.
A23: 3 - Enti Cooperativi Edilizi non iscritti relativo albo (art. 13 L.59/92).
A24: =" oppure iscritte all'albo ma con progr.non ancora avviato." -> oppure iscritte all'albo ma con progr.non ancora avviato.
A25: Ispezionabili annualmente:
A26: 4 - per valore della produzione, per possesso azioni di controllo
A27: su Srl o Spa, per dimensioni riserve o prestiti sociali - art.15 L. 59/92.
A28: =IF($E$20=1,"Aum.compenso base 10%",IF(OR($E$20=2,$E$20=4),"Aum.compenso base 25%",IF($E$20=3,"Aum.compenso base 10% (Coope.Edil.progr. avviato",IF($E$20=5,"Aum.compenso base 15% (Cooperative Sociali, ecc.)","")))) ->  | D28: =IF(OR($E$20=2,$E$20=4),"(b=a+25%*a)",IF($E$20=3,"(b=a+10%*a)",IF($E$20=1,"(b=a+10%*a)",IF($E$20=5,"(b=a+15%*a)","(b)")))) -> (b) | E28: =IF($E$20=1,ROUND($E$18*15%,0),IF($E$20=2,ROUND($E$18*30%,0),IF($E$20=3,ROUND($E$18*10%,0),IF($E$20=4,ROUND($E$18*25%,0),0)))) -> 0
A29: Compenso spettante per revisione effettuata | E29: ="(c=a+b)" -> (c=a+b) | F29: =IF(SUM($E$18,$E$28)<>0,ROUND(SUM($E$18,$E$28),0),0) -> 0
A30: RIMBORSO SPESE FORFETARIO: | E30: (d) | F30: =IF($F$29<>0,100,0) -> 0
A31: Compenso per revisione effettuata e rimborso spese in funzione della distanza | F31: (e=c+d) | G31: =IF($E$18<>0,ROUND($F$29+$F$30,0),0) -> 0
A32: DIGITARE uno dei seguenti numeri, a seconda del caso che ricorre: | F32: =IF(OR(AND(OR($E$15="",$E$15=2),$E$32<>"",$E$32<>2),AND($E$32<>1,$E$32<>2,$E$32<>"")),"digitato numero errato",0) -> 0
A33: 1 - Supplemento ispettivo o Accertamento successivo a diffida: effettuato
A34: 2 - Supplemento ispettivo o Accertamento successivo a diffida: non effettuato
A35: =IF($E$32=1,"Compenso per supplemento ispettivo o accertamento effettuato","") ->  | E35: (f=40%*c) | F35: =IF($E$32=1,ROUND(40%*$F$29,0),0) -> 0
A36: RIMBORSO SPESE FORFETARIO: | E36: (g) | F36: =IF(AND($E$32=1,$G$31<>0),30,0) -> 0
A37: Compenso per supl.isp.o accert.effettuato e rimborso spese in funzione della distanza | F37: (h=f+g) | G37: =ROUND($F$35+$F$36,0) -> 0
A38: COMPENSO TOT. PER REVISIONE E SUPPL.ISP.O ACCERT. EFFETTUATO | F38: (i=e+h) | G38: =SUM($G$31,$G$37) -> 0
A39: MANCATA REVISIONE O MANCATO ACCERTAMENTO SU DIFFIDA:
A40: RIMBORSO SPESE FORFETARIO in relazione alla distanza tra la sede legale dell'ente e la sede di servizio del revisore:
A41: DIGITARE uno dei seguenti numeri, a seconda del caso che ricorre: | F41: =IF(OR(AND($E$41<>"",$E$41<>1,$E$41<>2),AND($E$15=1,$E$32=1,$E$41<>"")),"digitato numero errato","") -> 
A42: 1 - Nel Comune ove ha sede l'ufficio del revisore o fuori dal territorio comunale e distante non più di 30 km: € 50,00
A43: 2 - Fuori dal Comune ove ha sede l'ufficio del revisore e distanti più di 30 km: € 100,00
A44: =IF(AND($E$15<>"",$E$15<>2,$E$41<>"",$F$41<>"digitato numero errato",$F$32<>"digitato numero errato"),"COMPENSO SPETTANTE PER MANCATO ACCERTAMENTO",IF(AND(OR($E$15="",$E$15=2),$E$41<>"",$F$41<>"digitato numero errato",$F$32<>"digitato numero errato"),"COMPENSO PER MANCATA REVISIONE","")) ->  | G44: =IF($A$44<>"",IF($E$41=1,50,IF($E$41=2,100,0)),0) -> 0

Sheet comp.revisore(vedi prima riga)
A1: ="COMPENSO AL REVISORE PER IL BIENNIO " & LEFT(RIGHT(menù!$A$4,10),9) -> COMPENSO AL REVISORE PER IL BIENNIO 2015-2016
A2: DIGITARE solo i dati nelle celle bianche, esprimendo gli importi in €uro con 2 decimali | I2: Indice fascia | J2: fascia risultante
A3: =IF(AND(ragionesociale<>"",MID(CELL("nomefile",ragionesociale),FIND("[",CELL("nomefile",ragionesociale))-6,6)<>"Varie\",MID(CELL("nomefile",ragionesociale),1,34)="C:\Documenti\Cooperative associate"),"Progressivo " & MID(CELL("nomefile",ragionesociale),FIND("-",CELL("nomefile",ragionesociale))-3,3),"") ->  | D3: Ragione sociale: | E3: =ragionesociale -> 0 | H3: fascia per n° soci | I3: =IF($A$14<>0,MATCH($A$14,$B$6:$D$6,1),0) -> 0 | J3: =IF($A$14<>0,INDEX($B$4:$F$4,MAX($I$3:$I$5)),"Mancano dati") -> Mancano dati
A4: Fasce: | B4: ="A" -> A | C4: ="B" -> B | D4: ="C" -> C | E4: ="D" -> D | F4: ="E" -> E | H4: fascia per capitale | I4: =MATCH($B$14,$B$7:$D$7,1) -> 1
A5: Numero soci: | B5: a partire da | C5: a partire da | D5: a partire da | H5: fascia per fatturato | I5: =MATCH($C$14,$B$8:$F$8,1) -> 1
B6: 0 | C6: 101 | D6: 501 | I6: compenso base | J6: =IF(AND($I$3<>0,$I$4<>0,$I$5<>0),ROUND(INDEX($B$11:$F$11,MAX($I$3:$I$5)),0),0) -> 0
A7: Capitale sociale versato: | B7: 0 | C7: 5160.01 | D7: 40000.01
A8: Fatturato: | B8: 0 | C8: 75000.01 | D8: 300000.01 | E8: 1000000.01 | F8: 2000000.01
A9: Contributo: | B9: 260 | C9: 630 | D9: 1250 | E9: 1600 | F9: 2200
A10: % Compenso base: | B10: 0.6 | C10: 0.3 | D10: 0.3 | E10: 0.25 | F10: 0.25
A11: Compenso: | B11: =ROUND(B9*B10,0) -> 156 | C11: =ROUND(C9*C10,0) -> 189 | D11: =ROUND(D9*D10,0) -> 375 | E11: =ROUND(E9*E10,0) -> 400 | F11: =ROUND(F9*F10,0) -> 550
B12: P A R A M E T R I A L 31.12.2008:
A13: Numero soci | B13: Cap.soc.vers. | C13: Valore della produzione: | D13: Fascia
A14: =numerosoci -> 0 | B14: =capitaleversato -> 0 | C14: =valoredellaproduzione -> 0 | D14: =$J$3 -> Mancano dati
A15: DIGITARE uno dei seguenti numeri, a seconda del caso che ricorre: | F15: =IF(AND($E$15<>"",$E$15<>1,$E$15<>2),"digitato numero errato",0) -> 0
A16: 1 - Revisione effettuata
A17: 2 - Revisione non effettuata
A18: Compenso spettante in relazione alla fascia | D18: (a) | E18: =IF($E$15=1,$J$6,0) -> 0
A19: MAGGIORAZIONE in relazione alla tipologia della cooperativa:
A20: DIGITARE uno dei seguenti numeri, a seconda del caso, se ricorre: | F20: =IF(OR(AND($D$14="Mancano dati",E20<>""),AND($D$14<>"Mancano dati",E20<>1,E20<>2,E20<>3,E20<>4,E20<>"")),"digitato numero errato","") -> 
A21: 1 - Enti Cooperativi Sociali.
A22: 2 - Enti Cooperativi Edilizi iscritti relativo albo (art. 13 L.59/92) con programma già avviato o realizzato.
A23: 3 - Enti Cooperativi Edilizi non iscritti relativo albo (art. 13 L.59/92).
A24: =" oppure iscritte all'albo ma con progr.non ancora avviato." -> oppure iscritte all'albo ma con progr.non ancora avviato.
A25: Ispezionabili annualmente:
A26: 4 - per valore della produzione, per possesso azioni di controllo
A27: su Srl o Spa, per dimensioni riserve o prestiti sociali - art.15 L. 59/92.
A28: =IF($E$20=1,"Aum.compenso base 10%",IF(OR($E$20=2,$E$20=4),"Aum.compenso base 25%",IF($E$20=3,"Aum.compenso base 10% (Coope.Edil.progr. avviato",IF($E$20=5,"Aum.compenso base 15% (Cooperative Sociali, ecc.)","")))) ->  | D28: =IF(OR($E$20=2,$E$20=4),"(b=a+25%*a)",IF($E$20=3,"(b=a+10%*a)",IF($E$20=1,"(b=a+10%*a)",IF($E$20=5,"(b=a+15%*a)","(b)")))) -> (b) | E28: =IF($E$20=1,ROUND($E$18*15%,0),IF($E$20=2,ROUND($E$18*30%,0),IF($E$20=3,ROUND($E$18*10%,0),IF($E$20=4,ROUND($E$18*25%,0),0)))) -> 0
A29: Compenso spettante per revisione effettuata | E29: ="(c=a+b)" -> (c=a+b) | F29: =IF(SUM($E$18,$E$28)<>0,ROUND(SUM($E$18,$E$28),0),0) -> 0
A31: RIMBORSO SPESE FORFETARIO in relazione alla distanza tra la sede legale dell'ente e la sede di servizio del revisore:
A32: DIGITARE uno dei seguenti numeri, a seconda del caso che ricorre: | F32: =IF(OR(AND($F$29=0,$E$32<>""),AND($E$32<>1,$E$32<>2,$E$32<>"")),"digitato numero errato","") -> 
A33: 1 - Nel Comune ove ha sede l'ufficio del revisore o fuori dal territorio comunale e distante non più di 30 km: € 75,00
A34: 2 - Fuori dal Comune ove ha sede l'ufficio del revisore e distanti più di 30 km: € 150,00
E35: (d) | F35: =IF(AND($F$29<>0,$E$32=1),75,IF(AND($F$29<>0,$E$32=2),150,0)) -> 0
A36: Compenso per revisione effettuata e rimborso spese in funzione della distanza | F36: (e=c+d) | G36: =IF($E$18<>0,ROUND($F$29+$F$35,0),0) -> 0
A37: DIGITARE uno dei seguenti numeri, a seconda del caso che ricorre: | F37: =IF(OR(AND($F$29=0,$E$37<>""),AND($E$37<>1,$E$37<>2,$E$37<>"")),"digitato numero errato",0) -> 0
A38: 1 - Supplemento ispettivo o Accertamento successivo a diffida: effettuato
A39: 2 - Supplemento ispettivo o Accertamento successivo a diffida: non effettuato
A40: =IF($E$37=1,"Compenso per supplemento ispettivo o accertamento effettuato","") ->  | E40: (f=40%*c) | F40: =IF($E$37=1,ROUND(40%*$F$29,0),0) -> 0
A41: RIMBORSO SPESE FORFETARIO in relazione alla distanza tra la sede legale dell'ente e la sede di servizio del revisore:
E42: (g) | F42: =IF(AND($E$32=1,$E$37=1,$G$36<>0),20,IF(AND($E$32=2,$E$37=1,$G$36<>0),40,0)) -> 0
A43: Compenso per supl.isp.o accert.effettuato e rimborso spese in funzione della distanza | F43: (h=f+g) | G43: =ROUND($F$40+$F$42,0) -> 0
A44: COMPENSO TOT. PER REVISIONE E SUPPL.ISP.O ACCERT. EFFETTUATO | F44: (i=e+h) | G44: =SUM($G$36,$G$43) -> 0
A45: MANCATA REVISIONE O MANCATO ACCERTAMENTO SU DIFFIDA:
A46: RIMBORSO SPESE FORFETARIO in relazione alla distanza tra la sede legale dell'ente e la sede di servizio del revisore:
A47: DIGITARE uno dei seguenti numeri, a seconda del caso che ricorre: | F47: =IF(OR(AND(OR($E$15="",$E$15=2),OR($E$37="",$E$37=2),$E$47<>""),AND($E$15=1,$E$37=1,$E$47<>"")),"digitato numero errato",IF($E$47<>"",IF($E$32<>"",IF($E$47<>$E$32,"digitato numero errato",""),""),"")) -> 
A48: 1 - Nel Comune ove ha sede l'ufficio del revisore o fuori dal territorio comunale e distante non più di 30 km: € 75,00
A49: 2 - Fuori dal Comune ove ha sede l'ufficio del revisore e distanti più di 30 km: € 150,00
A50: =IF(AND(OR($E$47=1,$E$47=2),$F$47<>"digitato numero errato"),"COMPENSO SPETTANTE PER MANCATA REVISIONE O PER MANCATO ACCERTAMENTO","") ->  | G50: =IF(AND($E$47=1,$F$47<>"digitato numero errato"),50,IF(AND($E$47=2,$F$47<>"digitato numero errato"),100,0)) -> 0

Sheet calcoli
A1: =IF(AND(ragionesociale<>"",MID(CELL("nomefile",ragionesociale),FIND("[",CELL("nomefile",ragionesociale))-6,6)<>"Varie\",MID(CELL("nomefile",ragionesociale),1,34)="C:\Documenti\Cooperative associate"),"Progressivo " & MID(CELL("nomefile",ragionesociale),FIND("-",CELL("nomefile",ragionesociale))-3,3),"") ->  | D1: Ragione sociale | E1: =ragionesociale -> 0
B2: Penultimo esercizio precedente | C2: Ultimo esercizio precedente | D2: N° iscr.albo soc.cooperative
A3: Verifica della prevalenza | D3: N° iscr.associazione
B4: =RIGHT('contr.biennio (vedi prima riga)'!$A$1,4)-2 -> 2016 | C4: =RIGHT('contr.biennio (vedi prima riga)'!$A$1,4)-1 -> 2017 | D4: Indirizzo sede legale
A5: A1 verso soci | D5: Località sede legale
A6: Totale A1 | D6: Indirizzo sede operativa
A7: % Ricavi delle vendite e delle prestazioni dei soci rispetto al totale (X) | B7: =IF(B6<>"",ROUND(B5/B6%,2) & "%",0) -> 0 | C7: =IF(C6<>"",ROUND(C5/C6%,2) & "%",0) -> 0 | D7: Località sede operativa
D8: Codice fiscale
A9: B9 verso soci | D9: REA
A10: Totale B9 | D10: Settore
A11: % Costo del lavoro dei soci rispetto al totale (Y) | B11: =IF(B10<>"",ROUND(B9/B10%,2) & "%",0) -> 0 | C11: =IF(C10<>"",ROUND(C9/C10%,2) & "%",0) -> 0 | D11: Revisione A/B (annuale/biennale)
D12: Data adesione
A13: B6 conferiti dai soci | D13: Data scadenza
A14: Totale B6 | D14: Data ultima revisione
A15: % Costo dei beni conferiti dai soci rispetto al totale (W) | B15: =IF(B14<>"",ROUND(B13/B14%,2) & "%",0) -> 0 | C15: =IF(C14<>"",ROUND(C13/C14%,2) & "%",0) -> 0 | D15: Codice attività
D16: Data ultima modifica statutaria
A17: B7 conferiti dai soci | D17: Persona di riferimento cooperativa e n° di telefono
A18: Totale B7 | D18: Legale rappresentante
A19: % Costo della prestazione dei servizi ricevuti dai soci rispetto al totale (K) | B19: =IF(B18<>"",ROUND(B17/B18%,2) & "%",0) -> 0 | C19: =IF(C18<>"",ROUND(C17/C18%,2) & "%",0) -> 0 | D19: Indirizzo residenza legale rappresentante
D20: Località residenza legale rappresentante
A21: A1*X% | B21: =IF(B$7<>0,B$5*B$7,0) -> 0 | C21: =IF(C$7<>0,C$5*C$7,0) -> 0 | D21: Liquidatore
A22: B9*Y% | B22: =IF(B$11<>0,B$9*B$11,0) -> 0 | C22: =IF(C$98<>0,C$9*C$11,0) -> 0 | D22: Indirizzo residenza liquidatore
A23: B6*W% | B23: =IF(B$15<>0,B$13*B$15,0) -> 0 | C23: =IF(C$15<>0,C$13*C$15,0) -> 0 | D23: Località residenza liquidatore
A24: B7*K% | B24: =IF(B$19<>0,B$17*B$19,0) -> 0 | C24: =IF(C$19<>0,C$17*C$19,0) -> 0 | D24: Curatore fallimentare
A25: ="Sommatoria " & A21 & " " & A22 & " " & A23 & " " & A24 -> Sommatoria A1*X% B9*Y% B6*W% B7*K% | B25: =SUM(B21,B22,B23,B24) -> 0 | C25: =SUM(C21,C22,C23,C24) -> 0 | D25: Indirizzo residenza curatore fallimentare
A26: ="Sommatoria A1 B9 B6 B7" -> Sommatoria A1 B9 B6 B7 | B26: =SUM(B$5,B$9,B$13,B$17) -> 0 | C26: =SUM(C$5,C$9,C$13,C$17) -> 0 | D26: Località residenza curatore fallimentare
A27: % Media ponderata | B27: =IF(B$26<>0,ROUND(B$25/B$26,2),0) -> 0 | C27: =IF(C$26<>0,ROUND(C$25/C$26,2),0) -> 0 | D27: Note cooperativa
D28: Revisore attuale
A29: Verifica Ristorni | D29: Revisori precedenti
A30: Verifica avanzo di gestione | D30: CONTATTI
A31: A) Avanzo di gestione: Rigo 23 del conto economico | D31: Estremi invio raccomandata notifica incarico (n./data)
A32: Variazioni in aumento: | D32: Data ricevuta raccomandata notifica incarico
A33: ="- eventuali ristorni imputati a conto economico" -> - eventuali ristorni imputati a conto economico | D33: Estremi invio raccomandata diffida a consentire la revisione (n./data)
A34: Variazioni in riduzione: | D34: Data ricevuta raccomandata diffida a consentire la revisione
A35: ="- eventuale D (solo se saldo positivo)" -> - eventuale D (solo se saldo positivo) | D35: Estremi invio raccomandata diffida a consentire l'accertamento (n./data)
A36: ="- eventuale E (solo se saldo positivo)" -> - eventuale E (solo se saldo positivo) | D36: Data ricevuta raccomandata diffida a consentire l'accertamento
A37: Totale | B37: =IF(SUM(B31,B33,B35:B36)<>0,SUM(B31,B33,B35:B36),0) -> 0 | C37: =IF(SUM(C31,C33,C35:C36)<>0,SUM(C31,C33,C35:C36),0) -> 0 | D37: Codice consulente
A38: Percentuale di prevalenza | B38: =IF(B$8<>0,B$9/B$8,0) -> 0 | C38: =IF(C$8<>0,C$9/C$8,0) -> 0 | D38: Persona/studio di riferimento
A39: B) Avanzo di gestione generato dai soci: A * percentuale di prevalenza | B39: =IF(B37<>0,B37*B38,0) -> 0 | C39: =IF(C37<>0,C37*C38,0) -> 0 | D39: ="- N° tel." -> - N° tel.
D40: ="- N° fax" -> - N° fax
A41: Verifica importo del ristorno | D41: ="- E-mail" -> - E-mail
A42: Cooperative di lavoro | D42: Data appuntamento in corso
A43: C) Trattamenti retributivi complessivi corrisposti ai soci | D43: Modalità appuntamento
A44: D) Ristorno | D44: Note consulente
A45: Cooprative di utenza | D45: Sede di servizio
A46: E) Ristorno | D46: Recapiti telefonici e fax
A47: Cooperative di apporto | D47: COMPENSI
A48: F) Ristorno | D48: Data verbale inizio revisione
A49: G) Liquidazioni salariali o del prezzo del servizio | D49: Data verbale fine revisione
A50: H) Aumento gratuito del capitale sociale | D50: Data accertamento
A51: I) Distribuzione gratuita dei titoli (art. 5, L. 59/1992) | D51: Data relazione mancata revisione
D52: Data relazione mancato accertamento
A53: N.B.: E), F) e la somma di G)+H)+I) non può essere superiore a B) | D53: Revisione conclusa/inviata (C/I)
A54: D) non può essere superiore né a B) né al 30% di C) | D54: Accert.concluso/inviato (C/I)
D55: Importo compenso revisione calcolato dall'Ente pagatore
A56: Verifica prestito da soci | D56: Risc. revis.
A57: a) valore degli immobili risultante da dichiarazione ICI | D57: Importo compenso accertamento calcolato dall'Enteb pagatore
A58: b) valore degli immobili risultante dall'ultimo bilancio | D58: Risc. acc.
A59: c) valore per rettifica: (a-b)/ 2 (eventuale) | C59: =IF(AND(C$57<>"",C$57>=C$58),(C$57-C$5)/2,0) -> 0
A60: d) patrimonio netto dell'ultimo bilancio | D60: Note in generale
A61: e) patrimonio netto rettificato (c+d) | C61: =C59+C60 -> 0
A62: f) prestito sociale alla data della revisione
A63: g) rapporto CICR (f / e) | C63: =IF(C61<>0,C62/C61,0) -> 0
A64: numero soci alla data revisione
A65: gg/mm/aa di chiusura dell'ultimo esercizio
A67: Indici
A68: Capitale circolante netto:
A69: Attivo circolante (a)
A70: Passività a breve (b)
A71: CCN (a-b) | C71: =C69-C70 -> 0
A72: Indice di indipendenza finanziaria:
A73: Patrimonio netto
A74: Capitale investito
A75: Indice di indipendenza finanziaria (a:b) | C75: =IF(C74<>"",IF(VALUE(C74)<>0,C73/VALUE(C74),"Indice non significativo"),"") -> 
A76: Incidenza oneri finanziari netti sui ricavi
A77: Risultato gestione finanziaria (a)
A78: Ricavi vendite e prestazioni (b)
A79: Incidenza oneri finanziari netti sui ricavi (a:b) | C79: =IF(C78<>"",IF(C78<>0,ROUND(C77/C78,2),"Indice non significativo"),"") -> 
A81: Devoluzione ai fondi mutualistici
A82: a) risultato dell'esercizio
A83: b) eventuali preaccantonamenti a riserva indivisibile
A84: c) eventuale accantonamento art. 11 L. 59
A85: d) eventuali perdite di esercizio
A86: e) eventuali ristorni (deliberati dall’assemblea di bilancio)
A87: segno algebrico | B87: =IF(B$88>=0,"+","-") -> + | C87: =IF(C$88>=0,"+","-") -> +
A88: f) BASE DI CALCOLO: a + b + c - d - e | B88: =IF(B82+B83+B84-B85-B86>0,B82+B83+B84-B85-B86,0) -> 0 | C88: =IF(C82+C83+C84-C85-C86>0,C82+C83+C84-C85-C86,0) -> 0
A89: g) Importo complessivo art. 11 L. 59 (f*x/100)1) | B89: =IF(B88<>"",B88*3%,0) -> 0 | C89: =IF(C88<>"",C88*3%,0) -> 0
A91: Calcolo Valore della produzione per calcolo contributo revisione per le cooperative edilizie:
A92: BII S.P. ultimo esercizio: | B92: (a)
A93: BII S.P. terzultimo esercizio: | B93: (b)
A94: 1a differenza: | B94: (c=a-b) | C94: =C92-C93 -> 0
A95: CI S.P. ultimo esercizio: | B95: (d)
A96: CI S.P. terzultimo esercizio: | B96: (e)
A97: 2a differenza: | B97: (f=d-e) | C97: =C95-C96 -> 0
A98: A2 C.E. ultimo esercizio: | B98: (g)
A99: A4 C.E. ultimo esercizio: | B99: (h)
A100: max | B100: [i=max(g;h)] | C100: =MAX(C98:C99) -> 0
A101: A (costi sostenuti) C.E. ultimo esercizio: | B101: (l)
A102: 3a differenza: | B102: (m=i-l) | C102: =C100-C101 -> 0
A103: Valore della produzione | B103: [n=max(c;f;m)] | C103: =MAX(C94,C97,C102) -> 0

Sheet costo del lavoro
A1: COSTO DEL LAVORO anno | I1: COSTO DEL LAVORO anno
A2: socio/non socio (s/n) | B2: nominativo lavoratore | C2: emolumenti lordi | D2: contributi azienda (inps, inail) | E2: tfr | F2: totale soci (a) | G2: totale non soci (b) | H2: totale soci e non soci (c=a+b) | I2: socio/non socio (s/n) | J2: nominativo lavoratore | K2: emolumenti lordi | L2: contributi azienda | M2: tfr | N2: totale soci (a) | O2: totale non soci (b) | P2: totale soci e non soci (c=a+b)
F3: =IF(UPPER(A3)="S",SUM(C3:E3),0) -> 0 | G3: =IF(UPPER(A3)="N",SUM(C3:E3),0) -> 0 | H3: =SUM(F3:G3) -> 0 | N3: =IF(UPPER(I3)="S",SUM(K3:M3),0) -> 0 | O3: =IF(UPPER(I3)="N",SUM(K3:M3),0) -> 0 | P3: =SUM(N3:O3) -> 0
F4: =IF(UPPER(A4)="S",SUM(C4:E4),0) -> 0 | G4: =IF(UPPER(A4)="N",SUM(C4:E4),0) -> 0 | H4: =SUM(F4:G4) -> 0 | N4: =IF(UPPER(I4)="S",SUM(K4:M4),0) -> 0 | O4: =IF(UPPER(I4)="N",SUM(K4:M4),0) -> 0 | P4: =SUM(N4:O4) -> 0
F5: 0 | G5: 0 | H5: 0 | N5: 0 | O5: 0 | P5: 0
F6: 0 | G6: 0 | H6: 0 | N6: 0 | O6: 0 | P6: 0
F7: 0 | G7: 0 | H7: 0 | N7: 0 | O7: 0 | P7: 0
F8: 0 | G8: 0 | H8: 0 | N8: 0 | O8: 0 | P8: 0
F9: 0 | G9: 0 | H9: 0 | N9: 0 | O9: 0 | P9: 0
F10: 0 | G10: 0 | H10: 0 | N10: 0 | O10: 0 | P10: 0
F11: 0 | G11: 0 | H11: 0 | N11: 0 | O11: 0 | P11: 0
F12: 0 | G12: 0 | H12: 0 | N12: 0 | O12: 0 | P12: 0
F13: 0 | G13: 0 | H13: 0 | N13: 0 | O13: 0 | P13: 0
F14: 0 | G14: 0 | H14: 0 | N14: 0 | O14: 0 | P14: 0
F15: 0 | G15: 0 | H15: 0 | N15: 0 | O15: 0 | P15: 0
F16: 0 | G16: 0 | H16: 0 | N16: 0 | O16: 0 | P16: 0
F17: 0 | G17: 0 | H17: 0 | N17: 0 | O17: 0 | P17: 0
F18: 0 | G18: 0 | H18: 0 | N18: 0 | O18: 0 | P18: 0
F19: 0 | G19: 0 | H19: 0 | N19: 0 | O19: 0 | P19: 0
F20: 0 | G20: 0 | H20: 0 | N20: 0 | O20: 0 | P20: 0
F21: 0 | G21: 0 | H21: 0 | N21: 0 | O21: 0 | P21: 0
F22: 0 | G22: 0 | H22: 0 | N22: 0 | O22: 0 | P22: 0
F23: 0 | G23: 0 | H23: 0 | N23: 0 | O23: 0 | P23: 0
F24: 0 | G24: 0 | H24: 0 | N24: 0 | O24: 0 | P24: 0
F25: 0 | G25: 0 | H25: 0 | N25: 0 | O25: 0 | P25: 0
F26: 0 | G26: 0 | H26: 0 | N26: 0 | O26: 0 | P26: 0
F27: 0 | G27: 0 | H27: 0 | N27: 0 | O27: 0 | P27: 0
F28: 0 | G28: 0 | H28: 0 | N28: 0 | O28: 0 | P28: 0
F29: 0 | G29: 0 | H29: 0 | N29: 0 | O29: 0 | P29: 0
F30: 0 | G30: 0 | H30: 0 | N30: 0 | O30: 0 | P30: 0
F31: 0 | G31: 0 | H31: 0 | N31: 0 | O31: 0 | P31: 0
F32: 0 | G32: 0 | H32: 0 | N32: 0 | O32: 0 | P32: 0
F33: 0 | G33: 0 | H33: 0 | N33: 0 | O33: 0 | P33: 0
F34: 0 | G34: 0 | H34: 0 | N34: 0 | O34: 0 | P34: 0
F35: 0 | G35: 0 | H35: 0 | N35: 0 | O35: 0 | P35: 0
F36: 0 | G36: 0 | H36: 0 | N36: 0 | O36: 0 | P36: 0
A37: TOTALI | C37: =SUM(C3:C36) -> 0 | D37: =SUM(D3:D36) -> 0 | E37: =SUM(E3:E36) -> 0 | F37: =SUM(F$3:F36) -> 0 | G37: =SUM(G$3:G36) -> 0 | H37: =SUM(H3:H36) -> 0 | I37: TOTALI | K37: =SUM(K3:K36) -> 0 | L37: =SUM(L3:L36) -> 0 | M37: =SUM(M3:M36) -> 0 | N37: =SUM(N$3:N36) -> 0 | O37: =SUM(O$3:O36) -> 0 | P37: =SUM(P3:P36) -> 0
A38: PERCENTUALE DI PREVALENZA (tot.a/tot.c) | F38: =IF(H37<>0,F37/H37,0) -> 0 | I38: PERCENTUALE DI PREVALENZA (tot.a/tot.c) | N38: =IF(P37<>0,N37/P37,0) -> 0

Sheet documentazione da verificare
B1: =ragionesociale -> 0
A2: DOCUMENTI DA ESIBIRE
A3: 1) | B3: Se la revisione viene effettuata alla presenza del legale rappresentante, fotocopia del documento del legale rappresentante stesso, in corso di validità.
A4: 2) | B4: Se la revisione viene effettuata alla presenza di persona delegata dal legale rappresentante, delega in originale e fotocopia del documento del legale rappresentante e del delegato, in corso di validità.
A5: 3) | B5: Recente visura camerale storica. | C5: =ragionesocialecalcoli -> 
A6: 4) | B6: Atto Costitutivo e Statuto Vigente.
A7: 5) | B7: Copia degli ultimi due bilanci depositati (stato patrimoniale, conto economico, nota integrativa, eventuale relazione degli Amministratori, eventuale relazione dell’Organo di controllo, verbale di approvazione da parte dell'assemblea dei soci).
A8: 6) | B8: Mod. S1 per l'iscrizione al R.I. e mod. B per il deposito del bilancio d'esercizio, oltre ad altri modelli per situazioni specifiche (liquidazione, cessione, ecc.), dal bilancio dell'esercizio 2013 in poi. Fino al bilancio 2012: mod. C/17.
A9: 7) | B9: Ricevuta di deposito c/o il Registro delel Imprese) del mod. S1 e/o B, dal bilancio dell'esercizio 2013 in poi. Ricevuta di deposito del bilancio ed allegati e del mod. C17, fino al bilancio 2012.
A10: 8) | B10: Ricevuta del versamento del contributo biennale a norma del relativo D. M. per gli ultimi due bienni (bienni 2009/2010 e 2011/2012).
A11: 9) | B11: Ricevuta del versamento del 3% ai fondi mutualistici (art. 11 Legge 31/01/1952, n° 59) su eventuali utili conseguiti negli ultimi due esercizi.
A12: 10) | B12: Ricevuta del versamento della tassa annuale di iscrizione alla C.C.I.A.A.
A13: 11) | B13: Ultime due dichiarazioni dei redditi presentate, con relativa ricevuta di presentazione.
A14: 12) | B14: Il numero di soci alla data della revisione ed al 31/12 dei due precedenti esercizi.
A15: 13) | B15: Eventuali regolamenti interni che disciplinano la vita sociale.
A16: 14) | B16: Se la cooperativa ha beneficiato di contributi pubblici: il provvedimento di erogazione del contributo pubblico.
A17: 15) | B17: Nel caso la cooperativa abbia vertenze giudiziarie in corso: la relativa documentazione.
A19: 16) | B19: LIBRI SOCIALI (tassa di concessione governativa € 67,00 x ogni 500 pag. x ogni libro; coop.edil. € 16,75 x ogni 500 pag.; Onlus esentate):
B20: ="- Il libro dei soci." -> - Il libro dei soci.
B21: ="- il libro delle assemblee dei soci." -> - il libro delle assemblee dei soci.
B22: ="- Il libro delle assemblee del Consiglio di Amministrazione." -> - Il libro delle assemblee del Consiglio di Amministrazione.
B23: ="- Il Registro delle Deliberazioni dell'Amministratore Unico (se istituito). Non è richiesto il pagamento della tassa di concessione governativa." -> - Il Registro delle Deliberazioni dell'Amministratore Unico (se istituito). Non è richiesto il pagamento della tassa di concessione governativa.
B24: ="- Il Libro delle assemblee del Collegio Sindacale quando presente." -> - Il Libro delle assemblee del Collegio Sindacale quando presente.
B25: ="- Il Libro delle assemblee del Controllo Contabile quando presente." -> - Il Libro delle assemblee del Controllo Contabile quando presente.
A27: 17) | B27: LIBRI CONTABILI (imposta di bollo € 32,00 x ogni 100 pag. x ogni libro; Onlus e cooperative edilizie esentate):
B28: ="- Il Libro giornale (deve contenere la doppia numerazione, una per numerare la pagina nell’ambito del volume, l’altra per individuare il volume, nel caso il libro si compone di più volumi)." -> - Il Libro giornale (deve contenere la doppia numerazione, una per numerare la pagina nell’ambito del volume, l’altra per individuare il volume, nel caso il libro si compone di più volumi).
B29: ="- Il Libro degli inventari (deve contenere la doppia numerazione, una per numerare la pagina nell’ambito del volume, l’altra per individuare il volume, nel caso il libro si compone di più volumi)." -> - Il Libro degli inventari (deve contenere la doppia numerazione, una per numerare la pagina nell’ambito del volume, l’altra per individuare il volume, nel caso il libro si compone di più volumi).
A31: 18) | B31: LIBRI FISCALI:
B32: ="- Il Libro Iva acquisti." -> - Il Libro Iva acquisti.
B33: ="- Il Libro Iva vendite." -> - Il Libro Iva vendite.
B34: ="- Il Libro Iva fatture differite (eventuale)." -> - Il Libro Iva fatture differite (eventuale).
A36: 19) | B36: ALTRI EVENTUALI LIBRI E DOCUMENTI.
A38: 20) | B38: La ricevuta di invio mod. Unico - Società di capitali per i due esercizi del biennio di verifica.
B39: La ricevuta di invio mod. Irap per i due esercizi del biennio di verifica.
B40: La ricevuta di invio mod. 770 per i due esercizi del biennio di verifica, se nell'esercizio se sono state emesse fatture.
A42: 21) | B42: Nel caso in cui lo scambio mutualistico sia il costo del lavoro:
B44: - Il Regolamento L. 142/2001, delibera di approvazione, deposito presso la DPL.
B45: - Il numero totale dei soci lavoratori alla data della revisione.
B46: - Il numero dei soci che svolgono funzioni amministrative e/o tecniche alla data della revisione.
B47: - Il numero dei dipendenti terzi alla data della revisione, distinto per impiegati e salariati.
B48: - La dichiarazione dei contributi previdenziali e assistenziali degli ultimi due anni (DM/10, F24 ecc.) o in alternativa il modello DURC in corso di validità oppure la situazione debitoria rilasciata dall'Inps.
B49: - Il contratto, la lettera di assunzione, il modello UNILAV."
B50: - Il libro unico del lavoro (precedentemente si esibiva il libro matricola; è sufficiente esibire copia autenticata dal consulente).
B51: - Il libro degli infortuni.
B52: - I modelli DM10 Inps trasmessi (dal cassetto previdenziale aziende).
B53: - I modelli F24, per la verifica dei versamenti dei contributi Inps.
B54: - Un prospetto recante il costo totale annuo del lavoro per ciascun anno del biennio oggetto di verifica e per ciascun lavoratore, sottoscritto dall’amministratore o dal professionista delegato, distinguendo i lavoratori soci dai non soci. Esibire inoltre la documentazione utilizzata per la redazione del prospetto.
B55: Per la redazione di detto prospetto può essere utilizzato il foglio excel "documentazione da verificare", presente sulla cartella "contributo, interessi sanzione compenso.varie.xls", scaricabile dal sito www.cristofaro.too.it
A57: 22) | B57: Per le cooperative sociali:
B59: - La copia dell'iscrizione all'Albo regionale, se istituito.
B60: - L'elenco delle eventuali convenzioni stipulate con enti pubblici e privati.
A62: 23) | B62: Per le cooperative Edilizie iscritte all'Albo delle Cooperative edilizie:
B64: - la copia della relazione annuale.
B66: POTRA' INOLTRE ESSERE RICHIESTA LA ESIBIZIONE DEI SEGUENTI ALTRI DOCUMENTI
A68: 24) | B68: Le licenze, le autorizzazioni, i permessi vari relativi alla specifica attività svolta.
A69: 25) | B69: Revisione precedente.
A70: 26) | B70: La situazione economico-patrimoniale aggiornata alla data della verifica.
A71: 27) | B71: Le domande di ammissione e/o di dimissione dei soci.
